Workbook

Sheet NOTES
A2: The following changes have been made for the tariff approval model to apply to the 2021 6-month extension period
A4: Issue | B4: Location | C4: Item | D4: Comment
A6: 1 | B6: '6 month formulae' | C6: Price control formulae | D6: Added formulae to apply to the 6-month extension
A8: =A6+1 -> 2 | B8: 'Prop2020TSSComp' | C8: Comparison to previous year indicative prices | D8: Removed worksheet as no indicative prices for 2021 to compare to
A10: =A8+1 -> 3 | B10: 'Indicative prices for 2021' | C10: Indicative prices for next year | D10: Removed worksheet as no indicative prices required for 2021/22 year
A12: =A10+1 -> 4 | B12: 'JS cost audit template' | C12: t-2 jurisdictional scheme costs | D12: Removed worksheet as no true-up to occur in 6-month extension
B13: 'TUOS cost audit template' | C13: t-2 designated pricing proposal charges | D13: Removed worksheet as no true-up to occur in 6-month extension
A15: =A12+1 -> 5 | B15: 'Est2019TransRev' | C15: Calculating t-1 estimates for unders/overs account | D15: Removed worksheet as t-1 estimates not needed in 6-month extension
B16: 'Est2019JSRev' | C16: Calculating t-1 estimates for unders/overs account | D16: Removed worksheet as t-1 estimates not needed in 6-month extension
A18: =A15+1 -> 6 | B18: 'Prop2021DistTar' | C18: Proposed 2021 distribution tariffs | D18: Renamed for relevant year
B19: '2021DistRevCapForm' | C19: 2021 distribution revenue cap | D19: Renamed for relevant year
B20: '2021DistTarRebalCont' | C20: 2021 distribution side constraints | D20: Renamed for relevant year
B21: 'Est2020DistRev' | C21: Estimated 2020 distribution revenue | D21: Renamed for relevant year
B22: 'Prop2021TransTar' | C22: Proposed 2021 transmission tariffs | D22: Renamed for relevant year
B23: '2021TransRevCont' | C23: 2021 transmission revenue cap | D23: Renamed for relevant year
B24: 'Prop2021JSTar' | C24: Proposed 2021 jurisdictional scheme tariffs | D24: Renamed for relevant year
B25: '2021JSRevCont' | C25: 2021 jurisdictional scheme revenue cap | D25: Renamed for relevant year
A27: =A18+1 -> 7 | B27: 'Model update'!A34:N299 | C27: Inputs for control formulae | D27: Removed all 2016–20 inputs for control formulae as not used in 6-month extension
A29: =A27+1 -> 8 | B29: 'Model update'!C5 | C29: Regulatory year | D29: Changed to 2021
A31: =A29+1 -> 9 | B31: 'Model update'!A26:F26 | C31: CPI data | D31: Expanded CPI data to include 2021
A33: =A31+1 -> 10 | B33: 'Model update'!C3 | C33: Business name | D33: Updated for relevant business name
A35: =A33+1 -> 11 | B35: 'Model update'!A34:D36 | C35: X-factor for ANS | D35: Added 2021 X-factor for use in escalating ANS price caps
A37: =A35+1 -> 12 | B37: Metering!H26:I28 | C37: Side constraint factors | D37: Removed side constraint factors not applied for 6-month extension.
B38: Metering!I25 | C38: CPI | D38: Updated CPI reference to 'Model update' sheet
A40: =A37+1 -> 13 | B40: Metering!B29:D39 | C40: Table 2 - Total annual revenue calculations | D40: Removed calculations for factors not applied in 6-month extension
C41: Table 3 - Adjusted annual revenue calculations | D41: Removed calculations for escalations not applied in 6-month extension
A43: =A40+1 -> 14 | B43: Metering!B44:F89 | C43: Table 4 - Metering service recovery arrangements | D43: Removed table as unders/overs not applied in 6-month extension
C44: Table 5 - Metering services unders/overs account | D44: Removed table as unders/overs not applied in 6-month extension
C45: Calculation of estimated metering revenue for t-1 | D45: Removed table as unders/overs not applied in 6-month extension
A47: =A43+1 -> 15 | B47: Metering!E22:E33 | C47: t-1 data for calculating revenue cap | D47: Removed t-1 data as not used for calculating revenue cap for 6-month extension
A49: =A47+1 -> 16 | B49: Metering!D26 | C49: Revenue cap | D49: Formula replaced with revenue directly from 6-month extension PTRM
A51: =A49+1 -> 17 | B51: '2021DistRevCapForm'!B13:C38 | C51: Table 2 - Total annual revenue calculations | D51: Removed calculations for factors not applied in 6-month extension
C52: Table 3 - Adjusted annual revenue calculations | D52: Removed calculations for escalations not applied in 6-month extension
C53: Table 4 - B factor calculations | D53: Removed calculations for factors not applied in 6-month extension
C54: Table 5 - License fee calculations | D54: Removed calculations for factors not applied in 6-month extension
A56: =A51+1 -> 18 | B56: '2021DistRevCapForm'!B42:E77 | C56: Table 6 - DUoS recovery arrangements | D56: Removed table as unders/overs not applied in 6-month extension
C57: Table 7 - DUoS unders and overs account | D57: Removed table as unders/overs not applied in 6-month extension
A59: =A56+1 -> 19 | B59: '2021DistRevCapForm'!H6:H38 | C59: t-1 data for calculating revenue cap | D59: Removed t-1 data as not used for calculating revenue cap for 6-month extension
A61: =A59+1 -> 20 | B61: '2021DistRevCapForm'!C10 | C61: Revenue cap | D61: Formula replaced with revenue directly from 6-month extension PTRM
A63: =A61+1 -> 21 | B63: '2021DistTarRebalCont'!B9:C13 | C63: Side constraint factors | D63: Removed side constraint factors not applied for 6-month extension.
B64: '2021DistTarRebalCont'!C8 | C64: CPI | D64: Updated CPI reference to 'Model update' sheet
A66: =A63+1 -> 22 | B66: Est2020DistRev!D6:P54 | C66: t-1 prices | D66: Updated t-1 prices for approved 2020 prices
A68: =A66+1 -> 23 | B68: '2021TransRevCont'!B13:C17 | C68: Table 2 - Total DPPC related payments for year t | D68: Removed calculations for factors not applied in 6-month extension
B69: '2021TransRevCont'!C10 | C69: Revenue cap | D69: Updated formula to source total costs from Table 3
A71: =A68+1 -> 24 | B71: '2021TransRevCont'!B29:E66 | C71: Table 4 - DPPC recovery arrangements | D71: Removed table as unders/overs not applied in 6-month extension
C72: Table 5 - DPPC unders and overs account | D72: Removed table as unders/overs not applied in 6-month extension
A74: =A71+1 -> 25 | B74: '2021JSRevCont'!B13:C17 | C74: Table 2 - Total JSA related payments for year t | D74: Removed calculations for factors not applied in 6-month extension
B75: '2021JSRevCont'!C10 | C75: Revenue cap | D75: Updated formula to source total costs from Table 3
A77: =A74+1 -> 26 | B77: '2021JSRevCont'!B27:E62 | C77: Table 4 - JSA recovery arrangements | D77: Removed table as unders/overs not applied in 6-month extension
C78: Table 5 - JSA unders and overs account | D78: Removed table as unders/overs not applied in 6-month extension
A80: =A77+1 -> 27 | B80: 'Meteing exit fees' | C80: Worksheet | D80: Added worksheet for calculating ACS price caps
B81: 'Public lighting' | C81: Worksheet | D81: Added worksheet for calculating ACS price caps
B82: 'ANS' | C82: Worksheet | D82: Added worksheet for calculating ACS price caps

Sheet Formulae
B2: DUoS
B3: Figure 14.1 Revenue cap formulae
B4: (1) | H4: i=1,..,n and j=1,..,m and t=1,..,5
B5: (2) | H5: t = 1,2,…,5
B6: (3) | H6: t = 1
B7: (4) | H7: t = 2,…,5
B9: where;
C10: is the total annual revenue in year t.
D11: is the price of component 'j' of tariff 'i' in year t.
D12: is the forecast quantity of component 'j' of tariff 'i' in year t.
C13: is the adjusted annual smoothed revenue requirement for year t.
D14: is the annual adjustment f–factor scheme amount in year t. This amount will be calculated as per the method set out in the relevant f–factor scheme.
D15: is the sum of:
B16: · the final carryover amount from the application of the DMIS from the 2011–15 regulatory control period. This amount will be calculated using the method set out in the DMIS and will be deducted from/added to allowed revenue in the 2017 pricing proposal.
D17: is the sum of:
B18: · the recovery of license fee charges by the Victorian Essential Services Commission indexed by one and a half years of interest, calculated using the following method:
B20: where:
C21: are the licence fees paid by DNSP to the Victorian Essential Services Commission in the financial year ending in June of regulatory year t–1,
C22: is the approved nominal weighted average cost of capital (WACC) for the relevant regulatory year using the following method:
B25: · any under or over recovery of actual revenue collected through DUoS charges in regulatory year t–2 as calculated using the method in appendix A,
B26: · the AER approved pass through amounts (positive or negative) with respect to regulatory year t.
C27: is the annual smoothed revenue requirement as stated in the Post Tax Revenue Model (PTRM) for year t (when year t is the first year of the 2016–20 regulatory control period).[43]
C28: is the s‑factor determined in accordance with the service target performance incentive scheme (STPIS) for regulatory year t.[44]
C29: is the annual percentage change in the ABS CPI All Groups, Weighted Average of Eight Capital Cities[45] from the June quarter in year t–2 to the June quarter in year t–1, calculated using the following method :
B30: The ABS CPI All Groups, Weighted Average of Eight Capital Cities for the June quarter in regulatory year t–1
B31: divided by
B32: The ABS CPI All Groups, Weighted Average of Eight Capital Cities for the June quarter in regulatory year t–2
B33: minus one.
B34: For example, for the 2017 regulatory year, t–2 is June quarter 2015 and t–1 is June quarter 2016 and for the 2018 regulatory year, t–2 is June quarter 2016 and t–1 is June quarter 2017 and so on.
C35: is the X factor for each year of the 2016–20 regulatory control period as determined in the PTRM, and annually revised for the return on debt update in accordance with the formula specified in attachment 3—rate of return—calculated for the relevant year.
B38: [43] | C38: Our final F&A stated that if necessary an adjustment for inflation may be required to the annual smoothed revenue requirement for year t. However, as the annual smoothed revenue requirement for year t as stated in our preliminary decision PTRM is in nominal dollars there is no need to adjust it for inflation. This approach is consistent with past regulatory practice.
B39: [44] | C39: For the first two regulatory years of the 2016–20 regulatory control period, the value of St is to be adjusted to account for the change in revenue requirements between the regulatory control periods, as explained in attachment 11. In the formulas in the STPIS, the AR(t+1) is equivalent to ARt in this formula. Calculations of the S factor adjustment are to be made accordingly.
B40: [45] | C40: If the ABS does not or ceases to publish the index, then CPI will mean an index which the AER considers is the best available alternative index
B44: Figure 14.2 Side constraints [46]
C50: where each tariff class has "n" tariffs, with each up to "m" components, and where:
D51: is the proposed price for component ‘j’ of tariff 'i' for year t.
C52: is the price charged for component ‘j’ of tariff 'i' in year t–1.
D53: is the forecast quantity of component ‘j’ of tariff 'i' in year t.
C54: is the annual percentage change in the ABS CPI All Groups, Weighted Average of Eight Capital Cities[4] from the June quarter in year t–2 to the June quarter in year t–1, calculated using the following method :
C55: The ABS CPI All Groups, Weighted Average of Eight Capital Cities[47] for the June quarter in regulatory year t–1
C56: divided by
C57: The ABS CPI All Groups, Weighted Average of Eight Capital Cities for the June quarter in regulatory year t–2
C58: minus one.
B59: For example, for the 2017 regulatory year, t–2 is June quarter 2015 and t–1 is June quarter 2016 and for the 2018 regulatory year, t–2 is June quarter 2016 and t–1 is June quarter 2017 and so on.
D60: is the X factor for each year of the 2016–20 regulatory control period as determined in the PTRM, and annually revised for the return on debt update in accordance with the formula specified in attachment 3—rate of return—calculated for the relevant year. If X>0, then X will be set equal to zero for the purposes of the side constraint formula.
C61: is the s‑factor determined in accordance with the STPIS for regulatory year t.[5]
D62: is the annual percentage change from the f–factor scheme amount in year t. This amount will be calculated as per the method set out in attachment 19—f–factor scheme.
D63: is the annual percentage change from the final carryover amount from the application of the DMIS from the 2011–15 regulatory control period. This amount will be calculated using the method set out in the DMIS and will be deducted from/added to allowed revenue in the 2017 pricing proposal.
D64: is annual percentage change from the sum of:
B65: · the recovery of license fee charges by the Victorian Essential Services Commission indexed by one and a half years of interest, calculated using the following method:
B67: where:
B68: are the licence fees paid byDNSP to the Victorian Essential Services Commission in the financial year ending in June of regulatory year t–1,
C69: is the approved nominal weighted average cost of capital (WACC) for the relevant regulatory year using the following method:
B72: where the
B73: is as set out in our final decision PTRM and updated annually
B74: · the AER approved pass through amounts (positive or negative) with respect to regulatory year t.
B75: With the exception of the CPI, X factor and S factor, the percentage for each of the other factors above can be calculated by dividing the incremental revenues (as used in the total annual revenue formula) for each factor by the expected revenues for regulatory year t–1 (based on the prices in year t–1 multiplied by the forecast quantities for year t).
B77: [46] | C77: All parameters are in nominal terms unless otherwise specified.
B78: [47] | C78: If the ABS does not or ceases to publish the index, then CPI will mean an index which the AER considers is the best available alternative index.
H83: Table 14.1 | I83: Example calculation of DUoS unders and overs account ($'000, nominal)
I84: Year t–2 | J84: Year t–1 | K84: Year t
I85: (actual) | J85: (estimate) | K85: (forecast)
H86: (A) Revenue from DUoS charges | I86: 46 779 | J86: 40 269 | K86: 39 510
H87: (B) Less TAR for regulatory year = | I87: 43 039 | J87: 41 427 | K87: 44 429
H88: + Adjusted annual smoothed revenues (AARt) | I88: 40 189 | J88: 41 393 | K88: 44 393
H89: + f–factor scheme amount (It) | I89: –12 | J89: 10 | K89: 14
H90: + DMIS carryover amount (Tt) | I90: 1013 | J90: 0 | K90: 0
H91: + Annual adjustments (Bt)a = | I91: 1849 | J91: 24 | K91: 22
H92: + License fee recovery | I92: 25 | J92: 24 | K92: 22
H93: + Approved pass through amounts | I93: 1824 | J93: 0 | K93: 0
H95: (A minus B) Under/over recovery of revenue for regulatory year | I95: 3740 | J95: –1158 | K95: –4919b
H97: DUoS unders and overs account
H98: Nominal WACC (per cent) | I98: 0.05 | J98: 0.055 | K98: 0.06
H99: Opening balance | I99: 1737 | J99: 5656c | K99: 4778
H100: Interest on opening balance | I100: 87 | J100: 311 | K100: 287
H101: Under/over recovery of revenue for regulatory year | I101: 3740 | J101: –1158 | K101: –4919b
H102: Interest on under/over recovery for regulatory year | I102: 92 | J102: –31 | K102: –145
H103: Closing balance | I103: 5656 | J103: 4778 | K103: 0d
G104: Notes: | H104: (a) Bt parameter calculations in the DUoS unders and overs account exclude approved DUoS revenue under/over recovery for regulatory year.
H105: (b) Approved DUoS revenue under/over recovery for regulatory year t.
H106: (c) Opening balance is the previous year's closing balance.
H107: (d) The DNSP is expected to achieve a closing balance as close to zero as practicable in its DUoS unders and overs account in each forecast year in its annual pricing proposals in the 2016–20 regulatory control period.
H113: Table 14.2 | I113: Example calculation of designated pricing proposal charges unders and overs account ($'000, nominal)
I114: Year t–2 | J114: Year t–1 | K114: Year t
I115: (actual) | J115: (estimate) | K115: (forecast)
H116: (A) Revenue from designated pricing proposal charges (DPPC) | I116: 40 077 | J116: 34 944 | K116: 36 609
H117: (B) Less DPPC related payments for regulatory year = | I117: 34 365 | J117: 38 734 | K117: 39 200
H118: + DPPC charges to be paid to TNSP | I118: 33 672 | J118: 37 933 | K118: 38 000
H119: + Avoided TUoS/DPPC payments | I119: 572 | J119: 734 | K119: 800
H120: + Inter–distributor payments | I120: 121 | J120: 67 | K120: 400
H122: (A minus B) Under/over recovery of revenue for regulatory year | I122: 5712 | J122: –3790 | K122: –2540a
H124: DPPC unders and overs account
H125: Nominal WACC (per cent) | I125: 0.05 | J125: 0.055 | K125: 0.06
H126: Opening balance | I126: 167 | J126: 6028b | K126: 2467
H127: Interest on opening balance | I127: 8 | J127: 332 | K127: 148
H128: Under/over recovery of revenue for regulatory year | I128: 5712 | J128: –3790 | K128: –2540a
H129: Interest on under/over recovery for regulatory year | I129: 141 | J129: –103 | K129: –75
H130: Closing balance | I130: 6028 | J130: 2467 | K130: 0c
G131: Notes: | H131: (a) Approved DPPC revenue under/over recovery for regulatory year t.
H132: (b) Opening balance is the previous year's closing balance.
H133: (c)The DNSP is expected to achieve a closing balance as close to zero as practicable in its DPPC unders and overs account in each forecast year in its annual pricing proposals in the 2016–20 regulatory control period.
H139: Table 14.3 Example calculation of jurisdictional scheme amounts unders and overs account ($'000, nominal)
I140: Year t–2 | J140: Year t–1 | K140: Year t
I141: (actual) | J141: (estimate) | K141: (forecast)
H142: (A) Revenue from jurisdictional schemes | I142: 19 777 | J142: 23 121 | K142: 26 965
H143: (B) Less jurisdictional scheme payments for regulatory year = | I143: 20 272 | J143: 20 959 | K143: 28 641
H144: + Jurisdictional scheme 1 payments | I144: 14 159 | J144: 13 954 | K144: 13 961
H145: + Jurisdictional scheme 2 payments | I145: 6113 | J145: 7005 | K145: 14 680
H147: (A minus B) Under/over recovery of revenue for regulatory year | I147: –495 | J147: 2162 | K147: –1676a
H149: Jurisdictional scheme amount unders and overs account
H150: Nominal WACC (per cent) | I150: 0.05 | J150: 0.055 | K150: 0.06
H151: Opening balance | I151: –52 | J151: –562b | K151: 1628
H152: Interest on opening balance | I152: –3 | J152: –31 | K152: 98
H153: Under/over recovery of revenue for regulatory year | I153: –495 | J153: 2162 | K153: –1676a
H154: Interest on under/over recovery for regulatory year | I154: –12 | J154: 59 | K154: –50
H155: Closing balance | I155: –562 | J155: 1628 | K155: 0c
G156: Notes: | H156: (a) Approved jurisdictional scheme amounts revenue under/over recovery for regulatory year t.
H157: (b) Opening balance is the previous year's closing balance.
H158: (c) The DNSP is expected to achieve a closing balance as close to zero as practicable in its jurisdictional scheme amount unders and overs account in each forecast year in its annual pricing proposals in the 2016–20 regulatory control period.
B166: Metering
B167: Figure 16.3 | C167: Annual metering charges revenue cap formula
A168: (1) | H168: i=1,..,n and j=1,..,m and t=1,..,5
A170: (2) | H170: t = 1,2,…,5
A172: (3) | H172: t = 1,2,…,5
B175: where;
C176: is the total annual revenue for annual metering charges in year t.
E177: is the price of component 'j' of metering service 'i' in year t.
E178: is the forecast quantity of component 'j' of metering service 'i' in year t.
D179: is the annual revenue requirement for year t. When year t is the first year of the 2016–20 regulatory control period,
D180: is the annual revenue requirement in the annual metering charges Post Tax Revenue Model (PTRM) for year t.
E181: is equal to zero for all years except 2017 and is a once off adjustment to 2017 charges for the unders and overs recoveries relating to Advanced Metering Infrastructure actual revenues and actual costs incurred in 2014 and 2015.
E182: is the sum of annual adjustment factors in year t as calculated in the unders and overs account in appendix C.
D184: is the annual revenue requirement for year t–1.
C185: is the annual percentage change in the ABS CPI All Groups, Weighted Average of Eight Capital Cities[39] from the June quarter in year t–2 to the June quarter in year t–1, calculated using the following method:
B186: The ABS CPI All Groups, Weighted Average of Eight Capital Cities for the June quarter in regulatory year t–1
B187: divided by
B188: The ABS CPI All Groups, Weighted Average of Eight Capital Cities for the June quarter in regulatory year t–2
B189: minus one.
B190: For example, for the 2017 regulatory year, t–2 is June quarter 2015 and t–1 is June quarter 2016 and for the 2018 regulatory year, t–2 is June quarter 2016 and t–1 is June quarter 2017 and so on.
D191: is the X factor for each year of the 2016–20 regulatory control period as determined in the annual metering charges PTRM.
B194: [39] | C194: If the ABS does not or ceases to publish the index, then CPI will mean an index which the AER considers is the best available alternative index
B199: Figure 16.4 Side constraints
B201: where:
E202: is the price of annual metering charges service 'i' in year t.
D203: is the price of annual metering charges service 'i' in year t–1.
C204: is the annual percentage change in the ABS CPI All Groups, Weighted Average of Eight Capital Cities from the June quarter in year t–2 to the June quarter in year t–1, calculated using the following method:
B205: The ABS CPI All Groups, Weighted Average of Eight Capital Cities[40] for the June quarter in regulatory year t–1
B206: divided by
B207: The ABS CPI All Groups, Weighted Average of Eight Capital Cities for the June quarter in regulatory year t–2
B208: minus one.
B209: For example, for the 2017 regulatory year, t–2 is June quarter 2015 and t–1 is June quarter 2016 and for the 2018 regulatory year, t–2 is June quarter 2016 and t–1 is June quarter 2017 and so on.
D210: is the X factor for each year of the 2016–20 regulatory control period as determined in the annual metering charges PTRM.
E211: is the annual percentage change for the unders and overs recoveries relating to Advanced Metering Infrastructure actual revenues and actual costs incurred in 2014 and 2015. It is equal to zero for all years except 2017 and is a once off adjustment to 2017 charges.
E212: is the annual percentage change from the sum of annual adjustment factors in year t as calculated in the unders and overs account in appendix C.
B213: With the exception of the CPI and the X factor, the percentage for each of the other factors above can be calculated by dividing the incremental revenues (as used in the total annual revenue formula) for each factor by the expected revenues for regulatory year t–1 (based on the prices in year t–1 multiplied by the forecast quantities for year t).
B215: [40] | C215: If the ABS does not or ceases to publish the index, then CPI will mean an index which the AER considers is the best available alternative index.
H220: Table 16.xx | I220: Example calculation of annual metering charges unders and overs account ($'000, nominal)
I221: Year t–2 | J221: Year t–1 | K221: Year t
I222: (actual) | J222: (estimate) | K222: (forecast)
H223: (A) Revenue from annual metering charges | I223: 8 449 | J223: 7 389 | K223: 6 460
H224: (B) Less TARM for regulatory year = | I224: 7 366 | J224: 7 422 | K224: 7 573
H225: + Annual revenue requirement (ARt) | I225: 7 349 | J225: 7 412 | K225: 7 559
H226: + T factor (Tt) – true‑ups relating to the AMI–Order in Council | I226: 17 | J226: 10 | K226: 14
H228: (A minus B) Under/over recovery of revenue for regulatory year | I228: 1 083 | J228: –33 | K228: –1 113a
H230: Annual metering charges unders and overs account
H231: Nominal WACC (per cent) | I231: 0.05 | J231: 0.055 | K231: 0.06
H232: Opening balance | I232: –50 | J232: 1 057b | K232: 1 081
H233: Interest on opening balance | I233: –3 | J233: 58 | K233: 65
H234: Under/over recovery of revenue for regulatory year | I234: 1 083 | J234: –33 | K234: –1 113b
H235: Interest on under/over recovery for regulatory year | I235: 27 | J235: –1 | K235: –33
H236: Closing balance | I236: 1 057 | J236: 1 081 | K236: 0c
G237: Notes: | H237: (a) Approved annual metering charges revenue under/over recovery for regulatory year t. This is the Bt parameter in the annual metering charges revenue cap formula.
H238: (b) Opening balance is the previous year's closing balance.
H239: (c) The DNSP is expected to achieve a closing balance as close to zero as practicable in its annual metering charges unders and overs account in each forecast year in its annual pricing proposals in the 2016–20 regulatory control period.

Sheet 6 month formulae
H4: The revenue cap to be applies to standard control services will be as set in the amended PTRM, with no other factors applied.*
H10: The revenue cap to be applied to revenue-capped type 5 and 6 (inc. smart metering) services will be as set in the amended metering PTRM, with no other factors applied.
H16: The side constraint mechanism to apply to standard control services and metering services will be just CPI and the 2% allowance as there is no X-factor to apply, and no other adjustments need to be discounted from the permissable percentage.*
I20: NB - no adjustment to be made to make 12 month and 6 month period comparable
H25: The price cap to be applied to type 7 metering services will be escalated for CPI
H29: The price cap to apply to ancillary network services will be escalated for CPI and x-factor.
H30: X-factor to apply will reflect updated labour escalation forecast for the extended period in line with the calculation of the 2021–26 draft decision, being half of the forecast yearly change in the State utilities sector real wages for Vic in 21/22.
H33: The price cap to apply to metering exit fees and public lighting services will not be escalated.
H39: CPI definition to remain as per the 2015–20 determination.

Sheet Model update
A3: Tariff Approval Template for | C3: Powercor
A5: calendar year commencing | C5: 2021
A7: t | B7: = | C7: =C5 -> 2021
A8: t-1 | B8: = | C8: =C7-1 -> 2020
A9: t-2 | B9: = | C9: 2019
A10: t-3 | B10: = | C10: 2018
A11: t-4 | B11: = | C11: 2017
A13: Please fill in yellow highlighted cells where appropriate
A15: CPI | B15: The ABS changed the index reference base in September 2012 from 1989-90 to 2011-12.
A16: CPI Index Sept 2011 | C16: 99.8
A17: CPI Index Sept 2012 | C17: 101.8 | E17: CPI 2013 | F17: =C17/C16-1 -> 0.02004008016
A18: CPI Index Sept 2013 | C18: 104 | E18: CPI 2014 | F18: =C18/C17-1 -> 0.02161100196
A19: CPI Index Sept 2014 | C19: 106.4 | E19: CPI 2015 | F19: =C19/C18-1 -> 0.02307692308
A20: CPI Index Sept 2015 | C20: 108 | E20: CPI 2016 | F20: =C20/C19-1 -> 0.01503759398
A21: CPI Index June 2015 | C21: 107.5
A22: CPI Index June 2016 | C22: 108.6 | E22: CPI 2017 | F22: =IF(OR(C21="",C22=""),0,C22/C21-1) -> 0.01023255814
A23: CPI Index June 2017 | C23: 110.7 | E23: CPI 2018 | F23: =IF(OR(C22="",C23=""),0,C23/C22-1) -> 0.01933701657
A24: CPI Index June 2018 | C24: 113 | E24: CPI 2019 | F24: 0.02077687444
A25: CPI Index June 2019 | C25: 114.8 | E25: CPI 2020 | F25: 0.01592920354
A26: CPI Index June 2020 | C26: 114.4 | E26: CPI 2021 | F26: =IF(OR(C25="",C26=""),0,C26/C25-1) -> -0.003484320557
A28: ="CPI " &$C$9 -> CPI 2019 | C28: =VLOOKUP(A28,E$17:F$25,2,FALSE) -> 0.02077687444 | D28: (t-2)
A29: ="CPI " &$C$8 -> CPI 2020 | C29: =VLOOKUP(A29,E$17:F$25,2,FALSE) -> 0.01592920354 | D29: (t-1)
A30: ="CPI " &$C$5 -> CPI 2021 | C30: =VLOOKUP(A30,E$17:F$26,2,FALSE) -> -0.003484320557 | D30: (t)
A35: 2021 X-factor for ANS | C35: -0.001192676717

Sheet Metering
B1: ="Tariff Approval - "&'Model update'!C3 -> Tariff Approval - Powercor
B3: ="PROPOSED "&'Model update'!$C$5&" METERING TARIFFS AND REVENUE" -> PROPOSED 2021 METERING TARIFFS AND REVENUE
D5: ="Proposed Metering Tariffs P(t) for " &'Model update'!$C$5 -> Proposed Metering Tariffs P(t) for 2021 | E5: ="Current Metering Tariffs P(t-1) for" &'Model update'!$C$8 -> Current Metering Tariffs P(t-1) for2020 | F5: ="Forecast Quantities (Qt) for "&'Model update'!$C$5 -> Forecast Quantities (Qt) for 2021 | H5: ="Forecast Revenue (Pt "&'Model update'!$C$5&")*(Qt " &'Model update'!$C$5&")" -> Forecast Revenue (Pt 2021)*(Qt 2021) | I5: ="Revenue (Pt-1 "&'Model update'!$C$8&")*(Qt " &'Model update'!$C$5&")" -> Revenue (Pt-1 2020)*(Qt 2021) | K5: Movement | L5: Side Constraint
B6: Proposed tariff | C6: Existing tariff | D6: PropTar $/Cust/year | E6: ExistTar $/Cust/year | F6: FcastVol Cust # | H6: PropRev Fixed | I6: ExistRev Fixed
B8: Single phase | C8: Single phase | D8: 32.75 | E8: 67.3 | F8: 700516.1771 | H8: =D8*F8 -> 22941904.8 | I8: =E8*F8 -> 47144738.72 | K8: =IFERROR(H8/I8,"") -> 0.4866270431 | L8: =IF(B8="","",IF(K8<$I$30,"COMPLIANT","BREACHED")) -> COMPLIANT
B9: Three phase direct connected meter | C9: Three phase direct connected meter | D9: 36.9 | E9: 74.15 | F9: 136400.1524 | H9: 5033165.624 | I9: 10114071.3 | K9: =IFERROR(H9/I9,"") -> 0.4976399191 | L9: COMPLIANT
B10: Three phase CT connected meter | C10: Three phase CT connected meter | D10: 61 | E10: 123.9 | F10: 6217.790469 | H10: 379285.2186 | I10: 770384.2391 | K10: 0.4923325262 | L10: COMPLIANT
H11: 0 | I11: 0
H12: 0 | I12: 0
H13: 0 | I13: 0
H14: 0 | I14: 0
H15: 0 | I15: 0
H16: 0 | I16: 0
H17: =SUM(H7:H16) -> 28354355.64 | I17: =SUM(I7:I16) -> 58029194.26
B22: Year (t) | D22: ='Model update'!C5 -> 2021
B24: Table 1- Compliance with AER Final Determination Total Metering Annual Revenue | H24: Metering tariff rebalancing control
B25: Revenue from Metering charges for year t | D25: =H17 -> 28354355.64 | H25: ="CPI "&'Model update'!$C$5 -> CPI 2021 | I25: ='Model update'!C30 -> -0.003484320557
B26: Total Annual Metering Revenue for year t | D26: 28354696.82
D27: =IF(D25="","",IF(D26>=D25,"METERING REVENUE CAP FORMULA COMPLIANT","METERING REVENUE CAP FORMULA BREACHED")) -> METERING REVENUE CAP FORMULA COMPLIANT
I30: =(1+I25)*(1-I26)*(1+0.02)+SUM(I27:I28) -> 1.016445993

Sheet Metering exit fees
B1: ="Tariff Approval - "&'Model update'!C3 -> Tariff Approval - Powercor
B3: Proposed metering exit fees
B5: Metering type | C5: 2020 price cap | D5: 2021 price cap | E5: Proposed 2021 price
B6: Single phase | C6: 377 | D6: =IF(C6="","",C6) -> 377 | E6: =D6 -> 377 | F6: =IF(E6="","",IF(E6<=D6,"COMPLIANT","BREACHED")) -> COMPLIANT
B7: Three phase direct connected meter | C7: 467.15 | D7: =IF(C7="","",C7) -> 467.15 | E7: =D7 -> 467.15 | F7: =IF(E7="","",IF(E7<=D7,"COMPLIANT","BREACHED")) -> COMPLIANT
B8: Three phase CT connected meter | C8: 973.9 | D8: 973.9 | E8: 973.9 | F8: COMPLIANT
B9: Basic or MRIM | C9: 44.45 | D9: 44.45 | E9: 44.45 | F9: COMPLIANT

Sheet Public lighting
B1: ="Tariff Approval - "&'Model update'!C3 -> Tariff Approval - Powercor
B3: Proposed public lighting prices
B5: Public lighting tariff | C5: 2020 price cap | D5: 2021 price cap | E5: Proposed 2021 price
B6: Existing Lights | D6: =IF(C6="","",C6/2) ->  | E6: =D6 ->  | F6: =IF(E6="","",IF(E6<=D6,"COMPLIANT","BREACHED")) -> 
B7: Mercury vapour 80 watt | C7: 56.61992794 | D7: =IF(C7="","",C7/2) -> 28.30996397 | E7: =D7 -> 28.30996397 | F7: =IF(E7="","",IF(E7<=D7,"COMPLIANT","BREACHED")) -> COMPLIANT
B8: Sodium high pressure 150 watt | C8: 103.281575 | D8: 51.6407875 | E8: 51.6407875 | F8: COMPLIANT
B9: Sodium high pressure 250 watt | C9: 105.0751598 | D9: 52.53757989 | E9: 52.53757989 | F9: COMPLIANT
B10: Fluorescent 20 watt | C10: 120.0342472 | D10: 60.01712362 | E10: 60.01712362 | F10: COMPLIANT
B11: Fluorescent 40 watt | C11: 120.0342472 | D11: 60.01712362 | E11: 60.01712362 | F11: COMPLIANT
B12: Mercury vapour 50 watt | C12: 78.70169984 | D12: 39.35084992 | E12: 39.35084992 | F12: COMPLIANT
B13: Mercury vapour 125 watt | C13: 76.43690272 | D13: 38.21845136 | E13: 38.21845136 | F13: COMPLIANT
B14: Mercury vapour 250 watt | C14: 79.85712144 | D14: 39.92856072 | E14: 39.92856072 | F14: COMPLIANT
B15: Mercury vapour 400 watt | C15: 92.46614061 | D15: 46.23307031 | E15: 46.23307031 | F15: COMPLIANT
B16: Mercury vapour 700 watt | C16: 139.7499625 | D16: 69.87498126 | E16: 69.87498126 | F16: COMPLIANT
B17: Sodium low pressure 90 watt | C17: 139.4301263 | D17: 69.71506313 | E17: 69.71506313 | F17: COMPLIANT
B18: Sodium low pressure 180 watt | C18: 139.4301263 | D18: 69.71506313 | E18: 69.71506313 | F18: COMPLIANT
B19: Sodium high pressure 400 watt | C19: 139.7499625 | D19: 69.87498126 | E19: 69.87498126 | F19: COMPLIANT
B20: Incandescent 100 watt | C20: 157.4033997 | D20: 78.70169984 | E20: 78.70169984 | F20: COMPLIANT
B21: Incandescent 150 watt | C21: 157.4033997 | D21: 78.70169984 | E21: 78.70169984 | F21: COMPLIANT
B22: Metal halide 250 watt | C22: 139.7499625 | D22: 69.87498126 | E22: 69.87498126 | F22: COMPLIANT
B23: Metal halide 400 watt | C23: 139.7499625 | D23: 69.87498126 | E23: 69.87498126 | F23: COMPLIANT
B24: Metal halide 70 watt | C24: 120.0342472 | D24: 60.01712362 | E24: 60.01712362 | F24: COMPLIANT
B25: Metal halide 150 watt | C25: 137.3644948 | D25: 68.68224738 | E25: 68.68224738 | F25: COMPLIANT
B27: Energy Efficient Lights
B28: T5 2X14W | C28: 40.17957868 | D28: 20.08978934 | E28: 20.08978934 | F28: COMPLIANT
B29: T5 2X24W | C29: 39.52809941 | D29: 19.7640497 | E29: 19.7640497 | F29: COMPLIANT
B30: CF32 | C30: 38.62405222 | D30: 19.31202611 | E30: 19.31202611 | F30: COMPLIANT
B31: CF42 | C31: 38.62405222 | D31: 19.31202611 | E31: 19.31202611 | F31: COMPLIANT
B32: Category P LED 18 Watt | C32: 25.62583364 | D32: 12.81291682 | E32: 12.81291682 | F32: COMPLIANT
B33: Category P LED 47 Watt | C33: 25.62583364 | D33: 12.81291682 | E33: 12.81291682 | F33: COMPLIANT
B35: Other
B36: WDV | C36: 114.6515846 | D36: =IF(C36="","",C36) -> 114.6515846 | E36: 114.6515846 | F36: COMPLIANT
B37: Avoided costs | C37: -29.15861487 | D37: =IF(C37="","",C37) -> -29.15861487 | E37: -29.15861487 | F37: COMPLIANT

Sheet ANS
B1: ="Tariff Approval - "&'Model update'!C3 -> Tariff Approval - Powercor
B3: Proposed ancillary network service prices
B5: Ancillary network service | D5: 2020 price cap | E5: 2021 price cap | F5: Proposed 2021 price | J5: Escalators
B6: Meter investigation test | C6: Business hours | D6: 424.8767049 | E6: =IF(D6="","",D6*(1+$K$6)*(1-$K$7)) -> 423.9012732 | F6: =E6 -> 423.9012732 | G6: =IF(F6="","",IF(F6<=E6,"COMPLIANT","BREACHED")) -> COMPLIANT | J6: CPI | K6: ='Model update'!C30 -> -0.003484320557
C7: After hours | D7: 486.7460898 | E7: =IF(D7="","",D7*(1+$K$6)*(1-$K$7)) -> 485.6286184 | F7: =E7 -> 485.6286184 | G7: =IF(F7="","",IF(F7<=E7,"COMPLIANT","BREACHED")) -> COMPLIANT | J7: X-factor | K7: ='Model update'!C35 -> -0.001192676717
B8: Meter accuracy test – Single phase | C8: Business hours | D8: 469.0866974 | E8: 468.0097684 | F8: 468.0097684 | G8: COMPLIANT
C9: After hours | D9: 538.6729796 | E9: 537.4362944 | F9: 537.4362944 | G9: COMPLIANT
B10: Meter accuracy test – Single phase additional meter | C10: Business hours | D10: 196.8479832 | E10: 196.3960597 | F10: 196.3960597 | G10: COMPLIANT
B11: Meter accuracy test – Multi phase | C11: Business hours | D11: 565.1676601 | E11: 563.8701485 | F11: 563.8701485 | G11: COMPLIANT
C12: After hours | D12: 651.507438 | E12: 650.0117075 | F12: 650.0117075 | G12: COMPLIANT
B13: Meter accuracy test – Multi phase additional meter | C13: Business hours | D13: 358.9475611 | E13: 358.1234894 | F13: =E13 -> 358.1234894 | G13: =IF(F13="","",IF(F13<=E13,"COMPLIANT","BREACHED")) -> COMPLIANT
B14: Meter accuracy test – CT | C14: Business hours | D14: 661.84137 | E14: 660.3219149 | F14: 660.3219149 | G14: COMPLIANT
C15: After hours | D15: 765.0352988 | E15: 763.2789311 | F15: 763.2789311 | G15: COMPLIANT
B16: Disconnection | C16: Business hours | D16: 59.58786744 | E16: 59.45106564 | F16: 59.45106564 | G16: COMPLIANT
B17: Disconnection for non‑payment | C17: Business hours | D17: 59.58786744 | E17: 59.45106564 | F17: 59.45106564 | G17: COMPLIANT
B18: Reconnections (incl. customer transfer) | C18: Business hours | D18: 56.05375218 | E18: 55.925064 | F18: 55.925064 | G18: COMPLIANT
B19: Reconnections (same day) | C19: Business hours | D19: 91.35016915 | E19: 91.14044747 | F19: 91.14044747 | G19: COMPLIANT
B20: Reconnections (incl. customer transfer) | C20: After hours | D20: 247.5893786 | E20: 247.020963 | F20: 247.020963 | G20: COMPLIANT
B21: Special reading | C21: Business hours | D21: 49.22038374 | E21: 49.10738361 | F21: 49.10738361 | G21: COMPLIANT
B22: Manual meter reading | D22: 49.22038374 | E22: 49.10738361 | F22: 49.10738361 | G22: COMPLIANT
B23: Access to meter data | D23: 50.00325738 | E23: 49.88845992 | F23: 49.88845992 | G23: COMPLIANT
B24: Service truck visit | C24: Business hours | D24: 669.4799798 | E24: 667.942988 | F24: 667.942988 | G24: COMPLIANT
C25: After hours | D25: 804.5704173 | E25: 802.7232849 | F25: 802.7232849 | G25: COMPLIANT
B26: Wasted truck visit | C26: Business hours | D26: 368.2525734 | E26: 367.4071393 | F26: 367.4071393 | G26: COMPLIANT
C27: After hours | D27: 425.4918199 | E27: 424.514976 | F27: 424.514976 | G27: COMPLIANT
B28: Remote meter reconfiguration | D28: 58.34645353 | E28: 58.21250177 | F28: 58.21250177 | G28: COMPLIANT
B29: Remote re‑energisation | D29: 11.00496651 | E29: 10.97970131 | F29: 10.97970131 | G29: COMPLIANT
B30: Remote de‑energisation | D30: 11.00496651 | E30: 10.97970131 | F30: 10.97970131 | G30: COMPLIANT
B32: New connections – Powercor responsible for metering
B33: Single phase | C33: Business hours | D33: 536.3019908 | E33: 535.070749 | F33: 535.070749 | G33: COMPLIANT
C34: After hours | D34: 601.0680082 | E34: 599.6880765 | F34: 599.6880765 | G34: COMPLIANT
B35: Multi‑phase DC | C35: Business hours | D35: 664.1899909 | E35: 662.6651438 | F35: 662.6651438 | G35: COMPLIANT
C36: After hours | D36: 728.9448243 | E36: 727.2713131 | F36: 727.2713131 | G36: COMPLIANT
B37: Multi‑phase CT | C37: Business hours | D37: 2600.594372 | E37: 2594.623929 | F37: 2594.623929 | G37: COMPLIANT
C38: After hours | D38: 3225.372268 | E38: 3217.967459 | F38: 3217.967459 | G38: COMPLIANT
B40: New connections – Powercor NOT responsible for metering
B41: Single phase | C41: Business hours | D41: 501.6206889 | E41: 500.4690683 | F41: 500.4690683 | G41: COMPLIANT
C42: After hours | D42: 560.3362114 | E42: 559.0497918 | F42: 559.0497918 | G42: COMPLIANT
B43: Multi‑phase DC | C43: Business hours | D43: 629.497505 | E43: 628.0523049 | F43: 628.0523049 | G43: COMPLIANT
C44: After hours | D44: 688.2130275 | E44: 686.6330284 | F44: 686.6330284 | G44: COMPLIANT
B45: Multi‑phase CT | C45: Business hours | D45: 2224.188729 | E45: 2219.082438 | F45: 2219.082438 | G45: COMPLIANT
C46: After hours | D46: 2523.302377 | E46: 2517.50938 | F46: 2517.50938 | G46: COMPLIANT
B49: Quoted Services
B50: Skilled electrical worker | C50: Business hours | D50: 134.6251691 | E50: 134.3160968 | F50: 134.3160968 | G50: COMPLIANT
C51: After hours | D51: 158.1006378 | E51: 157.7376705 | F51: 157.7376705 | G51: COMPLIANT
B52: Support staff | C52: Business hours | D52: 76.13865713 | E52: 75.96385804 | F52: 75.96385804 | G52: COMPLIANT

Sheet Prop2021DistTar
B1: ="Tariff Approval - "&'Model update'!$C$3 -> Tariff Approval - Powercor | C1: ="Prop"&'Model update'!$C$5&"DistTar" -> Prop2021DistTar
B3: ="PROPOSED "&'Model update'!$C$5&" DISTRIBUTION TARIFFS" -> PROPOSED 2021 DISTRIBUTION TARIFFS
D4: ="Proposed Distribution Tariffs (Pt) for "&'Model update'!$C$5 -> Proposed Distribution Tariffs (Pt) for 2021 | R4: ="Current Distribution Tariffs (Pt-1) for "&'Model update'!$C$8 -> Current Distribution Tariffs (Pt-1) for 2020 | AF4: ="Forecast Quantities (Qt) for "&'Model update'!$C$5 -> Forecast Quantities (Qt) for 2021 | AT4: ="Forecast Revenue (Pt "&'Model update'!$C$5&")*(Qt " &'Model update'!$C$5&")" -> Forecast Revenue (Pt 2021)*(Qt 2021) | BI4: ="Revenue (Pt-1 "&'Model update'!$C$8&")*(Qt " &'Model update'!$C$5&")" -> Revenue (Pt-1 2020)*(Qt 2021)
B5: Proposed tariff | C5: Existing tariff | D5: PropTar Fixed | E5: PropTar Anytime | F5: PropTar PkBlk | G5: PropTar OPkBlk1 | H5: PropTar Dem kVA | I5: PropTar Dem kW Sum | J5: PropTar Dem kW Win | K5: PropTar SumBlk1 | L5: PropTar SumBlk2 | M5: PropTar SumBlk3 | N5: PropTar WtrBlk1 | O5: PropTar WtrBlk2 | P5: PropTar WtrBlk3 | R5: ExistTar Fixed | S5: ExistTar Anytime | T5: ExistTar Pk | U5: ExistTar OPkBlk | V5: ExistTar Dem kVA | W5: ExistTar Dem kW Sum | X5: ExistTar Dem kW Win | Y5: ExistTar SumBlk1 | Z5: ExistTar SumBlk2 | AA5: ExistTar SumBlk3 | AB5: ExistTar WtrBlk1 | AC5: ExistTar WtrBlk2 | AD5: ExistTar WtrBlk3 | AF5: FcastVol Fixed | AG5: FcastVol Anytime | AH5: FcastVol Pk | AI5: FcastVol Opk | AJ5: FcastVol Dem kVA | AK5: FcastVol Dem kW Sum | AL5: FcastVol Dem kW Win | AM5: FcastVol SumBlk1 | AN5: FcastVol SumBlk2 | AO5: FcastVol SumBlk3 | AP5: FcastVol WtrBlk1 | AQ5: FcastVol WtrBlk2 | AR5: FcastVol WtrBlk3 | AT5: PropRev Fixed | AU5: PropRev Anytime | AV5: PropRev Pk | AW5: PropRev Opk | AX5: PropRev Dem kVA | AY5: PropRev Dem kW Sum | AZ5: PropRev Dem kW Win | BA5: PropRev SumBlk1 | BB5: PropRev SumBlk2 | BC5: PropRev SumBlk3 | BD5: PropRev WtrBlk1 | BE5: PropRev WtrBlk2 | BF5: PropRev WtrBlk3 | BG5: PropRev Total | BI5: ExistRev Fixed | BJ5: ExistRev Anytime | BK5: ExistRev Pk | BL5: ExistRev Opk | BM5: ExistRev Dem kVA | BN5: ExistRev Dem kW Sum | BO5: ExistRev Dem kW Win | BP5: ExistRev SumBlk1 | BQ5: ExistRev SumBlk2 | BR5: ExistRev SumBlk3 | BS5: ExistRev WtrBlk1 | BT5: ExistRev WtrBlk2 | BU5: ExistRev WtrBlk3 | BV5: ExistRev Total
A6: D1 | B6: Residential Single Rate | C6: Residential Single Rate | D6: 140 | E6: 4.54 | F6: 0 | G6: 0 | H6: 0 | I6: 0 | J6: 0 | K6: 0 | L6: 0 | M6: 0 | N6: 0 | O6: 0 | P6: 0 | R6: =Est2020DistRev!D6 -> 140 | S6: =Est2020DistRev!E6 -> 5.57 | T6: =Est2020DistRev!F6 -> 0 | U6: =Est2020DistRev!G6 -> 0 | V6: =Est2020DistRev!H6 -> 0 | W6: =Est2020DistRev!I6 -> 0 | X6: =Est2020DistRev!J6 -> 0 | Y6: =Est2020DistRev!K6 -> 0 | Z6: =Est2020DistRev!L6 -> 0 | AA6: =Est2020DistRev!M6 -> 0 | AB6: =Est2020DistRev!N6 -> 0 | AC6: =Est2020DistRev!O6 -> 0 | AD6: =Est2020DistRev!P6 -> 0 | AF6: 287372.8633 | AG6: 1280472172 | AT6: =D6*AF6 -> 40232200.86 | AU6: =E6/100*AG6 -> 58133436.59 | AV6: 0 | AW6: 0 | AX6: =H6*AJ6 -> 0 | AY6: =I6*AK6 -> 0 | AZ6: =J6*AL6 -> 0 | BA6: =K6/100*AM6 -> 0 | BB6: =L6/100*AN6 -> 0 | BC6: =M6/100*AO6 -> 0 | BD6: =N6/100*AP6 -> 0 | BE6: =O6/100*AQ6 -> 0 | BF6: =P6/100*AR6 -> 0 | BG6: =SUM(AT6:BF6) -> 98365637.45 | BI6: =R6*AF6 -> 40232200.86 | BJ6: =S6/100*AG6 -> 71322299.95 | BK6: 0 | BL6: 0 | BM6: =V6*AJ6 -> 0 | BN6: =W6*AK6 -> 0 | BO6: =X6*AL6 -> 0 | BP6: =Y6/100*AM6 -> 0 | BQ6: =Z6/100*AN6 -> 0 | BR6: =AA6/100*AO6 -> 0 | BS6: =AB6/100*AP6 -> 0 | BT6: =AC6/100*AQ6 -> 0 | BU6: =AD6/100*AR6 -> 0 | BV6: =SUM(BI6:BU6) -> 111554500.8
A7: D1CS | B7: Climate Saver | C7: Climate Saver | D7: 0 | E7: 0 | F7: 8.36 | G7: 1.79 | H7: 0 | I7: 0 | J7: 0 | K7: 0 | L7: 0 | M7: 0 | N7: 0 | O7: 0 | P7: 0 | R7: =Est2020DistRev!D7 -> 0 | S7: =Est2020DistRev!E7 -> 0 | T7: =Est2020DistRev!F7 -> 7.9 | U7: =Est2020DistRev!G7 -> 1.57 | V7: =Est2020DistRev!H7 -> 0 | W7: =Est2020DistRev!I7 -> 0 | X7: =Est2020DistRev!J7 -> 0 | Y7: =Est2020DistRev!K7 -> 0 | Z7: =Est2020DistRev!L7 -> 0 | AA7: =Est2020DistRev!M7 -> 0 | AB7: =Est2020DistRev!N7 -> 0 | AC7: =Est2020DistRev!O7 -> 0 | AD7: =Est2020DistRev!P7 -> 0 | AF7: 8520.880264 | AH7: 6824248.905 | AI7: 6994649.08 | AT7: =D7*AF7 -> 0 | AU7: 0 | AV7: 570507.2085 | AW7: 125204.2185 | AX7: =H7*AJ7 -> 0 | AY7: =I7*AK7 -> 0 | AZ7: =J7*AL7 -> 0 | BA7: =K7/100*AM7 -> 0 | BB7: =L7/100*AN7 -> 0 | BC7: =M7/100*AO7 -> 0 | BD7: =N7/100*AP7 -> 0 | BE7: =O7/100*AQ7 -> 0 | BF7: =P7/100*AR7 -> 0 | BG7: =SUM(AT7:BF7) -> 695711.427 | BI7: =R7*AF7 -> 0 | BJ7: =S7/100*AG7 -> 0 | BK7: =T7/100*AH7 -> 539115.6635 | BL7: =U7/100*AI7 -> 109815.9906 | BM7: =V7*AJ7 -> 0 | BN7: =W7*AK7 -> 0 | BO7: =X7*AL7 -> 0 | BP7: =Y7/100*AM7 -> 0 | BQ7: =Z7/100*AN7 -> 0 | BR7: =AA7/100*AO7 -> 0 | BS7: =AB7/100*AP7 -> 0 | BT7: =AC7/100*AQ7 -> 0 | BU7: =AD7/100*AR7 -> 0 | BV7: =SUM(BI7:BU7) -> 648931.6541
A8: D3CS | B8: Climate Saver Interval | C8: Climate Saver Interval | D8: 0 | E8: 0 | F8: 8.36 | G8: 1.79 | H8: 0 | I8: 0 | J8: 0 | K8: 0 | L8: 0 | M8: 0 | N8: 0 | O8: 0 | P8: 0 | R8: =Est2020DistRev!D8 -> 0 | S8: =Est2020DistRev!E8 -> 0 | T8: =Est2020DistRev!F8 -> 7.9 | U8: =Est2020DistRev!G8 -> 1.57 | V8: =Est2020DistRev!H8 -> 0 | W8: =Est2020DistRev!I8 -> 0 | X8: =Est2020DistRev!J8 -> 0 | Y8: =Est2020DistRev!K8 -> 0 | Z8: =Est2020DistRev!L8 -> 0 | AA8: =Est2020DistRev!M8 -> 0 | AB8: =Est2020DistRev!N8 -> 0 | AC8: =Est2020DistRev!O8 -> 0 | AD8: =Est2020DistRev!P8 -> 0 | AF8: 2324 | AH8: 1975264.14 | AI8: 2186214.006 | AT8: 0 | AU8: 0 | AV8: 165132.0821 | AW8: 39133.23071 | AX8: 0 | AY8: 0 | AZ8: 0 | BA8: 0 | BB8: 0 | BC8: 0 | BD8: 0 | BE8: 0 | BF8: 0 | BG8: 204265.3128 | BI8: 0 | BJ8: 0 | BK8: 156045.8671 | BL8: 34323.55989 | BM8: 0 | BN8: 0 | BO8: 0 | BP8: 0 | BQ8: 0 | BR8: 0 | BS8: 0 | BT8: 0 | BU8: 0 | BV8: 190369.427
A9: P13R | B9: Residential - Flexible Pricing | C9: Residential - Flexible Pricing | D9: 140 | E9: 0 | F9: 0 | G9: 0 | H9: 0 | I9: 0 | J9: 0 | K9: 8.18 | L9: 4.64 | M9: 1.82 | N9: 8.18 | O9: 4.64 | P9: 1.82 | R9: =Est2020DistRev!D9 -> 140 | S9: =Est2020DistRev!E9 -> 0 | T9: =Est2020DistRev!F9 -> 0 | U9: =Est2020DistRev!G9 -> 0 | V9: =Est2020DistRev!H9 -> 0 | W9: =Est2020DistRev!I9 -> 0 | X9: =Est2020DistRev!J9 -> 0 | Y9: =Est2020DistRev!K9 -> 10.27 | Z9: =Est2020DistRev!L9 -> 5.8 | AA9: =Est2020DistRev!M9 -> 2.24 | AB9: =Est2020DistRev!N9 -> 10.27 | AC9: =Est2020DistRev!O9 -> 5.8 | AD9: =Est2020DistRev!P9 -> 2.24 | AF9: 1561.19922 | AM9: 581865.2345 | AN9: 1127707.344 | AO9: 916574.5586 | AP9: 1326685.558 | AQ9: 2571236.359 | AR9: 2089841.698 | AT9: 218567.8908 | AU9: 0 | AV9: 0 | AW9: 0 | AX9: 0 | AY9: 0 | AZ9: 0 | BA9: 47596.57618 | BB9: 52325.62076 | BC9: 16681.65697 | BD9: 108522.8787 | BE9: 119305.367 | BF9: 38035.11891 | BG9: 601035.1093 | BI9: 218567.8908 | BJ9: 0 | BK9: 0 | BL9: 0 | BM9: 0 | BN9: 0 | BO9: 0 | BP9: 59757.55959 | BQ9: 65407.02595 | BR9: 20531.27011 | BS9: 136250.6068 | BT9: 149131.7088 | BU9: 46812.45404 | BV9: 696458.5161
A10: P13RDK | B10: Residential Docklands - Flexible Pricing | C10: Residential Docklands - Flexible Pricing | D10: 140 | E10: 0 | F10: 0 | G10: 0 | H10: 0 | I10: 0 | J10: 0 | K10: 8.18 | L10: 4.64 | M10: 1.82 | N10: 8.18 | O10: 4.64 | P10: 1.82 | R10: =Est2020DistRev!D10 -> 140 | S10: =Est2020DistRev!E10 -> 0 | T10: =Est2020DistRev!F10 -> 0 | U10: =Est2020DistRev!G10 -> 0 | V10: =Est2020DistRev!H10 -> 0 | W10: =Est2020DistRev!I10 -> 0 | X10: =Est2020DistRev!J10 -> 0 | Y10: =Est2020DistRev!K10 -> 10.27 | Z10: =Est2020DistRev!L10 -> 5.8 | AA10: =Est2020DistRev!M10 -> 2.24 | AB10: =Est2020DistRev!N10 -> 10.27 | AC10: =Est2020DistRev!O10 -> 5.8 | AD10: =Est2020DistRev!P10 -> 2.24 | AF10: 0.4944581281 | AM10: 234.5165156 | AN10: 449.189326 | AO10: 301.2635239 | AP10: 484.1450681 | AQ10: 927.324015 | AR10: 621.9402028 | AT10: 69.22413793 | AU10: 0 | AV10: 0 | AW10: 0 | AX10: 0 | AY10: 0 | AZ10: 0 | BA10: 19.18345098 | BB10: 20.84238473 | BC10: 5.482996135 | BD10: 39.60306657 | BE10: 43.0278343 | BF10: 11.31931169 | BG10: 208.6831823 | BI10: 69.22413793 | BJ10: 0 | BK10: 0 | BL10: 0 | BM10: 0 | BN10: 0 | BO10: 0 | BP10: 24.08484615 | BQ10: 26.05298091 | BR10: 6.748302935 | BS10: 49.72169849 | BT10: 53.78479287 | BU10: 13.93146054 | BV10: 243.5482198
A11: P13RCS | B11: Climate Saver - Flexible Pricing | C11: Climate Saver - Flexible Pricing | D11: 0 | E11: 0 | F11: 0 | G11: 0 | H11: 0 | I11: 0 | J11: 0 | K11: 8.36 | L11: 0 | M11: 0 | N11: 1.79 | O11: 0 | P11: 0 | R11: =Est2020DistRev!D11 -> 0 | S11: =Est2020DistRev!E11 -> 0 | T11: =Est2020DistRev!F11 -> 0 | U11: =Est2020DistRev!G11 -> 0 | V11: =Est2020DistRev!H11 -> 0 | W11: =Est2020DistRev!I11 -> 0 | X11: =Est2020DistRev!J11 -> 0 | Y11: =Est2020DistRev!K11 -> 7.9 | Z11: =Est2020DistRev!L11 -> 0 | AA11: =Est2020DistRev!M11 -> 0 | AB11: =Est2020DistRev!N11 -> 1.57 | AC11: =Est2020DistRev!O11 -> 0 | AD11: =Est2020DistRev!P11 -> 0 | AF11: 29 | AM11: 21667.10912 | AP11: 5212.456243 | AR11: 23509.39034 | AT11: 0 | AU11: 0 | AV11: 0 | AW11: 0 | AX11: 0 | AY11: 0 | AZ11: 0 | BA11: 1811.370323 | BB11: 0 | BC11: 0 | BD11: 93.30296676 | BE11: 0 | BF11: 0 | BG11: 1904.67329 | BI11: 0 | BJ11: 0 | BK11: 0 | BL11: 0 | BM11: 0 | BN11: 0 | BO11: 0 | BP11: 1711.701621 | BQ11: 0 | BR11: 0 | BS11: 81.83556302 | BT11: 0 | BU11: 0 | BV11: 1793.537184
A12: P1DK | B12: Docklands single rate | C12: Docklands single rate | D12: 140 | E12: 4.54 | F12: 0 | G12: 0 | H12: 0 | I12: 0 | J12: 0 | K12: 0 | L12: 0 | M12: 0 | N12: 0 | O12: 0 | P12: 0 | R12: =Est2020DistRev!D12 -> 140 | S12: =Est2020DistRev!E12 -> 5.57 | T12: =Est2020DistRev!F12 -> 0 | U12: =Est2020DistRev!G12 -> 0 | V12: =Est2020DistRev!H12 -> 0 | W12: =Est2020DistRev!I12 -> 0 | X12: =Est2020DistRev!J12 -> 0 | Y12: =Est2020DistRev!K12 -> 0 | Z12: =Est2020DistRev!L12 -> 0 | AA12: =Est2020DistRev!M12 -> 0 | AB12: =Est2020DistRev!N12 -> 0 | AC12: =Est2020DistRev!O12 -> 0 | AD12: =Est2020DistRev!P12 -> 0 | AF12: 1.483374384 | AG12: 26451.718 | AT12: 207.6724138 | AU12: 1200.907997 | AV12: 0 | AW12: 0 | AX12: 0 | AY12: 0 | AZ12: 0 | BA12: 0 | BB12: 0 | BC12: 0 | BD12: 0 | BE12: 0 | BF12: 0 | BG12: 1408.580411 | BI12: 207.6724138 | BJ12: 1473.360692 | BK12: 0 | BL12: 0 | BM12: 0 | BN12: 0 | BO12: 0 | BP12: 0 | BQ12: 0 | BR12: 0 | BS12: 0 | BT12: 0 | BU12: 0 | BV12: 1681.033106
A13: D2 | B13: Residential Two Rate 5d | C13: Residential Two Rate 5d | D13: 140 | E13: 0 | F13: 8.36 | G13: 1.79 | H13: 0 | I13: 0 | J13: 0 | K13: 0 | L13: 0 | M13: 0 | N13: 0 | O13: 0 | P13: 0 | R13: =Est2020DistRev!D13 -> 140 | S13: =Est2020DistRev!E13 -> 0 | T13: =Est2020DistRev!F13 -> 9.81 | U13: =Est2020DistRev!G13 -> 2.23 | V13: =Est2020DistRev!H13 -> 0 | W13: =Est2020DistRev!I13 -> 0 | X13: =Est2020DistRev!J13 -> 0 | Y13: =Est2020DistRev!K13 -> 0 | Z13: =Est2020DistRev!L13 -> 0 | AA13: =Est2020DistRev!M13 -> 0 | AB13: =Est2020DistRev!N13 -> 0 | AC13: =Est2020DistRev!O13 -> 0 | AD13: =Est2020DistRev!P13 -> 0 | AF13: 22324.88116 | AH13: 62052089.6 | AI13: 57192232.73 | AT13: 3125483.362 | AU13: 0 | AV13: 5187554.69 | AW13: 1023740.966 | AX13: 0 | AY13: 0 | AZ13: 0 | BA13: 0 | BB13: 0 | BC13: 0 | BD13: 0 | BE13: 0 | BF13: 0 | BG13: 9336779.018 | BI13: 3125483.362 | BJ13: 0 | BK13: 6087309.989 | BL13: 1275386.79 | BM13: 0 | BN13: 0 | BO13: 0 | BP13: 0 | BQ13: 0 | BR13: 0 | BS13: 0 | BT13: 0 | BU13: 0 | BV13: 10488180.14
A14: D2DK | B14: Docklands Two Rate 5d | C14: Docklands Two Rate 5d | D14: 140 | E14: 0 | F14: 8.36 | G14: 1.79 | H14: 0 | I14: 0 | J14: 0 | K14: 0 | L14: 0 | M14: 0 | N14: 0 | O14: 0 | P14: 0 | R14: =Est2020DistRev!D14 -> 140 | S14: =Est2020DistRev!E14 -> 0 | T14: =Est2020DistRev!F14 -> 9.81 | U14: =Est2020DistRev!G14 -> 2.07 | V14: =Est2020DistRev!H14 -> 0 | W14: =Est2020DistRev!I14 -> 0 | X14: =Est2020DistRev!J14 -> 0 | Y14: =Est2020DistRev!K14 -> 0 | Z14: =Est2020DistRev!L14 -> 0 | AA14: =Est2020DistRev!M14 -> 0 | AB14: =Est2020DistRev!N14 -> 0 | AC14: =Est2020DistRev!O14 -> 0 | AD14: =Est2020DistRev!P14 -> 0 | AF14: 289.9641147 | AH14: 920600.0654 | AI14: 857632.5517 | AT14: 40594.97605 | AU14: 0 | AV14: 76962.16546 | AW14: 15351.62268 | AX14: 0 | AY14: 0 | AZ14: 0 | BA14: 0 | BB14: 0 | BC14: 0 | BD14: 0 | BE14: 0 | BF14: 0 | BG14: 132908.7642 | BI14: 40594.97605 | BJ14: 0 | BK14: 90310.86641 | BL14: 17752.99382 | BM14: 0 | BN14: 0 | BO14: 0 | BP14: 0 | BQ14: 0 | BR14: 0 | BS14: 0 | BT14: 0 | BU14: 0 | BV14: 148658.8363
A15: D3 | B15: Residential Interval | C15: Residential Interval | D15: 140 | E15: 0 | F15: 8.36 | G15: 1.79 | H15: 0 | I15: 0 | J15: 0 | K15: 0 | L15: 0 | M15: 0 | N15: 0 | O15: 0 | P15: 0 | R15: =Est2020DistRev!D15 -> 140 | S15: =Est2020DistRev!E15 -> 0 | T15: =Est2020DistRev!F15 -> 9.81 | U15: =Est2020DistRev!G15 -> 2.23 | V15: =Est2020DistRev!H15 -> 0 | W15: =Est2020DistRev!I15 -> 0 | X15: =Est2020DistRev!J15 -> 0 | Y15: =Est2020DistRev!K15 -> 0 | Z15: =Est2020DistRev!L15 -> 0 | AA15: =Est2020DistRev!M15 -> 0 | AB15: =Est2020DistRev!N15 -> 0 | AC15: =Est2020DistRev!O15 -> 0 | AD15: =Est2020DistRev!P15 -> 0 | AF15: 53700.62898 | AH15: 125119939 | AI15: 131491852.8 | AT15: 7518088.057 | AU15: 0 | AV15: 10460026.9 | AW15: 2353704.165 | AX15: 0 | AY15: 0 | AZ15: 0 | BA15: 0 | BB15: 0 | BC15: 0 | BD15: 0 | BE15: 0 | BF15: 0 | BG15: 20331819.12 | BI15: 7518088.057 | BJ15: 0 | BK15: 12274266.02 | BL15: 2932268.318 | BM15: 0 | BN15: 0 | BO15: 0 | BP15: 0 | BQ15: 0 | BR15: 0 | BS15: 0 | BT15: 0 | BU15: 0 | BV15: 22724622.39
A16: D2OP | B16: Residential Two Rate 5d - controlled load | C16: Residential Two Rate 5d - controlled load | D16: 0 | E16: 0 | F16: 0 | G16: 0 | H16: 0 | I16: 0 | J16: 0 | K16: 0 | L16: 0 | M16: 0 | N16: 0 | O16: 0 | P16: 0 | R16: =Est2020DistRev!D16 -> 0 | S16: =Est2020DistRev!E16 -> 0 | T16: =Est2020DistRev!F16 -> 0 | U16: =Est2020DistRev!G16 -> 0 | V16: =Est2020DistRev!H16 -> 0 | W16: =Est2020DistRev!I16 -> 0 | X16: =Est2020DistRev!J16 -> 0 | Y16: =Est2020DistRev!K16 -> 0 | Z16: =Est2020DistRev!L16 -> 0 | AA16: =Est2020DistRev!M16 -> 0 | AB16: =Est2020DistRev!N16 -> 0 | AC16: =Est2020DistRev!O16 -> 0 | AD16: =Est2020DistRev!P16 -> 0 | AF16: 0 | AH16: 0 | AI16: 0 | AT16: 0 | AU16: 0 | AV16: 0 | AW16: 0 | AX16: 0 | AY16: 0 | AZ16: 0 | BA16: 0 | BB16: 0 | BC16: 0 | BD16: 0 | BE16: 0 | BF16: 0 | BG16: 0 | BI16: 0 | BJ16: 0 | BK16: 0 | BL16: 0 | BM16: 0 | BN16: 0 | BO16: 0 | BP16: 0 | BQ16: 0 | BR16: 0 | BS16: 0 | BT16: 0 | BU16: 0 | BV16: 0
A17: D2DKOP | B17: Docklands Two Rate 5d - controlled load | C17: Docklands Two Rate 5d - controlled load | D17: 0 | E17: 0 | F17: 0 | G17: 0 | H17: 0 | I17: 0 | J17: 0 | K17: 0 | L17: 0 | M17: 0 | N17: 0 | O17: 0 | P17: 0 | R17: =Est2020DistRev!D17 -> 0 | S17: =Est2020DistRev!E17 -> 0 | T17: =Est2020DistRev!F17 -> 0 | U17: =Est2020DistRev!G17 -> 0 | V17: =Est2020DistRev!H17 -> 0 | W17: =Est2020DistRev!I17 -> 0 | X17: =Est2020DistRev!J17 -> 0 | Y17: =Est2020DistRev!K17 -> 0 | Z17: =Est2020DistRev!L17 -> 0 | AA17: =Est2020DistRev!M17 -> 0 | AB17: =Est2020DistRev!N17 -> 0 | AC17: =Est2020DistRev!O17 -> 0 | AD17: =Est2020DistRev!P17 -> 0 | AF17: 0 | AH17: 0 | AI17: 0 | AT17: 0 | AU17: 0 | AV17: 0 | AW17: 0 | AX17: 0 | AY17: 0 | AZ17: 0 | BA17: 0 | BB17: 0 | BC17: 0 | BD17: 0 | BE17: 0 | BF17: 0 | BG17: 0 | BI17: 0 | BJ17: 0 | BK17: 0 | BL17: 0 | BM17: 0 | BN17: 0 | BO17: 0 | BP17: 0 | BQ17: 0 | BR17: 0 | BS17: 0 | BT17: 0 | BU17: 0 | BV17: 0
A18: DD1 | B18: Dedicated circuit | C18: Dedicated circuit | D18: 0 | E18: 0 | F18: 0 | G18: 1.29 | H18: 0 | I18: 0 | J18: 0 | K18: 0 | L18: 0 | M18: 0 | N18: 0 | O18: 0 | P18: 0 | R18: =Est2020DistRev!D18 -> 0 | S18: =Est2020DistRev!E18 -> 0 | T18: =Est2020DistRev!F18 -> 0 | U18: =Est2020DistRev!G18 -> 1.57 | V18: =Est2020DistRev!H18 -> 0 | W18: =Est2020DistRev!I18 -> 0 | X18: =Est2020DistRev!J18 -> 0 | Y18: =Est2020DistRev!K18 -> 0 | Z18: =Est2020DistRev!L18 -> 0 | AA18: =Est2020DistRev!M18 -> 0 | AB18: =Est2020DistRev!N18 -> 0 | AC18: =Est2020DistRev!O18 -> 0 | AD18: =Est2020DistRev!P18 -> 0 | AF18: 103127.4205 | AH18: 0 | AI18: 156754447.1 | AT18: 0 | AU18: 0 | AV18: 0 | AW18: 2022132.368 | AX18: 0 | AY18: 0 | AZ18: 0 | BA18: 0 | BB18: 0 | BC18: 0 | BD18: 0 | BE18: 0 | BF18: 0 | BG18: 2022132.368 | BI18: 0 | BJ18: 0 | BK18: 0 | BL18: 2461044.82 | BM18: 0 | BN18: 0 | BO18: 0 | BP18: 0 | BQ18: 0 | BR18: 0 | BS18: 0 | BT18: 0 | BU18: 0 | BV18: 2461044.82
A19: D3HW | B19: Hot Water Interval | C19: Hot Water Interval | D19: 0 | E19: 0 | F19: 0 | G19: 0 | H19: 0 | I19: 0 | J19: 0 | K19: 0 | L19: 0 | M19: 0 | N19: 0 | O19: 0 | P19: 0 | R19: =Est2020DistRev!D19 -> 0 | S19: =Est2020DistRev!E19 -> 0 | T19: =Est2020DistRev!F19 -> 0 | U19: =Est2020DistRev!G19 -> 0 | V19: =Est2020DistRev!H19 -> 0 | W19: =Est2020DistRev!I19 -> 0 | X19: =Est2020DistRev!J19 -> 0 | Y19: =Est2020DistRev!K19 -> 0 | Z19: =Est2020DistRev!L19 -> 0 | AA19: =Est2020DistRev!M19 -> 0 | AB19: =Est2020DistRev!N19 -> 0 | AC19: =Est2020DistRev!O19 -> 0 | AD19: =Est2020DistRev!P19 -> 0 | AF19: 0 | AH19: 0 | AI19: 0 | AT19: 0 | AU19: 0 | AV19: 0 | AW19: 0 | AX19: 0 | AY19: 0 | AZ19: 0 | BA19: 0 | BB19: 0 | BC19: 0 | BD19: 0 | BE19: 0 | BF19: 0 | BG19: 0 | BI19: 0 | BJ19: 0 | BK19: 0 | BL19: 0 | BM19: 0 | BN19: 0 | BO19: 0 | BP19: 0 | BQ19: 0 | BR19: 0 | BS19: 0 | BT19: 0 | BU19: 0 | BV19: 0
A20: DD | B20: Residential Demand | C20: Residential Demand | D20: 140 | E20: 1.79 | F20: 0 | G20: 0 | H20: 0 | I20: 6.05 | J20: 1.98 | K20: 0 | L20: 0 | M20: 0 | N20: 0 | O20: 0 | P20: 0 | R20: =Est2020DistRev!D20 -> 140 | S20: =Est2020DistRev!E20 -> 2.44 | T20: =Est2020DistRev!F20 -> 0 | U20: =Est2020DistRev!G20 -> 0 | V20: =Est2020DistRev!H20 -> 0 | W20: =Est2020DistRev!I20 -> 8.19 | X20: =Est2020DistRev!J20 -> 2.73 | Y20: =Est2020DistRev!K20 -> 0 | Z20: =Est2020DistRev!L20 -> 0 | AA20: =Est2020DistRev!M20 -> 0 | AB20: =Est2020DistRev!N20 -> 0 | AC20: =Est2020DistRev!O20 -> 0 | AD20: =Est2020DistRev!P20 -> 0 | AF20: 5.034482759 | AG20: 12371.84712 | AK20: 88.60689655 | AL20: 90.11724138 | AT20: 704.8275862 | AU20: 221.4560635 | AV20: 0 | AW20: 0 | AX20: 0 | AY20: 536.0717241 | AZ20: 178.4321379 | BA20: 0 | BB20: 0 | BC20: 0 | BD20: 0 | BE20: 0 | BF20: 0 | BG20: 1640.787512 | BI20: 704.8275862 | BJ20: 301.8730698 | BK20: 0 | BL20: 0 | BM20: 0 | BN20: 725.6904828 | BO20: 246.020069 | BP20: 0 | BQ20: 0 | BR20: 0 | BS20: 0 | BT20: 0 | BU20: 0 | BV20: 1978.411208
A21: DDNEW | B21: Newstead Residential Trial | C21: Newstead Residential Trial | D21: 365 | E21: 0 | F21: 0 | G21: 0 | H21: 0 | I21: 0 | J21: 0 | K21: 0 | L21: 0 | M21: 0 | N21: 0 | O21: 0 | P21: 0 | R21: =Est2020DistRev!D21 -> 390 | S21: =Est2020DistRev!E21 -> 0 | T21: =Est2020DistRev!F21 -> 0 | U21: =Est2020DistRev!G21 -> 0 | V21: =Est2020DistRev!H21 -> 0 | W21: =Est2020DistRev!I21 -> 1.64 | X21: =Est2020DistRev!J21 -> 1.64 | Y21: =Est2020DistRev!K21 -> 0 | Z21: =Est2020DistRev!L21 -> 0 | AA21: =Est2020DistRev!M21 -> 0 | AB21: =Est2020DistRev!N21 -> 0 | AC21: =Est2020DistRev!O21 -> 0 | AD21: =Est2020DistRev!P21 -> 0 | AF21: 2.483940954 | AG21: 10727.22847 | AK21: 42.69454526 | AL21: 45.51974449 | AT21: 906.6384481 | AU21: 0 | AV21: 0 | AW21: 0 | AX21: 0 | AY21: 0 | AZ21: 0 | BA21: 0 | BB21: 0 | BC21: 0 | BD21: 0 | BE21: 0 | BF21: 0 | BG21: 906.6384481 | BI21: 968.7369719 | BJ21: 0 | BK21: 0 | BL21: 0 | BM21: 0 | BN21: 70.01905423 | BO21: 74.65238096 | BP21: 0 | BQ21: 0 | BR21: 0 | BS21: 0 | BT21: 0 | BU21: 0 | BV21: 1113.408407
A22: ND1 | B22: Non-Residential Single Rate | C22: Non-Residential Single Rate | D22: 180 | E22: 6.24 | F22: 0 | G22: 0 | H22: 0 | I22: 0 | J22: 0 | K22: 0 | L22: 0 | M22: 0 | N22: 0 | O22: 0 | P22: 0 | R22: =Est2020DistRev!D22 -> 180 | S22: =Est2020DistRev!E22 -> 7.15 | T22: =Est2020DistRev!F22 -> 0 | U22: =Est2020DistRev!G22 -> 0 | V22: =Est2020DistRev!H22 -> 0 | W22: =Est2020DistRev!I22 -> 0 | X22: =Est2020DistRev!J22 -> 0 | Y22: =Est2020DistRev!K22 -> 0 | Z22: =Est2020DistRev!L22 -> 0 | AA22: =Est2020DistRev!M22 -> 0 | AB22: =Est2020DistRev!N22 -> 0 | AC22: =Est2020DistRev!O22 -> 0 | AD22: =Est2020DistRev!P22 -> 0 | AF22: 22587.86724 | AG22: 154078537.7 | AT22: 4065816.103 | AU22: 9614500.755 | AV22: 0 | AW22: 0 | AX22: 0 | AY22: 0 | AZ22: 0 | BA22: 0 | BB22: 0 | BC22: 0 | BD22: 0 | BE22: 0 | BF22: 0 | BG22: 13680316.86 | BI22: 4065816.103 | BJ22: 11016615.45 | BK22: 0 | BL22: 0 | BM22: 0 | BN22: 0 | BO22: 0 | BP22: 0 | BQ22: 0 | BR22: 0 | BS22: 0 | BT22: 0 | BU22: 0 | BV22: 15082431.55
A23: P14G | B23: Non-Residential Flexible Pricing | C23: Non-Residential Flexible Pricing | D23: 180 | E23: 0 | F23: 0 | G23: 0 | H23: 0 | I23: 0 | J23: 0 | K23: 9.76 | L23: 3.38 | M23: 1.8 | N23: 9.76 | O23: 3.38 | P23: 1.8 | R23: =Est2020DistRev!D23 -> 180 | S23: =Est2020DistRev!E23 -> 0 | T23: =Est2020DistRev!F23 -> 0 | U23: =Est2020DistRev!G23 -> 0 | V23: =Est2020DistRev!H23 -> 0 | W23: =Est2020DistRev!I23 -> 0 | X23: =Est2020DistRev!J23 -> 0 | Y23: =Est2020DistRev!K23 -> 11.62 | Z23: =Est2020DistRev!L23 -> 3.6 | AA23: =Est2020DistRev!M23 -> 2.73 | AB23: =Est2020DistRev!N23 -> 11.62 | AC23: =Est2020DistRev!O23 -> 3.6 | AD23: =Est2020DistRev!P23 -> 2.73 | AF23: 93.52250958 | AM23: 309561.5322 | AN23: 115187.5359 | AO23: 330858.8668 | AP23: 563923.8396 | AQ23: 209835.4955 | AR23: 602720.8911 | AT23: 16834.05172 | AU23: 0 | AV23: 0 | AW23: 0 | AX23: 0 | AY23: 0 | AZ23: 0 | BA23: 30213.20554 | BB23: 3893.338712 | BC23: 5955.459602 | BD23: 55038.96675 | BE23: 7092.439749 | BF23: 10848.97604 | BG23: 129876.4381 | BI23: 16834.05172 | BJ23: 0 | BK23: 0 | BL23: 0 | BM23: 0 | BN23: 0 | BO23: 0 | BP23: 35971.05004 | BQ23: 4146.751291 | BR23: 9032.447063 | BS23: 65527.95017 | BT23: 7554.077839 | BU23: 16454.28033 | BV23: 155520.6084
A24: ND2 | B24: Non-Residential Two Rate 5d | C24: Non-Residential Two Rate 5d | D24: 180 | E24: 0 | F24: 10.93 | G24: 2.5 | H24: 0 | I24: 0 | J24: 0 | K24: 0 | L24: 0 | M24: 0 | N24: 0 | O24: 0 | P24: 0 | R24: =Est2020DistRev!D24 -> 180 | S24: =Est2020DistRev!E24 -> 0 | T24: =Est2020DistRev!F24 -> 11.76 | U24: =Est2020DistRev!G24 -> 2.62 | V24: =Est2020DistRev!H24 -> 0 | W24: =Est2020DistRev!I24 -> 0 | X24: =Est2020DistRev!J24 -> 0 | Y24: =Est2020DistRev!K24 -> 0 | Z24: =Est2020DistRev!L24 -> 0 | AA24: =Est2020DistRev!M24 -> 0 | AB24: =Est2020DistRev!N24 -> 0 | AC24: =Est2020DistRev!O24 -> 0 | AD24: =Est2020DistRev!P24 -> 0 | AF24: 11552.234 | AH24: 94897630.64 | AI24: 84219055.8 | AM24: =Est2020DistRev!Y24/2 -> 0 | AN24: =Est2020DistRev!Z24/2 -> 0 | AO24: =Est2020DistRev!AA24/2 -> 0 | AP24: =Est2020DistRev!AB24/2 -> 0 | AQ24: =Est2020DistRev!AC24/2 -> 0 | AR24: =Est2020DistRev!AD24/2 -> 0 | AT24: 2079402.121 | AU24: 0 | AV24: 10372311.03 | AW24: 2105476.395 | AX24: 0 | AY24: 0 | AZ24: 0 | BA24: 0 | BB24: 0 | BC24: 0 | BD24: 0 | BE24: 0 | BF24: 0 | BG24: 14557189.54 | BI24: 2079402.121 | BJ24: 0 | BK24: 11159961.36 | BL24: 2206539.262 | BM24: 0 | BN24: 0 | BO24: 0 | BP24: 0 | BQ24: 0 | BR24: 0 | BS24: 0 | BT24: 0 | BU24: 0 | BV24: 15445902.75
A25: ND5 | B25: Non-Residential Interval | C25: Non-Residential Interval | D25: 180 | E25: 0 | F25: 10.93 | G25: 2.5 | H25: 0 | I25: 0 | J25: 0 | K25: 0 | L25: 0 | M25: 0 | N25: 0 | O25: 0 | P25: 0 | R25: =Est2020DistRev!D25 -> 180 | S25: =Est2020DistRev!E25 -> 0 | T25: =Est2020DistRev!F25 -> 11.76 | U25: =Est2020DistRev!G25 -> 2.62 | V25: =Est2020DistRev!H25 -> 0 | W25: =Est2020DistRev!I25 -> 0 | X25: =Est2020DistRev!J25 -> 0 | Y25: =Est2020DistRev!K25 -> 0 | Z25: =Est2020DistRev!L25 -> 0 | AA25: =Est2020DistRev!M25 -> 0 | AB25: =Est2020DistRev!N25 -> 0 | AC25: =Est2020DistRev!O25 -> 0 | AD25: =Est2020DistRev!P25 -> 0 | AF25: 5873.824713 | AH25: 43789013.77 | AI25: 31927339.78 | AM25: =Est2020DistRev!Y25/2 -> 0 | AN25: =Est2020DistRev!Z25/2 -> 0 | AO25: =Est2020DistRev!AA25/2 -> 0 | AP25: =Est2020DistRev!AB25/2 -> 0 | AQ25: =Est2020DistRev!AC25/2 -> 0 | AR25: =Est2020DistRev!AD25/2 -> 0 | AT25: 1057288.448 | AU25: 0 | AV25: 4786139.205 | AW25: 798183.4944 | AX25: 0 | AY25: 0 | AZ25: 0 | BA25: 0 | BB25: 0 | BC25: 0 | BD25: 0 | BE25: 0 | BF25: 0 | BG25: 6641611.147 | BI25: 1057288.448 | BJ25: 0 | BK25: 5149588.019 | BL25: 836496.3022 | BM25: 0 | BN25: 0 | BO25: 0 | BP25: 0 | BQ25: 0 | BR25: 0 | BS25: 0 | BT25: 0 | BU25: 0 | BV25: 7043372.769
A26: ND3 | B26: Non-Residential Two Rate 7d | C26: Non-Residential Two Rate 7d | D26: 180 | E26: 0 | F26: 10.42 | G26: 2.5 | H26: 0 | I26: 0 | J26: 0 | K26: 0 | L26: 0 | M26: 0 | N26: 0 | O26: 0 | P26: 0 | R26: =Est2020DistRev!D26 -> 180 | S26: =Est2020DistRev!E26 -> 0 | T26: =Est2020DistRev!F26 -> 10.37 | U26: =Est2020DistRev!G26 -> 2.62 | V26: =Est2020DistRev!H26 -> 0 | W26: =Est2020DistRev!I26 -> 0 | X26: =Est2020DistRev!J26 -> 0 | Y26: =Est2020DistRev!K26 -> 0 | Z26: =Est2020DistRev!L26 -> 0 | AA26: =Est2020DistRev!M26 -> 0 | AB26: =Est2020DistRev!N26 -> 0 | AC26: =Est2020DistRev!O26 -> 0 | AD26: =Est2020DistRev!P26 -> 0 | AF26: 3347.528257 | AH26: 25991313.89 | AI26: 10067551.62 | AM26: =Est2020DistRev!Y26/2 -> 0 | AN26: =Est2020DistRev!Z26/2 -> 0 | AO26: =Est2020DistRev!AA26/2 -> 0 | AP26: =Est2020DistRev!AB26/2 -> 0 | AQ26: =Est2020DistRev!AC26/2 -> 0 | AR26: =Est2020DistRev!AD26/2 -> 0 | AT26: 602555.0862 | AU26: 0 | AV26: 2708294.908 | AW26: 251688.7906 | AX26: 0 | AY26: 0 | AZ26: 0 | BA26: 0 | BB26: 0 | BC26: 0 | BD26: 0 | BE26: 0 | BF26: 0 | BG26: 3562538.785 | BI26: 602555.0862 | BJ26: 0 | BK26: 2695299.251 | BL26: 263769.8525 | BM26: 0 | BN26: 0 | BO26: 0 | BP26: 0 | BQ26: 0 | BR26: 0 | BS26: 0 | BT26: 0 | BU26: 0 | BV26: 3561624.19
A27: NDD | B27: Non-Residential Demand | C27: Non-Residential Demand | D27: 180 | E27: 2.65 | F27: 0 | G27: 0 | H27: 0 | I27: 12.63 | J27: 4.54 | K27: 0 | L27: 0 | M27: 0 | N27: 0 | O27: 0 | P27: 0 | R27: =Est2020DistRev!D27 -> 180 | S27: =Est2020DistRev!E27 -> 3.37 | T27: =Est2020DistRev!F27 -> 0 | U27: =Est2020DistRev!G27 -> 0 | V27: =Est2020DistRev!H27 -> 0 | W27: =Est2020DistRev!I27 -> 12.72 | X27: =Est2020DistRev!J27 -> 4.24 | Y27: =Est2020DistRev!K27 -> 0 | Z27: =Est2020DistRev!L27 -> 0 | AA27: =Est2020DistRev!M27 -> 0 | AB27: =Est2020DistRev!N27 -> 0 | AC27: =Est2020DistRev!O27 -> 0 | AD27: =Est2020DistRev!P27 -> 0 | AF27: 50.40867816 | AG27: 2196450.819 | AK27: 1125.028898 | AL27: 1183.049489 | AM27: =Est2020DistRev!Y27/2 -> 0 | AN27: =Est2020DistRev!Z27/2 -> 0 | AO27: =Est2020DistRev!AA27/2 -> 0 | AP27: =Est2020DistRev!AB27/2 -> 0 | AQ27: =Est2020DistRev!AC27/2 -> 0 | AR27: =Est2020DistRev!AD27/2 -> 0 | AT27: 9073.562069 | AU27: 58205.94671 | AV27: 0 | AW27: 0 | AX27: 0 | AY27: 14209.11498 | AZ27: 5371.044678 | BA27: 0 | BB27: 0 | BC27: 0 | BD27: 0 | BE27: 0 | BF27: 0 | BG27: 86859.66843 | BI27: 9073.562069 | BJ27: 74020.39261 | BK27: 0 | BL27: 0 | BM27: 0 | BN27: 14310.36758 | BO27: 5016.129831 | BP27: 0 | BQ27: 0 | BR27: 0 | BS27: 0 | BT27: 0 | BU27: 0 | BV27: 102420.4521
A28: NDM | B28: Medium business Demand | C28: Medium business Demand | D28: 1200 | E28: 0 | F28: 2.62 | G28: 2.62 | H28: 0 | I28: 12.06 | J28: 6.03 | K28: 0 | L28: 0 | M28: 0 | N28: 0 | O28: 0 | P28: 0 | R28: =Est2020DistRev!D28 -> 1200 | S28: =Est2020DistRev!E28 -> 0 | T28: =Est2020DistRev!F28 -> 3.33 | U28: =Est2020DistRev!G28 -> 3.33 | V28: =Est2020DistRev!H28 -> 0 | W28: =Est2020DistRev!I28 -> 11.92 | X28: =Est2020DistRev!J28 -> 5.95 | Y28: =Est2020DistRev!K28 -> 0 | Z28: =Est2020DistRev!L28 -> 0 | AA28: =Est2020DistRev!M28 -> 0 | AB28: =Est2020DistRev!N28 -> 0 | AC28: =Est2020DistRev!O28 -> 0 | AD28: =Est2020DistRev!P28 -> 0 | AF28: 3653.553089 | AH28: 245653226.1 | AI28: 217058308.2 | AK28: 1000553.748 | AL28: 878208.9101 | AM28: =Est2020DistRev!Y28/2 -> 0 | AN28: =Est2020DistRev!Z28/2 -> 0 | AO28: =Est2020DistRev!AA28/2 -> 0 | AP28: =Est2020DistRev!AB28/2 -> 0 | AQ28: =Est2020DistRev!AC28/2 -> 0 | AR28: =Est2020DistRev!AD28/2 -> 0 | AT28: 4384263.707 | AU28: 0 | AV28: 6436114.524 | AW28: 5686927.675 | AX28: 0 | AY28: 12066678.2 | AZ28: 5295599.728 | BA28: 0 | BB28: 0 | BC28: 0 | BD28: 0 | BE28: 0 | BF28: 0 | BG28: 33869583.84 | BI28: 4384263.707 | BJ28: 0 | BK28: 8180252.429 | BL28: 7228041.664 | BM28: 0 | BN28: 11926600.68 | BO28: 5225343.015 | BP28: 0 | BQ28: 0 | BR28: 0 | BS28: 0 | BT28: 0 | BU28: 0 | BV28: 36944501.49
A29: NDMO | B29: Medium business Opt-out | C29: Medium business Opt-out | D29: 1200 | E29: 0 | F29: 8.84 | G29: 2.82 | H29: 0 | I29: 0 | J29: 0 | K29: 0 | L29: 0 | M29: 0 | N29: 0 | O29: 0 | P29: 0 | R29: =Est2020DistRev!D29 -> 1200 | S29: =Est2020DistRev!E29 -> 0 | T29: =Est2020DistRev!F29 -> 12.32 | U29: =Est2020DistRev!G29 -> 3.96 | V29: =Est2020DistRev!H29 -> 0 | W29: =Est2020DistRev!I29 -> 0 | X29: =Est2020DistRev!J29 -> 0 | Y29: =Est2020DistRev!K29 -> 0 | Z29: =Est2020DistRev!L29 -> 0 | AA29: =Est2020DistRev!M29 -> 0 | AB29: =Est2020DistRev!N29 -> 0 | AC29: =Est2020DistRev!O29 -> 0 | AD29: =Est2020DistRev!P29 -> 0 | AF29: 78.73132184 | AH29: 3442426.065 | AI29: 2572566.693 | AM29: =Est2020DistRev!Y29/2 -> 0 | AN29: =Est2020DistRev!Z29/2 -> 0 | AO29: =Est2020DistRev!AA29/2 -> 0 | AP29: =Est2020DistRev!AB29/2 -> 0 | AQ29: =Est2020DistRev!AC29/2 -> 0 | AR29: =Est2020DistRev!AD29/2 -> 0 | AT29: 94477.58621 | AU29: 0 | AV29: 304310.4642 | AW29: 72546.38075 | AX29: 0 | AY29: 0 | AZ29: 0 | BA29: 0 | BB29: 0 | BC29: 0 | BD29: 0 | BE29: 0 | BF29: 0 | BG29: 471334.4311 | BI29: 94477.58621 | BJ29: 0 | BK29: 424106.8912 | BL29: 101873.6411 | BM29: 0 | BN29: 0 | BO29: 0 | BP29: 0 | BQ29: 0 | BR29: 0 | BS29: 0 | BT29: 0 | BU29: 0 | BV29: 620458.1185
A30: PL2 | B30: Public Lighting | C30: Public Lighting | D30: 0 | E30: 0 | F30: 14.94 | G30: 4.66 | H30: 0 | I30: 0 | J30: 0 | K30: 0 | L30: 0 | M30: 0 | N30: 0 | O30: 0 | P30: 0 | R30: =Est2020DistRev!D30 -> 0 | S30: =Est2020DistRev!E30 -> 0 | T30: =Est2020DistRev!F30 -> 16.18 | U30: =Est2020DistRev!G30 -> 4.88 | V30: =Est2020DistRev!H30 -> 0 | W30: =Est2020DistRev!I30 -> 0 | X30: =Est2020DistRev!J30 -> 0 | Y30: =Est2020DistRev!K30 -> 0 | Z30: =Est2020DistRev!L30 -> 0 | AA30: =Est2020DistRev!M30 -> 0 | AB30: =Est2020DistRev!N30 -> 0 | AC30: =Est2020DistRev!O30 -> 0 | AD30: =Est2020DistRev!P30 -> 0 | AF30: 4298.458904 | AH30: 10667979.55 | AI30: 26936106.36 | AM30: =Est2020DistRev!Y30/2 -> 0 | AN30: =Est2020DistRev!Z30/2 -> 0 | AO30: =Est2020DistRev!AA30/2 -> 0 | AP30: =Est2020DistRev!AB30/2 -> 0 | AQ30: =Est2020DistRev!AC30/2 -> 0 | AR30: =Est2020DistRev!AD30/2 -> 0 | AT30: 0 | AU30: 0 | AV30: 1593796.145 | AW30: 1255222.556 | AX30: 0 | AY30: 0 | AZ30: 0 | BA30: 0 | BB30: 0 | BC30: 0 | BD30: 0 | BE30: 0 | BF30: 0 | BG30: 2849018.701 | BI30: 0 | BJ30: 0 | BK30: 1726079.091 | BL30: 1314481.99 | BM30: 0 | BN30: 0 | BO30: 0 | BP30: 0 | BQ30: 0 | BR30: 0 | BS30: 0 | BT30: 0 | BU30: 0 | BV30: 3040561.082
A31: LLV | B31: Large low Voltage | C31: Large low Voltage | D31: 8000 | E31: 0 | F31: 1.78 | G31: 1.17 | H31: 95.07 | I31: 0 | J31: 0 | K31: 0 | L31: 0 | M31: 0 | N31: 0 | O31: 0 | P31: 0 | R31: =Est2020DistRev!D31 -> 8800 | S31: =Est2020DistRev!E31 -> 0 | T31: =Est2020DistRev!F31 -> 3.33 | U31: =Est2020DistRev!G31 -> 1.61 | V31: =Est2020DistRev!H31 -> 93.59 | W31: =Est2020DistRev!I31 -> 0 | X31: =Est2020DistRev!J31 -> 0 | Y31: =Est2020DistRev!K31 -> 0 | Z31: =Est2020DistRev!L31 -> 0 | AA31: =Est2020DistRev!M31 -> 0 | AB31: =Est2020DistRev!N31 -> 0 | AC31: =Est2020DistRev!O31 -> 0 | AD31: =Est2020DistRev!P31 -> 0 | AF31: 1479.782629 | AH31: 689204400.8 | AI31: 541411407.3 | AJ31: 435439.347 | AM31: =Est2020DistRev!Y31/2 -> 0 | AN31: =Est2020DistRev!Z31/2 -> 0 | AO31: =Est2020DistRev!AA31/2 -> 0 | AP31: =Est2020DistRev!AB31/2 -> 0 | AQ31: =Est2020DistRev!AC31/2 -> 0 | AR31: =Est2020DistRev!AD31/2 -> 0 | AT31: 11838261.03 | AU31: 0 | AV31: 12267838.33 | AW31: 6334513.465 | AX31: 41397218.72 | AY31: 0 | AZ31: 0 | BA31: 0 | BB31: 0 | BC31: 0 | BD31: 0 | BE31: 0 | BF31: 0 | BG31: 71837831.55 | BI31: 13022087.13 | BJ31: 0 | BK31: 22950506.55 | BL31: 8716723.657 | BM31: 40752768.49 | BN31: 0 | BO31: 0 | BP31: 0 | BQ31: 0 | BR31: 0 | BS31: 0 | BT31: 0 | BU31: 0 | BV31: 85442085.82
A32: HV | B32: High Voltage | C32: High Voltage | D32: 42000 | E32: 0 | F32: 0.42 | G32: 0.17 | H32: 63.22 | I32: 0 | J32: 0 | K32: 0 | L32: 0 | M32: 0 | N32: 0 | O32: 0 | P32: 0 | R32: =Est2020DistRev!D32 -> 49600 | S32: =Est2020DistRev!E32 -> 0 | T32: =Est2020DistRev!F32 -> 1.6 | U32: =Est2020DistRev!G32 -> 0.61 | V32: =Est2020DistRev!H32 -> 57.44 | W32: =Est2020DistRev!I32 -> 0 | X32: =Est2020DistRev!J32 -> 0 | Y32: =Est2020DistRev!K32 -> 0 | Z32: =Est2020DistRev!L32 -> 0 | AA32: =Est2020DistRev!M32 -> 0 | AB32: =Est2020DistRev!N32 -> 0 | AC32: =Est2020DistRev!O32 -> 0 | AD32: =Est2020DistRev!P32 -> 0 | AF32: 90.4582859 | AH32: 388330933.4 | AI32: 353671693.6 | AJ32: 208522.6622 | AM32: =Est2020DistRev!Y32/2 -> 0 | AN32: =Est2020DistRev!Z32/2 -> 0 | AO32: =Est2020DistRev!AA32/2 -> 0 | AP32: =Est2020DistRev!AB32/2 -> 0 | AQ32: =Est2020DistRev!AC32/2 -> 0 | AR32: =Est2020DistRev!AD32/2 -> 0 | AT32: 3799248.008 | AU32: 0 | AV32: 1630989.92 | AW32: 601241.8791 | AX32: 13182802.7 | AY32: 0 | AZ32: 0 | BA32: 0 | BB32: 0 | BC32: 0 | BD32: 0 | BE32: 0 | BF32: 0 | BG32: 19214282.51 | BI32: 4486730.98 | BJ32: 0 | BK32: 6213294.935 | BL32: 2157397.331 | BM32: 11977541.72 | BN32: 0 | BO32: 0 | BP32: 0 | BQ32: 0 | BR32: 0 | BS32: 0 | BT32: 0 | BU32: 0 | BV32: 24834964.96
A33: HVD | B33: High Voltage Docklands | C33: High Voltage Docklands | D33: 42000 | E33: 0 | F33: 0.42 | G33: 0.17 | H33: 63.22 | I33: 0 | J33: 0 | K33: 0 | L33: 0 | M33: 0 | N33: 0 | O33: 0 | P33: 0 | R33: =Est2020DistRev!D33 -> 45300 | S33: =Est2020DistRev!E33 -> 0 | T33: =Est2020DistRev!F33 -> 1.49 | U33: =Est2020DistRev!G33 -> 0.58 | V33: =Est2020DistRev!H33 -> 54.12 | W33: =Est2020DistRev!I33 -> 0 | X33: =Est2020DistRev!J33 -> 0 | Y33: =Est2020DistRev!K33 -> 0 | Z33: =Est2020DistRev!L33 -> 0 | AA33: =Est2020DistRev!M33 -> 0 | AB33: =Est2020DistRev!N33 -> 0 | AC33: =Est2020DistRev!O33 -> 0 | AD33: =Est2020DistRev!P33 -> 0 | AE33: =Est2020DistRev!Q33 -> 0 | AF33: 3.856273503 | AH33: 55564703.12 | AI33: 58240508.05 | AJ33: 25021.29077 | AM33: =Est2020DistRev!Y33/2 -> 0 | AN33: =Est2020DistRev!Z33/2 -> 0 | AO33: =Est2020DistRev!AA33/2 -> 0 | AP33: =Est2020DistRev!AB33/2 -> 0 | AQ33: =Est2020DistRev!AC33/2 -> 0 | AR33: =Est2020DistRev!AD33/2 -> 0 | AT33: 161963.4871 | AU33: 0 | AV33: 233371.7531 | AW33: 99008.86369 | AX33: 1581846.003 | AY33: 0 | AZ33: 0 | BA33: 0 | BB33: 0 | BC33: 0 | BD33: 0 | BE33: 0 | BF33: 0 | BG33: 2076190.107 | BI33: 174689.1897 | BJ33: 0 | BK33: 827914.0765 | BL33: 337794.9467 | BM33: 1354152.257 | BN33: 0 | BO33: 0 | BP33: 0 | BQ33: 0 | BR33: 0 | BS33: 0 | BT33: 0 | BU33: 0 | BV33: 2694550.47
A34: ST | B34: Subtransmission | C34: Subtransmission | D34: 250000 | E34: 0 | F34: 0 | G34: 0 | H34: 5.34 | I34: 0 | J34: 0 | K34: 0 | L34: 0 | M34: 0 | N34: 0 | O34: 0 | P34: 0 | R34: =Est2020DistRev!D34 -> 262600 | S34: =Est2020DistRev!E34 -> 0 | T34: =Est2020DistRev!F34 -> 0.54 | U34: =Est2020DistRev!G34 -> 0.16 | V34: =Est2020DistRev!H34 -> 5.09 | W34: =Est2020DistRev!I34 -> 0 | X34: =Est2020DistRev!J34 -> 0 | Y34: =Est2020DistRev!K34 -> 0 | Z34: =Est2020DistRev!L34 -> 0 | AA34: =Est2020DistRev!M34 -> 0 | AB34: =Est2020DistRev!N34 -> 0 | AC34: =Est2020DistRev!O34 -> 0 | AD34: =Est2020DistRev!P34 -> 0 | AE34: =Est2020DistRev!Q34 -> 0 | AF34: 6.482232056 | AH34: 237591547.3 | AI34: 271398089 | AJ34: 120478.8877 | AM34: =Est2020DistRev!Y34/2 -> 0 | AN34: =Est2020DistRev!Z34/2 -> 0 | AO34: =Est2020DistRev!AA34/2 -> 0 | AP34: =Est2020DistRev!AB34/2 -> 0 | AQ34: =Est2020DistRev!AC34/2 -> 0 | AR34: =Est2020DistRev!AD34/2 -> 0 | AT34: 1620558.014 | AU34: 0 | AV34: 0 | AW34: 0 | AX34: 643357.2602 | AY34: 0 | AZ34: 0 | BA34: 0 | BB34: 0 | BC34: 0 | BD34: 0 | BE34: 0 | BF34: 0 | BG34: 2263915.274 | BI34: 1702234.138 | BJ34: 0 | BK34: 1282994.356 | BL34: 434236.9424 | BM34: 613237.5383 | BN34: 0 | BO34: 0 | BP34: 0 | BQ34: 0 | BR34: 0 | BS34: 0 | BT34: 0 | BU34: 0 | BV34: 4032702.974
R35: =Est2020DistRev!D35 -> 0 | S35: =Est2020DistRev!E35 -> 0 | T35: =Est2020DistRev!F35 -> 0 | U35: =Est2020DistRev!G35 -> 0 | V35: =Est2020DistRev!H35 -> 0 | W35: =Est2020DistRev!I35 -> 0 | X35: =Est2020DistRev!J35 -> 0 | Y35: =Est2020DistRev!K35 -> 0 | Z35: =Est2020DistRev!L35 -> 0 | AA35: =Est2020DistRev!M35 -> 0 | AB35: =Est2020DistRev!N35 -> 0 | AC35: =Est2020DistRev!O35 -> 0 | AD35: =Est2020DistRev!P35 -> 0 | AE35: =Est2020DistRev!Q35 -> 0 | AF35: =Est2020DistRev!R35/2 -> 0 | AG35: =Est2020DistRev!S35/2 -> 0 | AH35: =Est2020DistRev!T35/2 -> 0 | AI35: =Est2020DistRev!U35/2 -> 0 | AJ35: =Est2020DistRev!V35/2 -> 0 | AK35: =Est2020DistRev!W35/2 -> 0 | AL35: =Est2020DistRev!X35/2 -> 0 | AM35: =Est2020DistRev!Y35/2 -> 0 | AN35: =Est2020DistRev!Z35/2 -> 0 | AO35: =Est2020DistRev!AA35/2 -> 0 | AP35: =Est2020DistRev!AB35/2 -> 0 | AQ35: =Est2020DistRev!AC35/2 -> 0 | AR35: =Est2020DistRev!AD35/2 -> 0 | AT35: 0 | AU35: =E35/100*AG35 -> 0 | AV35: 0 | AW35: 0 | AX35: 0 | AY35: 0 | AZ35: 0 | BA35: 0 | BB35: 0 | BC35: 0 | BD35: 0 | BE35: 0 | BF35: 0 | BG35: =SUM(AT35:BF35) -> 0 | BI35: =R35*AF35 -> 0 | BJ35: =S35/100*AG35 -> 0 | BK35: =T35/100*AH35 -> 0 | BL35: =U35/100*AI35 -> 0 | BM35: 0 | BN35: 0 | BO35: 0 | BP35: 0 | BQ35: 0 | BR35: 0 | BS35: 0 | BT35: 0 | BU35: 0 | BV35: =SUM(BI35:BU35) -> 0
R36: =Est2020DistRev!D36 -> 0 | S36: =Est2020DistRev!E36 -> 0 | T36: =Est2020DistRev!F36 -> 0 | U36: =Est2020DistRev!G36 -> 0 | V36: =Est2020DistRev!H36 -> 0 | W36: =Est2020DistRev!I36 -> 0 | X36: =Est2020DistRev!J36 -> 0 | Y36: =Est2020DistRev!K36 -> 0 | Z36: =Est2020DistRev!L36 -> 0 | AA36: =Est2020DistRev!M36 -> 0 | AB36: =Est2020DistRev!N36 -> 0 | AC36: =Est2020DistRev!O36 -> 0 | AD36: =Est2020DistRev!P36 -> 0 | AF36: =Est2020DistRev!R36/2 -> 0 | AG36: =Est2020DistRev!S36/2 -> 0 | AH36: =Est2020DistRev!T36/2 -> 0 | AI36: =Est2020DistRev!U36/2 -> 0 | AJ36: =Est2020DistRev!V36/2 -> 0 | AK36: =Est2020DistRev!W36/2 -> 0 | AL36: =Est2020DistRev!X36/2 -> 0 | AM36: =Est2020DistRev!Y36/2 -> 0 | AN36: =Est2020DistRev!Z36/2 -> 0 | AO36: =Est2020DistRev!AA36/2 -> 0 | AP36: =Est2020DistRev!AB36/2 -> 0 | AQ36: =Est2020DistRev!AC36/2 -> 0 | AR36: =Est2020DistRev!AD36/2 -> 0 | AT36: 0 | AU36: 0 | AV36: 0 | AW36: 0 | AX36: 0 | AY36: 0 | AZ36: 0 | BA36: 0 | BB36: 0 | BC36: 0 | BD36: 0 | BE36: 0 | BF36: 0 | BG36: 0 | BI36: 0 | BJ36: 0 | BK36: 0 | BL36: 0 | BM36: 0 | BN36: 0 | BO36: 0 | BP36: 0 | BQ36: 0 | BR36: 0 | BS36: 0 | BT36: 0 | BU36: 0 | BV36: 0
R37: =Est2020DistRev!D37 -> 0 | S37: =Est2020DistRev!E37 -> 0 | T37: =Est2020DistRev!F37 -> 0 | U37: =Est2020DistRev!G37 -> 0 | V37: =Est2020DistRev!H37 -> 0 | W37: =Est2020DistRev!I37 -> 0 | X37: =Est2020DistRev!J37 -> 0 | Y37: =Est2020DistRev!K37 -> 0 | Z37: =Est2020DistRev!L37 -> 0 | AA37: =Est2020DistRev!M37 -> 0 | AB37: =Est2020DistRev!N37 -> 0 | AC37: =Est2020DistRev!O37 -> 0 | AD37: =Est2020DistRev!P37 -> 0 | AF37: =Est2020DistRev!R37/2 -> 0 | AG37: =Est2020DistRev!S37/2 -> 0 | AH37: =Est2020DistRev!T37/2 -> 0 | AI37: =Est2020DistRev!U37/2 -> 0 | AJ37: =Est2020DistRev!V37/2 -> 0 | AK37: =Est2020DistRev!W37/2 -> 0 | AL37: =Est2020DistRev!X37/2 -> 0 | AM37: =Est2020DistRev!Y37/2 -> 0 | AN37: =Est2020DistRev!Z37/2 -> 0 | AO37: =Est2020DistRev!AA37/2 -> 0 | AP37: =Est2020DistRev!AB37/2 -> 0 | AQ37: =Est2020DistRev!AC37/2 -> 0 | AR37: =Est2020DistRev!AD37/2 -> 0 | AT37: 0 | AU37: 0 | AV37: 0 | AW37: 0 | AX37: 0 | AY37: 0 | AZ37: 0 | BA37: 0 | BB37: 0 | BC37: 0 | BD37: 0 | BE37: 0 | BF37: 0 | BG37: 0 | BI37: 0 | BJ37: 0 | BK37: 0 | BL37: 0 | BM37: 0 | BN37: 0 | BO37: 0 | BP37: 0 | BQ37: 0 | BR37: 0 | BS37: 0 | BT37: 0 | BU37: 0 | BV37: 0
R38: =Est2020DistRev!D38 -> 0 | S38: =Est2020DistRev!E38 -> 0 | T38: =Est2020DistRev!F38 -> 0 | U38: =Est2020DistRev!G38 -> 0 | V38: =Est2020DistRev!H38 -> 0 | W38: =Est2020DistRev!I38 -> 0 | X38: =Est2020DistRev!J38 -> 0 | Y38: =Est2020DistRev!K38 -> 0 | Z38: =Est2020DistRev!L38 -> 0 | AA38: =Est2020DistRev!M38 -> 0 | AB38: =Est2020DistRev!N38 -> 0 | AC38: =Est2020DistRev!O38 -> 0 | AD38: =Est2020DistRev!P38 -> 0 | AF38: =Est2020DistRev!R38/2 -> 0 | AG38: =Est2020DistRev!S38/2 -> 0 | AH38: =Est2020DistRev!T38/2 -> 0 | AI38: =Est2020DistRev!U38/2 -> 0 | AJ38: =Est2020DistRev!V38/2 -> 0 | AK38: =Est2020DistRev!W38/2 -> 0 | AL38: =Est2020DistRev!X38/2 -> 0 | AM38: =Est2020DistRev!Y38/2 -> 0 | AN38: =Est2020DistRev!Z38/2 -> 0 | AO38: =Est2020DistRev!AA38/2 -> 0 | AP38: =Est2020DistRev!AB38/2 -> 0 | AQ38: =Est2020DistRev!AC38/2 -> 0 | AR38: =Est2020DistRev!AD38/2 -> 0 | AT38: 0 | AU38: 0 | AV38: 0 | AW38: 0 | AX38: 0 | AY38: 0 | AZ38: 0 | BA38: 0 | BB38: 0 | BC38: 0 | BD38: 0 | BE38: 0 | BF38: 0 | BG38: 0 | BI38: 0 | BJ38: 0 | BK38: 0 | BL38: 0 | BM38: 0 | BN38: 0 | BO38: 0 | BP38: 0 | BQ38: 0 | BR38: 0 | BS38: 0 | BT38: 0 | BU38: 0 | BV38: 0
R39: =Est2020DistRev!D39 -> 0 | S39: =Est2020DistRev!E39 -> 0 | T39: =Est2020DistRev!F39 -> 0 | U39: =Est2020DistRev!G39 -> 0 | V39: =Est2020DistRev!H39 -> 0 | W39: =Est2020DistRev!I39 -> 0 | X39: =Est2020DistRev!J39 -> 0 | Y39: =Est2020DistRev!K39 -> 0 | Z39: =Est2020DistRev!L39 -> 0 | AA39: =Est2020DistRev!M39 -> 0 | AB39: =Est2020DistRev!N39 -> 0 | AC39: =Est2020DistRev!O39 -> 0 | AD39: =Est2020DistRev!P39 -> 0 | AF39: =Est2020DistRev!R39/2 -> 0 | AG39: =Est2020DistRev!S39/2 -> 0 | AH39: =Est2020DistRev!T39/2 -> 0 | AI39: =Est2020DistRev!U39/2 -> 0 | AJ39: =Est2020DistRev!V39/2 -> 0 | AK39: =Est2020DistRev!W39/2 -> 0 | AL39: =Est2020DistRev!X39/2 -> 0 | AM39: =Est2020DistRev!Y39/2 -> 0 | AN39: =Est2020DistRev!Z39/2 -> 0 | AO39: =Est2020DistRev!AA39/2 -> 0 | AP39: =Est2020DistRev!AB39/2 -> 0 | AQ39: =Est2020DistRev!AC39/2 -> 0 | AR39: =Est2020DistRev!AD39/2 -> 0 | AT39: 0 | AU39: =E39/100*AG39 -> 0 | AV39: 0 | AW39: 0 | AX39: 0 | AY39: 0 | AZ39: 0 | BA39: 0 | BB39: 0 | BC39: 0 | BD39: 0 | BE39: 0 | BF39: 0 | BG39: 0 | BI39: 0 | BJ39: 0 | BK39: 0 | BL39: 0 | BM39: 0 | BN39: 0 | BO39: 0 | BP39: 0 | BQ39: 0 | BR39: 0 | BS39: 0 | BT39: 0 | BU39: 0 | BV39: 0
R40: =Est2020DistRev!D40 -> 0 | S40: =Est2020DistRev!E40 -> 0 | T40: =Est2020DistRev!F40 -> 0 | U40: =Est2020DistRev!G40 -> 0 | V40: =Est2020DistRev!H40 -> 0 | W40: =Est2020DistRev!I40 -> 0 | X40: =Est2020DistRev!J40 -> 0 | Y40: =Est2020DistRev!K40 -> 0 | Z40: =Est2020DistRev!L40 -> 0 | AA40: =Est2020DistRev!M40 -> 0 | AB40: =Est2020DistRev!N40 -> 0 | AC40: =Est2020DistRev!O40 -> 0 | AD40: =Est2020DistRev!P40 -> 0 | AF40: =Est2020DistRev!R40/2 -> 0 | AG40: =Est2020DistRev!S40/2 -> 0 | AH40: =Est2020DistRev!T40/2 -> 0 | AI40: =Est2020DistRev!U40/2 -> 0 | AJ40: =Est2020DistRev!V40/2 -> 0 | AK40: =Est2020DistRev!W40/2 -> 0 | AL40: =Est2020DistRev!X40/2 -> 0 | AM40: =Est2020DistRev!Y40/2 -> 0 | AN40: =Est2020DistRev!Z40/2 -> 0 | AO40: =Est2020DistRev!AA40/2 -> 0 | AP40: =Est2020DistRev!AB40/2 -> 0 | AQ40: =Est2020DistRev!AC40/2 -> 0 | AR40: =Est2020DistRev!AD40/2 -> 0 | AT40: 0 | AU40: 0 | AV40: 0 | AW40: 0 | AX40: 0 | AY40: 0 | AZ40: 0 | BA40: 0 | BB40: 0 | BC40: 0 | BD40: 0 | BE40: 0 | BF40: 0 | BG40: 0 | BI40: 0 | BJ40: 0 | BK40: 0 | BL40: 0 | BM40: 0 | BN40: 0 | BO40: 0 | BP40: 0 | BQ40: 0 | BR40: 0 | BS40: 0 | BT40: 0 | BU40: 0 | BV40: 0
R41: =Est2020DistRev!D41 -> 0 | S41: =Est2020DistRev!E41 -> 0 | T41: =Est2020DistRev!F41 -> 0 | U41: =Est2020DistRev!G41 -> 0 | V41: =Est2020DistRev!H41 -> 0 | W41: =Est2020DistRev!I41 -> 0 | X41: =Est2020DistRev!J41 -> 0 | Y41: =Est2020DistRev!K41 -> 0 | Z41: =Est2020DistRev!L41 -> 0 | AA41: =Est2020DistRev!M41 -> 0 | AB41: =Est2020DistRev!N41 -> 0 | AC41: =Est2020DistRev!O41 -> 0 | AD41: =Est2020DistRev!P41 -> 0 | AF41: =Est2020DistRev!R41/2 -> 0 | AG41: =Est2020DistRev!S41/2 -> 0 | AH41: =Est2020DistRev!T41/2 -> 0 | AI41: =Est2020DistRev!U41/2 -> 0 | AJ41: =Est2020DistRev!V41/2 -> 0 | AK41: =Est2020DistRev!W41/2 -> 0 | AL41: =Est2020DistRev!X41/2 -> 0 | AM41: =Est2020DistRev!Y41/2 -> 0 | AN41: =Est2020DistRev!Z41/2 -> 0 | AO41: =Est2020DistRev!AA41/2 -> 0 | AP41: =Est2020DistRev!AB41/2 -> 0 | AQ41: =Est2020DistRev!AC41/2 -> 0 | AR41: =Est2020DistRev!AD41/2 -> 0 | AT41: 0 | AU41: 0 | AV41: 0 | AW41: 0 | AX41: 0 | AY41: 0 | AZ41: 0 | BA41: 0 | BB41: 0 | BC41: 0 | BD41: 0 | BE41: 0 | BF41: 0 | BG41: 0 | BI41: 0 | BJ41: 0 | BK41: 0 | BL41: 0 | BM41: 0 | BN41: 0 | BO41: 0 | BP41: 0 | BQ41: 0 | BR41: 0 | BS41: 0 | BT41: 0 | BU41: 0 | BV41: 0
R42: =Est2020DistRev!D42 -> 0 | S42: =Est2020DistRev!E42 -> 0 | T42: =Est2020DistRev!F42 -> 0 | U42: =Est2020DistRev!G42 -> 0 | V42: =Est2020DistRev!H42 -> 0 | W42: =Est2020DistRev!I42 -> 0 | X42: =Est2020DistRev!J42 -> 0 | Y42: =Est2020DistRev!K42 -> 0 | Z42: =Est2020DistRev!L42 -> 0 | AA42: =Est2020DistRev!M42 -> 0 | AB42: =Est2020DistRev!N42 -> 0 | AC42: =Est2020DistRev!O42 -> 0 | AD42: =Est2020DistRev!P42 -> 0 | AF42: =Est2020DistRev!R42/2 -> 0 | AG42: =Est2020DistRev!S42/2 -> 0 | AH42: =Est2020DistRev!T42/2 -> 0 | AI42: =Est2020DistRev!U42/2 -> 0 | AJ42: =Est2020DistRev!V42/2 -> 0 | AK42: =Est2020DistRev!W42/2 -> 0 | AL42: =Est2020DistRev!X42/2 -> 0 | AM42: =Est2020DistRev!Y42/2 -> 0 | AN42: =Est2020DistRev!Z42/2 -> 0 | AO42: =Est2020DistRev!AA42/2 -> 0 | AP42: =Est2020DistRev!AB42/2 -> 0 | AQ42: =Est2020DistRev!AC42/2 -> 0 | AR42: =Est2020DistRev!AD42/2 -> 0 | AT42: 0 | AU42: 0 | AV42: 0 | AW42: 0 | AX42: 0 | AY42: 0 | AZ42: 0 | BA42: 0 | BB42: 0 | BC42: 0 | BD42: 0 | BE42: 0 | BF42: 0 | BG42: 0 | BI42: 0 | BJ42: 0 | BK42: 0 | BL42: 0 | BM42: 0 | BN42: 0 | BO42: 0 | BP42: 0 | BQ42: 0 | BR42: 0 | BS42: 0 | BT42: 0 | BU42: 0 | BV42: 0
R43: =Est2020DistRev!D43 -> 0 | S43: =Est2020DistRev!E43 -> 0 | T43: =Est2020DistRev!F43 -> 0 | U43: =Est2020DistRev!G43 -> 0 | V43: =Est2020DistRev!H43 -> 0 | W43: =Est2020DistRev!I43 -> 0 | X43: =Est2020DistRev!J43 -> 0 | Y43: =Est2020DistRev!K43 -> 0 | Z43: =Est2020DistRev!L43 -> 0 | AA43: =Est2020DistRev!M43 -> 0 | AB43: =Est2020DistRev!N43 -> 0 | AC43: =Est2020DistRev!O43 -> 0 | AD43: =Est2020DistRev!P43 -> 0 | AF43: =Est2020DistRev!R43/2 -> 0 | AG43: =Est2020DistRev!S43/2 -> 0 | AH43: =Est2020DistRev!T43/2 -> 0 | AI43: =Est2020DistRev!U43/2 -> 0 | AJ43: =Est2020DistRev!V43/2 -> 0 | AK43: =Est2020DistRev!W43/2 -> 0 | AL43: =Est2020DistRev!X43/2 -> 0 | AM43: =Est2020DistRev!Y43/2 -> 0 | AN43: =Est2020DistRev!Z43/2 -> 0 | AO43: =Est2020DistRev!AA43/2 -> 0 | AP43: =Est2020DistRev!AB43/2 -> 0 | AQ43: =Est2020DistRev!AC43/2 -> 0 | AR43: =Est2020DistRev!AD43/2 -> 0 | AT43: 0 | AU43: 0 | AV43: 0 | AW43: 0 | AX43: 0 | AY43: 0 | AZ43: 0 | BA43: 0 | BB43: 0 | BC43: 0 | BD43: 0 | BE43: 0 | BF43: 0 | BG43: 0 | BI43: 0 | BJ43: 0 | BK43: 0 | BL43: 0 | BM43: 0 | BN43: 0 | BO43: 0 | BP43: 0 | BQ43: 0 | BR43: 0 | BS43: 0 | BT43: 0 | BU43: 0 | BV43: 0
R44: =Est2020DistRev!D44 -> 0 | S44: =Est2020DistRev!E44 -> 0 | T44: =Est2020DistRev!F44 -> 0 | U44: =Est2020DistRev!G44 -> 0 | V44: =Est2020DistRev!H44 -> 0 | W44: =Est2020DistRev!I44 -> 0 | X44: =Est2020DistRev!J44 -> 0 | Y44: =Est2020DistRev!K44 -> 0 | Z44: =Est2020DistRev!L44 -> 0 | AA44: =Est2020DistRev!M44 -> 0 | AB44: =Est2020DistRev!N44 -> 0 | AC44: =Est2020DistRev!O44 -> 0 | AD44: =Est2020DistRev!P44 -> 0 | AF44: =Est2020DistRev!R44/2 -> 0 | AG44: =Est2020DistRev!S44/2 -> 0 | AH44: =Est2020DistRev!T44/2 -> 0 | AI44: =Est2020DistRev!U44/2 -> 0 | AJ44: =Est2020DistRev!V44/2 -> 0 | AK44: =Est2020DistRev!W44/2 -> 0 | AL44: =Est2020DistRev!X44/2 -> 0 | AM44: =Est2020DistRev!Y44/2 -> 0 | AN44: =Est2020DistRev!Z44/2 -> 0 | AO44: =Est2020DistRev!AA44/2 -> 0 | AP44: =Est2020DistRev!AB44/2 -> 0 | AQ44: =Est2020DistRev!AC44/2 -> 0 | AR44: =Est2020DistRev!AD44/2 -> 0 | AT44: 0 | AU44: 0 | AV44: 0 | AW44: 0 | AX44: 0 | AY44: 0 | AZ44: 0 | BA44: 0 | BB44: 0 | BC44: 0 | BD44: 0 | BE44: 0 | BF44: 0 | BG44: 0 | BI44: 0 | BJ44: 0 | BK44: 0 | BL44: 0 | BM44: 0 | BN44: 0 | BO44: 0 | BP44: 0 | BQ44: 0 | BR44: 0 | BS44: 0 | BT44: 0 | BU44: 0 | BV44: 0
R45: =Est2020DistRev!D45 -> 0 | S45: =Est2020DistRev!E45 -> 0 | T45: =Est2020DistRev!F45 -> 0 | U45: =Est2020DistRev!G45 -> 0 | V45: =Est2020DistRev!H45 -> 0 | W45: =Est2020DistRev!I45 -> 0 | X45: =Est2020DistRev!J45 -> 0 | Y45: =Est2020DistRev!K45 -> 0 | Z45: =Est2020DistRev!L45 -> 0 | AA45: =Est2020DistRev!M45 -> 0 | AB45: =Est2020DistRev!N45 -> 0 | AC45: =Est2020DistRev!O45 -> 0 | AD45: =Est2020DistRev!P45 -> 0 | AF45: =Est2020DistRev!R45/2 -> 0 | AG45: =Est2020DistRev!S45/2 -> 0 | AH45: =Est2020DistRev!T45/2 -> 0 | AI45: =Est2020DistRev!U45/2 -> 0 | AJ45: =Est2020DistRev!V45/2 -> 0 | AK45: =Est2020DistRev!W45/2 -> 0 | AL45: =Est2020DistRev!X45/2 -> 0 | AM45: =Est2020DistRev!Y45/2 -> 0 | AN45: =Est2020DistRev!Z45/2 -> 0 | AO45: =Est2020DistRev!AA45/2 -> 0 | AP45: =Est2020DistRev!AB45/2 -> 0 | AQ45: =Est2020DistRev!AC45/2 -> 0 | AR45: =Est2020DistRev!AD45/2 -> 0 | AT45: 0 | AU45: 0 | AV45: 0 | AW45: 0 | AX45: 0 | AY45: 0 | AZ45: 0 | BA45: 0 | BB45: 0 | BC45: 0 | BD45: 0 | BE45: 0 | BF45: 0 | BG45: 0 | BI45: 0 | BJ45: 0 | BK45: 0 | BL45: 0 | BM45: 0 | BN45: 0 | BO45: 0 | BP45: 0 | BQ45: 0 | BR45: 0 | BS45: 0 | BT45: 0 | BU45: 0 | BV45: 0
R46: =Est2020DistRev!D46 -> 0 | S46: =Est2020DistRev!E46 -> 0 | T46: =Est2020DistRev!F46 -> 0 | U46: =Est2020DistRev!G46 -> 0 | V46: =Est2020DistRev!H46 -> 0 | W46: =Est2020DistRev!I46 -> 0 | X46: =Est2020DistRev!J46 -> 0 | Y46: =Est2020DistRev!K46 -> 0 | Z46: =Est2020DistRev!L46 -> 0 | AA46: =Est2020DistRev!M46 -> 0 | AB46: =Est2020DistRev!N46 -> 0 | AC46: =Est2020DistRev!O46 -> 0 | AD46: =Est2020DistRev!P46 -> 0 | AF46: =Est2020DistRev!R46/2 -> 0 | AG46: =Est2020DistRev!S46/2 -> 0 | AH46: =Est2020DistRev!T46/2 -> 0 | AI46: =Est2020DistRev!U46/2 -> 0 | AJ46: =Est2020DistRev!V46/2 -> 0 | AK46: =Est2020DistRev!W46/2 -> 0 | AL46: =Est2020DistRev!X46/2 -> 0 | AM46: =Est2020DistRev!Y46/2 -> 0 | AN46: =Est2020DistRev!Z46/2 -> 0 | AO46: =Est2020DistRev!AA46/2 -> 0 | AP46: =Est2020DistRev!AB46/2 -> 0 | AQ46: =Est2020DistRev!AC46/2 -> 0 | AR46: =Est2020DistRev!AD46/2 -> 0 | AT46: 0 | AU46: 0 | AV46: 0 | AW46: 0 | AX46: 0 | AY46: 0 | AZ46: 0 | BA46: 0 | BB46: 0 | BC46: 0 | BD46: 0 | BE46: 0 | BF46: 0 | BG46: 0 | BI46: 0 | BJ46: 0 | BK46: 0 | BL46: 0 | BM46: 0 | BN46: 0 | BO46: 0 | BP46: 0 | BQ46: 0 | BR46: 0 | BS46: 0 | BT46: 0 | BU46: 0 | BV46: 0
R47: =Est2020DistRev!D47 -> 0 | S47: =Est2020DistRev!E47 -> 0 | T47: =Est2020DistRev!F47 -> 0 | U47: =Est2020DistRev!G47 -> 0 | V47: =Est2020DistRev!H47 -> 0 | W47: =Est2020DistRev!I47 -> 0 | X47: =Est2020DistRev!J47 -> 0 | Y47: =Est2020DistRev!K47 -> 0 | Z47: =Est2020DistRev!L47 -> 0 | AA47: =Est2020DistRev!M47 -> 0 | AB47: =Est2020DistRev!N47 -> 0 | AC47: =Est2020DistRev!O47 -> 0 | AD47: =Est2020DistRev!P47 -> 0 | AF47: =Est2020DistRev!R47/2 -> 0 | AG47: =Est2020DistRev!S47/2 -> 0 | AH47: =Est2020DistRev!T47/2 -> 0 | AI47: =Est2020DistRev!U47/2 -> 0 | AJ47: =Est2020DistRev!V47/2 -> 0 | AK47: =Est2020DistRev!W47/2 -> 0 | AL47: =Est2020DistRev!X47/2 -> 0 | AM47: =Est2020DistRev!Y47/2 -> 0 | AN47: =Est2020DistRev!Z47/2 -> 0 | AO47: =Est2020DistRev!AA47/2 -> 0 | AP47: =Est2020DistRev!AB47/2 -> 0 | AQ47: =Est2020DistRev!AC47/2 -> 0 | AR47: =Est2020DistRev!AD47/2 -> 0 | AT47: 0 | AU47: 0 | AV47: 0 | AW47: 0 | AX47: 0 | AY47: 0 | AZ47: 0 | BA47: 0 | BB47: 0 | BC47: 0 | BD47: 0 | BE47: 0 | BF47: 0 | BG47: 0 | BI47: 0 | BJ47: 0 | BK47: 0 | BL47: 0 | BM47: 0 | BN47: 0 | BO47: 0 | BP47: 0 | BQ47: 0 | BR47: 0 | BS47: 0 | BT47: 0 | BU47: 0 | BV47: 0
R48: =Est2020DistRev!D48 -> 0 | S48: =Est2020DistRev!E48 -> 0 | T48: =Est2020DistRev!F48 -> 0 | U48: =Est2020DistRev!G48 -> 0 | V48: =Est2020DistRev!H48 -> 0 | W48: =Est2020DistRev!I48 -> 0 | X48: =Est2020DistRev!J48 -> 0 | Y48: =Est2020DistRev!K48 -> 0 | Z48: =Est2020DistRev!L48 -> 0 | AA48: =Est2020DistRev!M48 -> 0 | AB48: =Est2020DistRev!N48 -> 0 | AC48: =Est2020DistRev!O48 -> 0 | AD48: =Est2020DistRev!P48 -> 0 | AF48: =Est2020DistRev!R48/2 -> 0 | AG48: =Est2020DistRev!S48/2 -> 0 | AH48: =Est2020DistRev!T48/2 -> 0 | AI48: =Est2020DistRev!U48/2 -> 0 | AJ48: =Est2020DistRev!V48/2 -> 0 | AK48: =Est2020DistRev!W48/2 -> 0 | AL48: =Est2020DistRev!X48/2 -> 0 | AM48: =Est2020DistRev!Y48/2 -> 0 | AN48: =Est2020DistRev!Z48/2 -> 0 | AO48: =Est2020DistRev!AA48/2 -> 0 | AP48: =Est2020DistRev!AB48/2 -> 0 | AQ48: =Est2020DistRev!AC48/2 -> 0 | AR48: =Est2020DistRev!AD48/2 -> 0 | AT48: 0 | AU48: 0 | AV48: 0 | AW48: 0 | AX48: 0 | AY48: 0 | AZ48: 0 | BA48: 0 | BB48: 0 | BC48: 0 | BD48: 0 | BE48: 0 | BF48: 0 | BG48: 0 | BI48: 0 | BJ48: 0 | BK48: 0 | BL48: 0 | BM48: 0 | BN48: 0 | BO48: 0 | BP48: 0 | BQ48: 0 | BR48: 0 | BS48: 0 | BT48: 0 | BU48: 0 | BV48: 0
R49: =Est2020DistRev!D49 -> 0 | S49: =Est2020DistRev!E49 -> 0 | T49: =Est2020DistRev!F49 -> 0 | U49: =Est2020DistRev!G49 -> 0 | V49: =Est2020DistRev!H49 -> 0 | W49: =Est2020DistRev!I49 -> 0 | X49: =Est2020DistRev!J49 -> 0 | Y49: =Est2020DistRev!K49 -> 0 | Z49: =Est2020DistRev!L49 -> 0 | AA49: =Est2020DistRev!M49 -> 0 | AB49: =Est2020DistRev!N49 -> 0 | AC49: =Est2020DistRev!O49 -> 0 | AD49: =Est2020DistRev!P49 -> 0 | AF49: =Est2020DistRev!R49/2 -> 0 | AG49: =Est2020DistRev!S49/2 -> 0 | AH49: =Est2020DistRev!T49/2 -> 0 | AI49: =Est2020DistRev!U49/2 -> 0 | AJ49: =Est2020DistRev!V49/2 -> 0 | AK49: =Est2020DistRev!W49/2 -> 0 | AL49: =Est2020DistRev!X49/2 -> 0 | AM49: =Est2020DistRev!Y49/2 -> 0 | AN49: =Est2020DistRev!Z49/2 -> 0 | AO49: =Est2020DistRev!AA49/2 -> 0 | AP49: =Est2020DistRev!AB49/2 -> 0 | AQ49: =Est2020DistRev!AC49/2 -> 0 | AR49: =Est2020DistRev!AD49/2 -> 0 | AT49: 0 | AU49: 0 | AV49: 0 | AW49: 0 | AX49: 0 | AY49: 0 | AZ49: 0 | BA49: 0 | BB49: 0 | BC49: 0 | BD49: 0 | BE49: 0 | BF49: 0 | BG49: 0 | BI49: 0 | BJ49: 0 | BK49: 0 | BL49: 0 | BM49: 0 | BN49: 0 | BO49: 0 | BP49: 0 | BQ49: 0 | BR49: 0 | BS49: 0 | BT49: 0 | BU49: 0 | BV49: 0
R50: =Est2020DistRev!D50 -> 0 | S50: =Est2020DistRev!E50 -> 0 | T50: =Est2020DistRev!F50 -> 0 | U50: =Est2020DistRev!G50 -> 0 | V50: =Est2020DistRev!H50 -> 0 | W50: =Est2020DistRev!I50 -> 0 | X50: =Est2020DistRev!J50 -> 0 | Y50: =Est2020DistRev!K50 -> 0 | Z50: =Est2020DistRev!L50 -> 0 | AA50: =Est2020DistRev!M50 -> 0 | AB50: =Est2020DistRev!N50 -> 0 | AC50: =Est2020DistRev!O50 -> 0 | AD50: =Est2020DistRev!P50 -> 0 | AF50: =Est2020DistRev!R50/2 -> 0 | AG50: =Est2020DistRev!S50/2 -> 0 | AH50: =Est2020DistRev!T50/2 -> 0 | AI50: =Est2020DistRev!U50/2 -> 0 | AJ50: =Est2020DistRev!V50/2 -> 0 | AK50: =Est2020DistRev!W50/2 -> 0 | AL50: =Est2020DistRev!X50/2 -> 0 | AM50: =Est2020DistRev!Y50/2 -> 0 | AN50: =Est2020DistRev!Z50/2 -> 0 | AO50: =Est2020DistRev!AA50/2 -> 0 | AP50: =Est2020DistRev!AB50/2 -> 0 | AQ50: =Est2020DistRev!AC50/2 -> 0 | AR50: =Est2020DistRev!AD50/2 -> 0 | AT50: 0 | AU50: 0 | AV50: 0 | AW50: 0 | AX50: 0 | AY50: 0 | AZ50: 0 | BA50: 0 | BB50: 0 | BC50: 0 | BD50: 0 | BE50: 0 | BF50: 0 | BG50: 0 | BI50: 0 | BJ50: 0 | BK50: 0 | BL50: 0 | BM50: 0 | BN50: 0 | BO50: 0 | BP50: 0 | BQ50: 0 | BR50: 0 | BS50: 0 | BT50: 0 | BU50: 0 | BV50: 0
R51: =Est2020DistRev!D51 -> 0 | S51: =Est2020DistRev!E51 -> 0 | T51: =Est2020DistRev!F51 -> 0 | U51: =Est2020DistRev!G51 -> 0 | V51: =Est2020DistRev!H51 -> 0 | W51: =Est2020DistRev!I51 -> 0 | X51: =Est2020DistRev!J51 -> 0 | Y51: =Est2020DistRev!K51 -> 0 | Z51: =Est2020DistRev!L51 -> 0 | AA51: =Est2020DistRev!M51 -> 0 | AB51: =Est2020DistRev!N51 -> 0 | AC51: =Est2020DistRev!O51 -> 0 | AD51: =Est2020DistRev!P51 -> 0 | AF51: =Est2020DistRev!R51/2 -> 0 | AG51: =Est2020DistRev!S51/2 -> 0 | AH51: =Est2020DistRev!T51/2 -> 0 | AI51: =Est2020DistRev!U51/2 -> 0 | AJ51: =Est2020DistRev!V51/2 -> 0 | AK51: =Est2020DistRev!W51/2 -> 0 | AL51: =Est2020DistRev!X51/2 -> 0 | AM51: =Est2020DistRev!Y51/2 -> 0 | AN51: =Est2020DistRev!Z51/2 -> 0 | AO51: =Est2020DistRev!AA51/2 -> 0 | AP51: =Est2020DistRev!AB51/2 -> 0 | AQ51: =Est2020DistRev!AC51/2 -> 0 | AR51: =Est2020DistRev!AD51/2 -> 0 | AT51: 0 | AU51: 0 | AV51: 0 | AW51: 0 | AX51: 0 | AY51: 0 | AZ51: 0 | BA51: 0 | BB51: 0 | BC51: 0 | BD51: 0 | BE51: 0 | BF51: 0 | BG51: 0 | BI51: 0 | BJ51: 0 | BK51: 0 | BL51: 0 | BM51: 0 | BN51: 0 | BO51: 0 | BP51: 0 | BQ51: 0 | BR51: 0 | BS51: 0 | BT51: 0 | BU51: 0 | BV51: 0
R52: =Est2020DistRev!D52 -> 0 | S52: =Est2020DistRev!E52 -> 0 | T52: =Est2020DistRev!F52 -> 0 | U52: =Est2020DistRev!G52 -> 0 | V52: =Est2020DistRev!H52 -> 0 | W52: =Est2020DistRev!I52 -> 0 | X52: =Est2020DistRev!J52 -> 0 | Y52: =Est2020DistRev!K52 -> 0 | Z52: =Est2020DistRev!L52 -> 0 | AA52: =Est2020DistRev!M52 -> 0 | AB52: =Est2020DistRev!N52 -> 0 | AC52: =Est2020DistRev!O52 -> 0 | AD52: =Est2020DistRev!P52 -> 0 | AF52: =Est2020DistRev!R52/2 -> 0 | AG52: =Est2020DistRev!S52/2 -> 0 | AH52: =Est2020DistRev!T52/2 -> 0 | AI52: =Est2020DistRev!U52/2 -> 0 | AJ52: =Est2020DistRev!V52/2 -> 0 | AK52: =Est2020DistRev!W52/2 -> 0 | AL52: =Est2020DistRev!X52/2 -> 0 | AM52: =Est2020DistRev!Y52/2 -> 0 | AN52: =Est2020DistRev!Z52/2 -> 0 | AO52: =Est2020DistRev!AA52/2 -> 0 | AP52: =Est2020DistRev!AB52/2 -> 0 | AQ52: =Est2020DistRev!AC52/2 -> 0 | AR52: =Est2020DistRev!AD52/2 -> 0 | AT52: 0 | AU52: 0 | AV52: 0 | AW52: 0 | AX52: 0 | AY52: 0 | AZ52: 0 | BA52: 0 | BB52: 0 | BC52: 0 | BD52: 0 | BE52: 0 | BF52: 0 | BG52: 0 | BI52: 0 | BJ52: 0 | BK52: 0 | BL52: 0 | BM52: 0 | BN52: 0 | BO52: 0 | BP52: 0 | BQ52: 0 | BR52: 0 | BS52: 0 | BT52: 0 | BU52: 0 | BV52: 0
R53: =Est2020DistRev!D53 -> 0 | S53: =Est2020DistRev!E53 -> 0 | T53: =Est2020DistRev!F53 -> 0 | U53: =Est2020DistRev!G53 -> 0 | V53: =Est2020DistRev!H53 -> 0 | W53: =Est2020DistRev!I53 -> 0 | X53: =Est2020DistRev!J53 -> 0 | Y53: =Est2020DistRev!K53 -> 0 | Z53: =Est2020DistRev!L53 -> 0 | AA53: =Est2020DistRev!M53 -> 0 | AB53: =Est2020DistRev!N53 -> 0 | AC53: =Est2020DistRev!O53 -> 0 | AD53: =Est2020DistRev!P53 -> 0 | AF53: =Est2020DistRev!R53/2 -> 0 | AG53: =Est2020DistRev!S53/2 -> 0 | AH53: =Est2020DistRev!T53/2 -> 0 | AI53: =Est2020DistRev!U53/2 -> 0 | AJ53: =Est2020DistRev!V53/2 -> 0 | AK53: =Est2020DistRev!W53/2 -> 0 | AL53: =Est2020DistRev!X53/2 -> 0 | AM53: =Est2020DistRev!Y53/2 -> 0 | AN53: =Est2020DistRev!Z53/2 -> 0 | AO53: =Est2020DistRev!AA53/2 -> 0 | AP53: =Est2020DistRev!AB53/2 -> 0 | AQ53: =Est2020DistRev!AC53/2 -> 0 | AR53: =Est2020DistRev!AD53/2 -> 0 | AT53: 0 | AU53: 0 | AV53: 0 | AW53: 0 | AX53: 0 | AY53: 0 | AZ53: 0 | BA53: 0 | BB53: 0 | BC53: 0 | BD53: 0 | BE53: 0 | BF53: 0 | BG53: 0 | BI53: 0 | BJ53: 0 | BK53: 0 | BL53: 0 | BM53: 0 | BN53: 0 | BO53: 0 | BP53: 0 | BQ53: 0 | BR53: 0 | BS53: 0 | BT53: 0 | BU53: 0 | BV53: 0
R54: =Est2020DistRev!D54 -> 0 | S54: =Est2020DistRev!E54 -> 0 | T54: =Est2020DistRev!F54 -> 0 | U54: =Est2020DistRev!G54 -> 0 | V54: =Est2020DistRev!H54 -> 0 | W54: =Est2020DistRev!I54 -> 0 | X54: =Est2020DistRev!J54 -> 0 | Y54: =Est2020DistRev!K54 -> 0 | Z54: =Est2020DistRev!L54 -> 0 | AA54: =Est2020DistRev!M54 -> 0 | AB54: =Est2020DistRev!N54 -> 0 | AC54: =Est2020DistRev!O54 -> 0 | AD54: =Est2020DistRev!P54 -> 0 | AF54: =Est2020DistRev!R54/2 -> 0 | AG54: =Est2020DistRev!S54/2 -> 0 | AH54: =Est2020DistRev!T54/2 -> 0 | AI54: =Est2020DistRev!U54/2 -> 0 | AJ54: =Est2020DistRev!V54/2 -> 0 | AK54: =Est2020DistRev!W54/2 -> 0 | AL54: =Est2020DistRev!X54/2 -> 0 | AM54: =Est2020DistRev!Y54/2 -> 0 | AN54: =Est2020DistRev!Z54/2 -> 0 | AO54: =Est2020DistRev!AA54/2 -> 0 | AP54: =Est2020DistRev!AB54/2 -> 0 | AQ54: =Est2020DistRev!AC54/2 -> 0 | AR54: =Est2020DistRev!AD54/2 -> 0 | AT54: 0 | AU54: 0 | AV54: 0 | AW54: 0 | AX54: 0 | AY54: 0 | AZ54: 0 | BA54: 0 | BB54: 0 | BC54: 0 | BD54: 0 | BE54: 0 | BF54: 0 | BG54: 0 | BI54: 0 | BJ54: 0 | BK54: 0 | BL54: 0 | BM54: 0 | BN54: 0 | BO54: 0 | BP54: 0 | BQ54: 0 | BR54: 0 | BS54: 0 | BT54: 0 | BU54: 0 | BV54: 0
AT55: 0 | AU55: 0 | AV55: 0 | AW55: 0 | AX55: 0 | AY55: 0 | AZ55: 0 | BA55: 0 | BB55: 0 | BC55: 0 | BD55: 0 | BE55: 0 | BF55: 0 | BG55: 0 | BI55: 0 | BJ55: 0 | BK55: 0 | BL55: 0 | BM55: 0 | BN55: 0 | BO55: 0 | BP55: 0 | BQ55: 0 | BR55: 0 | BS55: 0 | BT55: 0 | BU55: 0 | BV55: 0
AT56: 0 | AU56: 0 | AV56: 0 | AW56: 0 | AX56: 0 | AY56: 0 | AZ56: 0 | BA56: 0 | BB56: 0 | BC56: 0 | BD56: 0 | BE56: 0 | BF56: 0 | BG56: 0 | BI56: 0 | BJ56: 0 | BK56: 0 | BL56: 0 | BM56: 0 | BN56: 0 | BO56: 0 | BP56: 0 | BQ56: 0 | BR56: 0 | BS56: 0 | BT56: 0 | BU56: 0 | BV56: 0
AT57: 0 | AU57: 0 | AV57: 0 | AW57: 0 | AX57: 0 | AY57: 0 | AZ57: 0 | BA57: 0 | BB57: 0 | BC57: 0 | BD57: 0 | BE57: 0 | BF57: 0 | BG57: 0 | BI57: 0 | BJ57: 0 | BK57: 0 | BL57: 0 | BM57: 0 | BN57: 0 | BO57: 0 | BP57: 0 | BQ57: 0 | BR57: 0 | BS57: 0 | BT57: 0 | BU57: 0 | BV57: 0
AT58: 0 | AU58: 0 | AV58: 0 | AW58: 0 | AX58: 0 | AY58: 0 | AZ58: 0 | BA58: 0 | BB58: 0 | BC58: 0 | BD58: 0 | BE58: 0 | BF58: 0 | BG58: 0 | BI58: 0 | BJ58: 0 | BK58: 0 | BL58: 0 | BM58: 0 | BN58: 0 | BO58: 0 | BP58: 0 | BQ58: 0 | BR58: 0 | BS58: 0 | BT58: 0 | BU58: 0 | BV58: 0
AT59: 0 | AU59: 0 | AV59: 0 | AW59: 0 | AX59: 0 | AY59: 0 | AZ59: 0 | BA59: 0 | BB59: 0 | BC59: 0 | BD59: 0 | BE59: 0 | BF59: 0 | BG59: 0 | BI59: 0 | BJ59: 0 | BK59: 0 | BL59: 0 | BM59: 0 | BN59: 0 | BO59: 0 | BP59: 0 | BQ59: 0 | BR59: 0 | BS59: 0 | BT59: 0 | BU59: 0 | BV59: 0
AT60: 0 | AU60: 0 | AV60: 0 | AW60: 0 | AX60: 0 | AY60: 0 | AZ60: 0 | BA60: 0 | BB60: 0 | BC60: 0 | BD60: 0 | BE60: 0 | BF60: 0 | BG60: 0 | BI60: 0 | BJ60: 0 | BK60: 0 | BL60: 0 | BM60: 0 | BN60: 0 | BO60: 0 | BP60: 0 | BQ60: 0 | BR60: 0 | BS60: 0 | BT60: 0 | BU60: 0 | BV60: 0
AT61: 0 | AU61: 0 | AV61: 0 | AW61: 0 | AX61: 0 | AY61: 0 | AZ61: 0 | BA61: 0 | BB61: 0 | BC61: 0 | BD61: 0 | BE61: 0 | BF61: 0 | BG61: 0 | BI61: 0 | BJ61: 0 | BK61: 0 | BL61: 0 | BM61: 0 | BN61: 0 | BO61: 0 | BP61: 0 | BQ61: 0 | BR61: 0 | BS61: 0 | BT61: 0 | BU61: 0 | BV61: 0
AT62: 0 | AU62: 0 | AV62: 0 | AW62: 0 | AX62: 0 | AY62: 0 | AZ62: 0 | BA62: 0 | BB62: 0 | BC62: 0 | BD62: 0 | BE62: 0 | BF62: 0 | BG62: 0 | BI62: 0 | BJ62: 0 | BK62: 0 | BL62: 0 | BM62: 0 | BN62: 0 | BO62: 0 | BP62: 0 | BQ62: 0 | BR62: 0 | BS62: 0 | BT62: 0 | BU62: 0 | BV62: 0
AT63: 0 | AU63: 0 | AV63: 0 | AW63: 0 | AX63: 0 | AY63: 0 | AZ63: 0 | BA63: 0 | BB63: 0 | BC63: 0 | BD63: 0 | BE63: 0 | BF63: 0 | BG63: 0 | BI63: 0 | BJ63: 0 | BK63: 0 | BL63: 0 | BM63: 0 | BN63: 0 | BO63: 0 | BP63: 0 | BQ63: 0 | BR63: 0 | BS63: 0 | BT63: 0 | BU63: 0 | BV63: 0
AT64: 0 | AU64: 0 | AV64: 0 | AW64: 0 | AX64: 0 | AY64: 0 | AZ64: 0 | BA64: 0 | BB64: 0 | BC64: 0 | BD64: 0 | BE64: 0 | BF64: 0 | BG64: 0 | BI64: 0 | BJ64: 0 | BK64: 0 | BL64: 0 | BM64: 0 | BN64: 0 | BO64: 0 | BP64: 0 | BQ64: 0 | BR64: 0 | BS64: 0 | BT64: 0 | BU64: 0 | BV64: 0
AT65: 0 | AU65: 0 | AV65: 0 | AW65: 0 | AX65: 0 | AY65: 0 | AZ65: 0 | BA65: 0 | BB65: 0 | BC65: 0 | BD65: 0 | BE65: 0 | BF65: 0 | BG65: 0 | BI65: 0 | BJ65: 0 | BK65: 0 | BL65: 0 | BM65: 0 | BN65: 0 | BO65: 0 | BP65: 0 | BQ65: 0 | BR65: 0 | BS65: 0 | BT65: 0 | BU65: 0 | BV65: 0
AF66: =SUM(AF6:AF65) -> 532377.0419 | AG66: 1436796711 | AH66: 1992025316 | AI66: 1952979655 | AJ66: 789462.1877 | AK66: 1001810.078 | AL66: 879527.5965 | AM66: 913328.3923 | AN66: 1243344.069 | AO66: 1247734.689 | AP66: 1896305.999 | AQ66: 2781999.178 | AR66: 2716693.92 | AT66: =SUM(AT6:AT65) -> 80866564.71 | AU66: 67807565.65 | AV66: 56793349.33 | AW66: 22784076.07 | AX66: 56805224.69 | AY66: 12081423.39 | AZ66: 5301149.204 | BA66: 79640.3355 | BB66: 56239.80185 | BC66: 22642.59957 | BD66: 163694.7514 | BE66: 126440.8346 | BF66: 48895.41426 | BG66: 302936906.8 | BI66: =SUM(BI6:BI65) -> 82832337.72 | BJ66: 82414711.03 | BK66: 79757045.36 | BL66: 30427948.06 | BM66: 54697700 | BN66: 11941706.75 | BO66: 5230679.817 | BP66: 97464.39609 | BQ66: 69579.83022 | BR66: 29570.46548 | BS66: 201910.1142 | BT66: 156739.5714 | BU66: 63280.66583 | BV66: 347920673.8

Sheet 2021DistRevCapForm
B2: ="Tariff Approval - "&'Model update'!$C$3 -> Tariff Approval - Powercor | C2: ='Model update'!$C$5&"DistRevCapForm" -> 2021DistRevCapForm
B4: DUoS
B6: Year (t) | C6: ='Model update'!C5 -> 2021
B8: Table 1- Compliance with AER Final Determination Total Annual Revenue
B9: Revenue from DUoS charges for year t | C9: =Prop2021DistTar!BG66 -> 302936906.8
B10: Total Annual Revenue for year t | C10: 303428601.6
C11: =IF(C9="","",IF(C10>=C9,"DUoS REVENUE CAP FORMULA COMPLIANT","DUoS REVENUE CAP FORMULA BREACHED")) -> DUoS REVENUE CAP FORMULA COMPLIANT

Sheet 2021DistTarRebalCont
B1: ="Tariff Approval - "&'Model update'!C3 -> Tariff Approval - Powercor | C1: ='Model update'!$C$5&"DistTarRebalCont" -> 2021DistTarRebalCont
B3: ='Model update'!C5&" DISTRIBUTION TARIFF REBALANCING CONTROL" -> 2021 DISTRIBUTION TARIFF REBALANCING CONTROL
B6: Distribution tariff rebalancing control
B8: ="CPI "&'Model update'!$C$5 -> CPI 2021 | C8: ='Model update'!C30 -> -0.003484320557
C16: =(1+C8)*(1-C9)*(1+0.02)*(1+C10)+SUM(C11:C13) -> 1.016445993
B20: Rebalancing control summary | C20: ="Pt-1*(Qt " &'Model update'!$C$5&")" -> Pt-1*(Qt 2021) | D20: ="Pt*(Qt " &'Model update'!$C$5&")" -> Pt*(Qt 2021)
B21: Tariff Class (Input Class Name) | C21: Existing ($) | D21: Proposed ($) | E21: Movement
B22: Residential | C22: =IF(B22="","",SUMIF($B$44:$B$103,$B22,$I$44:$I$103)) -> 148919576.5 | D22: =IF(B22="","",SUMIF($B$44:$B$103,$B22,$F$44:$F$103)) -> 131696357.9 | E22: =IF(B22="","",D22/C22) -> 0.8843455038 | F22: =IF(B22="","",IF(E22<$C$16,"COMPLIANT","BREACHED")) -> COMPLIANT
B23: Small business | C23: =IF(B23="","",SUMIF($B$44:$B$103,$B23,$I$44:$I$103)) -> 81996793.01 | D23: =IF(B23="","",SUMIF($B$44:$B$103,$B23,$F$44:$F$103)) -> 75848329.41 | E23: 0.925015804 | F23: COMPLIANT
B24: LLV | C24: =IF(B24="","",SUMIF($B$44:$B$103,$B24,$I$44:$I$103)) -> 85442085.82 | D24: =IF(B24="","",SUMIF($B$44:$B$103,$B24,$F$44:$F$103)) -> 71837831.55 | E24: 0.8407780645 | F24: COMPLIANT
B25: HV | C25: =IF(B25="","",SUMIF($B$44:$B$103,$B25,$I$44:$I$103)) -> 27529515.43 | D25: =IF(B25="","",SUMIF($B$44:$B$103,$B25,$F$44:$F$103)) -> 21290472.62 | E25: 0.7733689563 | F25: COMPLIANT
B26: SubTrans | C26: =IF(B26="","",SUMIF($B$44:$B$103,$B26,$I$44:$I$103)) -> 4032702.974 | D26: =IF(B26="","",SUMIF($B$44:$B$103,$B26,$F$44:$F$103)) -> 2263915.274 | E26: 0.5613890457 | F26: COMPLIANT
C27: =IF(B27="","",SUMIF($B$44:$B$103,$B27,$I$44:$I$103)) ->  | D27: =IF(B27="","",SUMIF($B$44:$B$103,$B27,$F$44:$F$103)) ->  | E27: =IF(B27="","",D27/C27) ->  | F27: =IF(B27="","",IF(E27<$C$16,"COMPLIANT","BREACHED")) -> 
C32: =IF(B32="","",SUMIF($B$44:$B$103,$B32,$I$44:$I$103)) ->  | D32: =IF(B32="","",SUMIF($B$44:$B$103,$B32,$F$44:$F$103)) -> 
B39: Check Total | C39: =IF(ABS(SUM(C22:C38)-I104)<0.01,"Ok","Error") -> Ok | D39: =IF(ABS(SUM(D22:D38)-F104)<0.01,"Ok","Error") -> Ok
C40: =IF(ABS(SUM(C22:C38)-Prop2021DistTar!BV66)<0.01,"Ok","Error") -> Ok | D40: =IF(ABS(SUM(D22:D38)-Prop2021DistTar!BG66)<0.01,"Ok","Error") -> Ok
F42: ="Revenue (Pt "&'Model update'!$C$5&")*(Qt " &'Model update'!$C$5&")" -> Revenue (Pt 2021)*(Qt 2021) | I42: ="Revenue (Pt-1 "&'Model update'!$C$8&")*(Qt " &'Model update'!$C$5&")" -> Revenue (Pt-1 2020)*(Qt 2021)
A43: New Tariff Test | B43: Destination tariff class | C43: Source tariff class | D43: Proposed tariff | E43: Existing tariff | F43: PropRev Total | I43: ExistRev Total
A44: =OR(EXACT(D44,Prop2021DistTar!C$6:C$65)) -> TRUE | B44: Residential | C44: Residential | D44: =IF(Prop2021DistTar!B6="","",Prop2021DistTar!B6) -> Residential Single Rate | E44: =IF(Prop2021DistTar!C6="","",Prop2021DistTar!C6) -> Residential Single Rate | F44: =Prop2021DistTar!BG6 -> 98365637.45 | I44: =Prop2021DistTar!BV6 -> 111554500.8
A45: =OR(EXACT(D45,Prop2021DistTar!C$6:C$65)) -> TRUE | B45: Residential | C45: Residential | D45: =IF(Prop2021DistTar!B7="","",Prop2021DistTar!B7) -> Climate Saver | E45: =IF(Prop2021DistTar!C7="","",Prop2021DistTar!C7) -> Climate Saver | F45: =Prop2021DistTar!BG7 -> 695711.427 | I45: =Prop2021DistTar!BV7 -> 648931.6541
A46: =OR(EXACT(D46,Prop2021DistTar!C$6:C$65)) -> TRUE | B46: Residential | C46: Residential | D46: =IF(Prop2021DistTar!B8="","",Prop2021DistTar!B8) -> Climate Saver Interval | E46: =IF(Prop2021DistTar!C8="","",Prop2021DistTar!C8) -> Climate Saver Interval | F46: =Prop2021DistTar!BG8 -> 204265.3128 | I46: =Prop2021DistTar!BV8 -> 190369.427
A47: =OR(EXACT(D47,Prop2021DistTar!C$6:C$65)) -> TRUE | B47: Residential | C47: Residential | D47: =IF(Prop2021DistTar!B9="","",Prop2021DistTar!B9) -> Residential - Flexible Pricing | E47: =IF(Prop2021DistTar!C9="","",Prop2021DistTar!C9) -> Residential - Flexible Pricing | F47: =Prop2021DistTar!BG9 -> 601035.1093 | I47: =Prop2021DistTar!BV9 -> 696458.5161
A48: =OR(EXACT(D48,Prop2021DistTar!C$6:C$65)) -> TRUE | B48: Residential | C48: Residential | D48: =IF(Prop2021DistTar!B10="","",Prop2021DistTar!B10) -> Residential Docklands - Flexible Pricing | E48: =IF(Prop2021DistTar!C10="","",Prop2021DistTar!C10) -> Residential Docklands - Flexible Pricing | F48: =Prop2021DistTar!BG10 -> 208.6831823 | I48: =Prop2021DistTar!BV10 -> 243.5482198
A49: =OR(EXACT(D49,Prop2021DistTar!C$6:C$65)) -> TRUE | B49: Residential | C49: Residential | D49: =IF(Prop2021DistTar!B11="","",Prop2021DistTar!B11) -> Climate Saver - Flexible Pricing | E49: =IF(Prop2021DistTar!C11="","",Prop2021DistTar!C11) -> Climate Saver - Flexible Pricing | F49: =Prop2021DistTar!BG11 -> 1904.67329 | I49: =Prop2021DistTar!BV11 -> 1793.537184
A50: =OR(EXACT(D50,Prop2021DistTar!C$6:C$65)) -> TRUE | B50: Residential | C50: Residential | D50: =IF(Prop2021DistTar!B12="","",Prop2021DistTar!B12) -> Docklands single rate | E50: =IF(Prop2021DistTar!C12="","",Prop2021DistTar!C12) -> Docklands single rate | F50: =Prop2021DistTar!BG12 -> 1408.580411 | I50: =Prop2021DistTar!BV12 -> 1681.033106
A51: =OR(EXACT(D51,Prop2021DistTar!C$6:C$65)) -> TRUE | B51: Residential | C51: Residential | D51: =IF(Prop2021DistTar!B13="","",Prop2021DistTar!B13) -> Residential Two Rate 5d | E51: =IF(Prop2021DistTar!C13="","",Prop2021DistTar!C13) -> Residential Two Rate 5d | F51: =Prop2021DistTar!BG13 -> 9336779.018 | I51: =Prop2021DistTar!BV13 -> 10488180.14
A52: =OR(EXACT(D52,Prop2021DistTar!C$6:C$65)) -> TRUE | B52: Residential | C52: Residential | D52: =IF(Prop2021DistTar!B14="","",Prop2021DistTar!B14) -> Docklands Two Rate 5d | E52: =IF(Prop2021DistTar!C14="","",Prop2021DistTar!C14) -> Docklands Two Rate 5d | F52: =Prop2021DistTar!BG14 -> 132908.7642 | I52: =Prop2021DistTar!BV14 -> 148658.8363
A53: =OR(EXACT(D53,Prop2021DistTar!C$6:C$65)) -> TRUE | B53: Residential | C53: Residential | D53: =IF(Prop2021DistTar!B15="","",Prop2021DistTar!B15) -> Residential Interval | E53: =IF(Prop2021DistTar!C15="","",Prop2021DistTar!C15) -> Residential Interval | F53: =Prop2021DistTar!BG15 -> 20331819.12 | I53: =Prop2021DistTar!BV15 -> 22724622.39
A54: =OR(EXACT(D54,Prop2021DistTar!C$6:C$65)) -> TRUE | B54: Residential | C54: Residential | D54: =IF(Prop2021DistTar!B16="","",Prop2021DistTar!B16) -> Residential Two Rate 5d - controlled load | E54: =IF(Prop2021DistTar!C16="","",Prop2021DistTar!C16) -> Residential Two Rate 5d - controlled load | F54: =Prop2021DistTar!BG16 -> 0 | I54: =Prop2021DistTar!BV16 -> 0
A55: =OR(EXACT(D55,Prop2021DistTar!C$6:C$65)) -> TRUE | B55: Residential | C55: Residential | D55: =IF(Prop2021DistTar!B17="","",Prop2021DistTar!B17) -> Docklands Two Rate 5d - controlled load | E55: =IF(Prop2021DistTar!C17="","",Prop2021DistTar!C17) -> Docklands Two Rate 5d - controlled load | F55: =Prop2021DistTar!BG17 -> 0 | I55: =Prop2021DistTar!BV17 -> 0
A56: =OR(EXACT(D56,Prop2021DistTar!C$6:C$65)) -> TRUE | B56: Residential | C56: Residential | D56: =IF(Prop2021DistTar!B18="","",Prop2021DistTar!B18) -> Dedicated circuit | E56: =IF(Prop2021DistTar!C18="","",Prop2021DistTar!C18) -> Dedicated circuit | F56: =Prop2021DistTar!BG18 -> 2022132.368 | I56: =Prop2021DistTar!BV18 -> 2461044.82
A57: =OR(EXACT(D57,Prop2021DistTar!C$6:C$65)) -> TRUE | B57: Residential | C57: Residential | D57: =IF(Prop2021DistTar!B19="","",Prop2021DistTar!B19) -> Hot Water Interval | E57: =IF(Prop2021DistTar!C19="","",Prop2021DistTar!C19) -> Hot Water Interval | F57: =Prop2021DistTar!BG19 -> 0 | I57: =Prop2021DistTar!BV19 -> 0
A58: =OR(EXACT(D58,Prop2021DistTar!C$6:C$65)) -> TRUE | B58: Residential | C58: Residential | D58: =IF(Prop2021DistTar!B20="","",Prop2021DistTar!B20) -> Residential Demand | E58: =IF(Prop2021DistTar!C20="","",Prop2021DistTar!C20) -> Residential Demand | F58: =Prop2021DistTar!BG20 -> 1640.787512 | I58: =Prop2021DistTar!BV20 -> 1978.411208
A59: =OR(EXACT(D59,Prop2021DistTar!C$6:C$65)) -> TRUE | B59: Residential | C59: Residential | D59: =IF(Prop2021DistTar!B21="","",Prop2021DistTar!B21) -> Newstead Residential Trial | E59: =IF(Prop2021DistTar!C21="","",Prop2021DistTar!C21) -> Newstead Residential Trial | F59: =Prop2021DistTar!BG21 -> 906.6384481 | I59: =Prop2021DistTar!BV21 -> 1113.408407
A60: =OR(EXACT(D60,Prop2021DistTar!C$6:C$65)) -> TRUE | B60: Small business | C60: Small business | D60: =IF(Prop2021DistTar!B22="","",Prop2021DistTar!B22) -> Non-Residential Single Rate | E60: =IF(Prop2021DistTar!C22="","",Prop2021DistTar!C22) -> Non-Residential Single Rate | F60: =Prop2021DistTar!BG22 -> 13680316.86 | I60: =Prop2021DistTar!BV22 -> 15082431.55
A61: =OR(EXACT(D61,Prop2021DistTar!C$6:C$65)) -> TRUE | B61: Small business | C61: Small business | D61: =IF(Prop2021DistTar!B23="","",Prop2021DistTar!B23) -> Non-Residential Flexible Pricing | E61: =IF(Prop2021DistTar!C23="","",Prop2021DistTar!C23) -> Non-Residential Flexible Pricing | F61: =Prop2021DistTar!BG23 -> 129876.4381 | I61: =Prop2021DistTar!BV23 -> 155520.6084
A62: =OR(EXACT(D62,Prop2021DistTar!C$6:C$65)) -> TRUE | B62: Small business | C62: Small business | D62: =IF(Prop2021DistTar!B24="","",Prop2021DistTar!B24) -> Non-Residential Two Rate 5d | E62: =IF(Prop2021DistTar!C24="","",Prop2021DistTar!C24) -> Non-Residential Two Rate 5d | F62: =Prop2021DistTar!BG24 -> 14557189.54 | I62: =Prop2021DistTar!BV24 -> 15445902.75
A63: =OR(EXACT(D63,Prop2021DistTar!C$6:C$65)) -> TRUE | B63: Small business | C63: Small business | D63: =IF(Prop2021DistTar!B25="","",Prop2021DistTar!B25) -> Non-Residential Interval | E63: =IF(Prop2021DistTar!C25="","",Prop2021DistTar!C25) -> Non-Residential Interval | F63: =Prop2021DistTar!BG25 -> 6641611.147 | I63: =Prop2021DistTar!BV25 -> 7043372.769
A64: =OR(EXACT(D64,Prop2021DistTar!C$6:C$65)) -> TRUE | B64: Small business | C64: Small business | D64: =IF(Prop2021DistTar!B26="","",Prop2021DistTar!B26) -> Non-Residential Two Rate 7d | E64: =IF(Prop2021DistTar!C26="","",Prop2021DistTar!C26) -> Non-Residential Two Rate 7d | F64: =Prop2021DistTar!BG26 -> 3562538.785 | I64: =Prop2021DistTar!BV26 -> 3561624.19
A65: =OR(EXACT(D65,Prop2021DistTar!C$6:C$65)) -> TRUE | B65: Small business | C65: Small business | D65: =IF(Prop2021DistTar!B27="","",Prop2021DistTar!B27) -> Non-Residential Demand | E65: =IF(Prop2021DistTar!C27="","",Prop2021DistTar!C27) -> Non-Residential Demand | F65: =Prop2021DistTar!BG27 -> 86859.66843 | I65: =Prop2021DistTar!BV27 -> 102420.4521
A66: =OR(EXACT(D66,Prop2021DistTar!C$6:C$65)) -> TRUE | B66: Small business | C66: Small business | D66: =IF(Prop2021DistTar!B28="","",Prop2021DistTar!B28) -> Medium business Demand | E66: =IF(Prop2021DistTar!C28="","",Prop2021DistTar!C28) -> Medium business Demand | F66: =Prop2021DistTar!BG28 -> 33869583.84 | I66: =Prop2021DistTar!BV28 -> 36944501.49
A67: =OR(EXACT(D67,Prop2021DistTar!C$6:C$65)) -> TRUE | B67: Small business | C67: Small business | D67: =IF(Prop2021DistTar!B29="","",Prop2021DistTar!B29) -> Medium business Opt-out | E67: =IF(Prop2021DistTar!C29="","",Prop2021DistTar!C29) -> Medium business Opt-out | F67: =Prop2021DistTar!BG29 -> 471334.4311 | I67: =Prop2021DistTar!BV29 -> 620458.1185
A68: =OR(EXACT(D68,Prop2021DistTar!C$6:C$65)) -> TRUE | B68: Small business | C68: Small business | D68: =IF(Prop2021DistTar!B30="","",Prop2021DistTar!B30) -> Public Lighting | E68: =IF(Prop2021DistTar!C30="","",Prop2021DistTar!C30) -> Public Lighting | F68: =Prop2021DistTar!BG30 -> 2849018.701 | I68: =Prop2021DistTar!BV30 -> 3040561.082
A69: =OR(EXACT(D69,Prop2021DistTar!C$6:C$65)) -> TRUE | B69: LLV | C69: LLV | D69: =IF(Prop2021DistTar!B31="","",Prop2021DistTar!B31) -> Large low Voltage | E69: =IF(Prop2021DistTar!C31="","",Prop2021DistTar!C31) -> Large low Voltage | F69: =Prop2021DistTar!BG31 -> 71837831.55 | I69: =Prop2021DistTar!BV31 -> 85442085.82
A70: =OR(EXACT(D70,Prop2021DistTar!C$6:C$65)) -> TRUE | B70: HV | C70: HV | D70: =IF(Prop2021DistTar!B32="","",Prop2021DistTar!B32) -> High Voltage | E70: =IF(Prop2021DistTar!C32="","",Prop2021DistTar!C32) -> High Voltage | F70: =Prop2021DistTar!BG32 -> 19214282.51 | I70: =Prop2021DistTar!BV32 -> 24834964.96
A71: =OR(EXACT(D71,Prop2021DistTar!C$6:C$65)) -> TRUE | B71: HV | C71: HV | D71: =IF(Prop2021DistTar!B33="","",Prop2021DistTar!B33) -> High Voltage Docklands | E71: =IF(Prop2021DistTar!C33="","",Prop2021DistTar!C33) -> High Voltage Docklands | F71: =Prop2021DistTar!BG33 -> 2076190.107 | I71: =Prop2021DistTar!BV33 -> 2694550.47
A72: =OR(EXACT(D72,Prop2021DistTar!C$6:C$65)) -> TRUE | B72: SubTrans | C72: SubTrans | D72: =IF(Prop2021DistTar!B34="","",Prop2021DistTar!B34) -> Subtransmission | E72: =IF(Prop2021DistTar!C34="","",Prop2021DistTar!C34) -> Subtransmission | F72: =Prop2021DistTar!BG34 -> 2263915.274 | I72: =Prop2021DistTar!BV34 -> 4032702.974
A73: =OR(EXACT(D73,Prop2021DistTar!C$6:C$65)) -> TRUE | D73: =IF(Prop2021DistTar!B35="","",Prop2021DistTar!B35) ->  | E73: =IF(Prop2021DistTar!C35="","",Prop2021DistTar!C35) ->  | F73: =Prop2021DistTar!BG35 -> 0 | I73: =Prop2021DistTar!BV35 -> 0
A74: =OR(EXACT(D74,Prop2021DistTar!C$6:C$65)) -> TRUE | D74: =IF(Prop2021DistTar!B36="","",Prop2021DistTar!B36) ->  | E74: =IF(Prop2021DistTar!C36="","",Prop2021DistTar!C36) ->  | F74: =Prop2021DistTar!BG36 -> 0 | I74: =Prop2021DistTar!BV36 -> 0
A75: =OR(EXACT(D75,Prop2021DistTar!C$6:C$65)) -> TRUE | D75: =IF(Prop2021DistTar!B37="","",Prop2021DistTar!B37) ->  | E75: =IF(Prop2021DistTar!C37="","",Prop2021DistTar!C37) ->  | F75: =Prop2021DistTar!BG37 -> 0 | I75: =Prop2021DistTar!BV37 -> 0
A76: =OR(EXACT(D76,Prop2021DistTar!C$6:C$65)) -> TRUE | D76: =IF(Prop2021DistTar!B38="","",Prop2021DistTar!B38) ->  | E76: =IF(Prop2021DistTar!C38="","",Prop2021DistTar!C38) ->  | F76: =Prop2021DistTar!BG38 -> 0 | I76: =Prop2021DistTar!BV38 -> 0
A77: =OR(EXACT(D77,Prop2021DistTar!C$6:C$65)) -> TRUE | D77: =IF(Prop2021DistTar!B39="","",Prop2021DistTar!B39) ->  | E77: =IF(Prop2021DistTar!C39="","",Prop2021DistTar!C39) ->  | F77: =Prop2021DistTar!BG39 -> 0 | I77: =Prop2021DistTar!BV39 -> 0
A78: =OR(EXACT(D78,Prop2021DistTar!C$6:C$65)) -> TRUE | D78: =IF(Prop2021DistTar!B40="","",Prop2021DistTar!B40) ->  | E78: =IF(Prop2021DistTar!C40="","",Prop2021DistTar!C40) ->  | F78: =Prop2021DistTar!BG40 -> 0 | I78: =Prop2021DistTar!BV40 -> 0
A79: =OR(EXACT(D79,Prop2021DistTar!C$6:C$65)) -> TRUE | D79: =IF(Prop2021DistTar!B41="","",Prop2021DistTar!B41) ->  | E79: =IF(Prop2021DistTar!C41="","",Prop2021DistTar!C41) ->  | F79: =Prop2021DistTar!BG41 -> 0 | I79: =Prop2021DistTar!BV41 -> 0
A80: =OR(EXACT(D80,Prop2021DistTar!C$6:C$65)) -> TRUE | D80: =IF(Prop2021DistTar!B42="","",Prop2021DistTar!B42) ->  | E80: =IF(Prop2021DistTar!C42="","",Prop2021DistTar!C42) ->  | F80: =Prop2021DistTar!BG42 -> 0 | I80: =Prop2021DistTar!BV42 -> 0
A81: =OR(EXACT(D81,Prop2021DistTar!C$6:C$65)) -> TRUE | D81: =IF(Prop2021DistTar!B43="","",Prop2021DistTar!B43) ->  | E81: =IF(Prop2021DistTar!C43="","",Prop2021DistTar!C43) ->  | F81: =Prop2021DistTar!BG43 -> 0 | I81: =Prop2021DistTar!BV43 -> 0
A82: =OR(EXACT(D82,Prop2021DistTar!C$6:C$65)) -> TRUE | D82: =IF(Prop2021DistTar!B44="","",Prop2021DistTar!B44) ->  | E82: =IF(Prop2021DistTar!C44="","",Prop2021DistTar!C44) ->  | F82: =Prop2021DistTar!BG44 -> 0 | I82: =Prop2021DistTar!BV44 -> 0
A83: =OR(EXACT(D83,Prop2021DistTar!C$6:C$65)) -> TRUE | D83: =IF(Prop2021DistTar!B45="","",Prop2021DistTar!B45) ->  | E83: =IF(Prop2021DistTar!C45="","",Prop2021DistTar!C45) ->  | F83: =Prop2021DistTar!BG45 -> 0 | I83: =Prop2021DistTar!BV45 -> 0
A84: =OR(EXACT(D84,Prop2021DistTar!C$6:C$65)) -> TRUE | D84: =IF(Prop2021DistTar!B46="","",Prop2021DistTar!B46) ->  | E84: =IF(Prop2021DistTar!C46="","",Prop2021DistTar!C46) ->  | F84: =Prop2021DistTar!BG46 -> 0 | I84: =Prop2021DistTar!BV46 -> 0
A85: =OR(EXACT(D85,Prop2021DistTar!C$6:C$65)) -> TRUE | D85: =IF(Prop2021DistTar!B47="","",Prop2021DistTar!B47) ->  | E85: =IF(Prop2021DistTar!C47="","",Prop2021DistTar!C47) ->  | F85: =Prop2021DistTar!BG47 -> 0 | I85: =Prop2021DistTar!BV47 -> 0
A86: =OR(EXACT(D86,Prop2021DistTar!C$6:C$65)) -> TRUE | D86: =IF(Prop2021DistTar!B48="","",Prop2021DistTar!B48) ->  | E86: =IF(Prop2021DistTar!C48="","",Prop2021DistTar!C48) ->  | F86: =Prop2021DistTar!BG48 -> 0 | I86: =Prop2021DistTar!BV48 -> 0
A87: =OR(EXACT(D87,Prop2021DistTar!C$6:C$65)) -> TRUE | D87: =IF(Prop2021DistTar!B49="","",Prop2021DistTar!B49) ->  | E87: =IF(Prop2021DistTar!C49="","",Prop2021DistTar!C49) ->  | F87: =Prop2021DistTar!BG49 -> 0 | I87: =Prop2021DistTar!BV49 -> 0
A88: =OR(EXACT(D88,Prop2021DistTar!C$6:C$65)) -> TRUE | D88: =IF(Prop2021DistTar!B50="","",Prop2021DistTar!B50) ->  | E88: =IF(Prop2021DistTar!C50="","",Prop2021DistTar!C50) ->  | F88: =Prop2021DistTar!BG50 -> 0 | I88: =Prop2021DistTar!BV50 -> 0
A89: =OR(EXACT(D89,Prop2021DistTar!C$6:C$65)) -> TRUE | D89: =IF(Prop2021DistTar!B51="","",Prop2021DistTar!B51) ->  | E89: =IF(Prop2021DistTar!C51="","",Prop2021DistTar!C51) ->  | F89: =Prop2021DistTar!BG51 -> 0 | I89: =Prop2021DistTar!BV51 -> 0
A90: =OR(EXACT(D90,Prop2021DistTar!C$6:C$65)) -> TRUE | D90: =IF(Prop2021DistTar!B52="","",Prop2021DistTar!B52) ->  | E90: =IF(Prop2021DistTar!C52="","",Prop2021DistTar!C52) ->  | F90: =Prop2021DistTar!BG52 -> 0 | I90: =Prop2021DistTar!BV52 -> 0
A91: =OR(EXACT(D91,Prop2021DistTar!C$6:C$65)) -> TRUE | D91: =IF(Prop2021DistTar!B53="","",Prop2021DistTar!B53) ->  | E91: =IF(Prop2021DistTar!C53="","",Prop2021DistTar!C53) ->  | F91: =Prop2021DistTar!BG53 -> 0 | I91: =Prop2021DistTar!BV53 -> 0
A92: =OR(EXACT(D92,Prop2021DistTar!C$6:C$65)) -> TRUE | D92: =IF(Prop2021DistTar!B54="","",Prop2021DistTar!B54) ->  | E92: =IF(Prop2021DistTar!C54="","",Prop2021DistTar!C54) ->  | F92: =Prop2021DistTar!BG54 -> 0 | I92: =Prop2021DistTar!BV54 -> 0
A93: =OR(EXACT(D93,Prop2021DistTar!C$6:C$65)) -> TRUE | D93: =IF(Prop2021DistTar!B55="","",Prop2021DistTar!B55) ->  | E93: =IF(Prop2021DistTar!C55="","",Prop2021DistTar!C55) ->  | F93: =Prop2021DistTar!BG55 -> 0 | I93: =Prop2021DistTar!BV55 -> 0
A94: =OR(EXACT(D94,Prop2021DistTar!C$6:C$65)) -> TRUE | D94: =IF(Prop2021DistTar!B56="","",Prop2021DistTar!B56) ->  | E94: =IF(Prop2021DistTar!C56="","",Prop2021DistTar!C56) ->  | F94: =Prop2021DistTar!BG56 -> 0 | I94: =Prop2021DistTar!BV56 -> 0
A95: =OR(EXACT(D95,Prop2021DistTar!C$6:C$65)) -> TRUE | D95: =IF(Prop2021DistTar!B57="","",Prop2021DistTar!B57) ->  | E95: =IF(Prop2021DistTar!C57="","",Prop2021DistTar!C57) ->  | F95: =Prop2021DistTar!BG57 -> 0 | I95: =Prop2021DistTar!BV57 -> 0
A96: =OR(EXACT(D96,Prop2021DistTar!C$6:C$65)) -> TRUE | D96: =IF(Prop2021DistTar!B58="","",Prop2021DistTar!B58) ->  | E96: =IF(Prop2021DistTar!C58="","",Prop2021DistTar!C58) ->  | F96: =Prop2021DistTar!BG58 -> 0 | I96: =Prop2021DistTar!BV58 -> 0
A97: =OR(EXACT(D97,Prop2021DistTar!C$6:C$65)) -> TRUE | D97: =IF(Prop2021DistTar!B59="","",Prop2021DistTar!B59) ->  | E97: =IF(Prop2021DistTar!C59="","",Prop2021DistTar!C59) ->  | F97: =Prop2021DistTar!BG59 -> 0 | I97: =Prop2021DistTar!BV59 -> 0
A98: =OR(EXACT(D98,Prop2021DistTar!C$6:C$65)) -> TRUE | D98: =IF(Prop2021DistTar!B60="","",Prop2021DistTar!B60) ->  | E98: =IF(Prop2021DistTar!C60="","",Prop2021DistTar!C60) ->  | F98: =Prop2021DistTar!BG60 -> 0 | I98: =Prop2021DistTar!BV60 -> 0
A99: =OR(EXACT(D99,Prop2021DistTar!C$6:C$65)) -> TRUE | D99: =IF(Prop2021DistTar!B61="","",Prop2021DistTar!B61) ->  | E99: =IF(Prop2021DistTar!C61="","",Prop2021DistTar!C61) ->  | F99: =Prop2021DistTar!BG61 -> 0 | I99: =Prop2021DistTar!BV61 -> 0
A100: =OR(EXACT(D100,Prop2021DistTar!C$6:C$65)) -> TRUE | D100: =IF(Prop2021DistTar!B62="","",Prop2021DistTar!B62) ->  | E100: =IF(Prop2021DistTar!C62="","",Prop2021DistTar!C62) ->  | F100: =Prop2021DistTar!BG62 -> 0 | I100: =Prop2021DistTar!BV62 -> 0
A101: =OR(EXACT(D101,Prop2021DistTar!C$6:C$65)) -> TRUE | D101: =IF(Prop2021DistTar!B63="","",Prop2021DistTar!B63) ->  | E101: =IF(Prop2021DistTar!C63="","",Prop2021DistTar!C63) ->  | F101: =Prop2021DistTar!BG63 -> 0 | I101: =Prop2021DistTar!BV63 -> 0
A102: =OR(EXACT(D102,Prop2021DistTar!C$6:C$65)) -> TRUE | D102: =IF(Prop2021DistTar!B64="","",Prop2021DistTar!B64) ->  | E102: =IF(Prop2021DistTar!C64="","",Prop2021DistTar!C64) ->  | F102: =Prop2021DistTar!BG64 -> 0 | I102: =Prop2021DistTar!BV64 -> 0
A103: =OR(EXACT(D103,Prop2021DistTar!C$6:C$65)) -> TRUE | D103: =IF(Prop2021DistTar!B65="","",Prop2021DistTar!B65) ->  | E103: =IF(Prop2021DistTar!C65="","",Prop2021DistTar!C65) ->  | F103: =Prop2021DistTar!BG65 -> 0 | I103: =Prop2021DistTar!BV65 -> 0
F104: =SUM(F44:F103) -> 302936906.8 | I104: =SUM(I44:I103) -> 347920673.8 | BJ104: =SUM(BJ44:BJ103) -> 0

Sheet Est2020DistRev
B1: ="Tariff Approval - "&'Model update'!C3 -> Tariff Approval - Powercor | D1: ="Est"&'Model update'!$C$5-1&"DistRev" -> Est2020DistRev
B3: ="ESTIMATED "&'Model update'!$C$8&" Distribution Revenue" -> ESTIMATED 2020 Distribution Revenue
D4: ="Current Distribution Tariffs (Pt-1) for "&'Model update'!$C$8 -> Current Distribution Tariffs (Pt-1) for 2020 | R4: =" Estimated Distribution Quantities for "&'Model update'!$C$8&" (Qt-1)" -> Estimated Distribution Quantities for 2020 (Qt-1) | AF4: ="Estimated Revenue (Pt-1 "&'Model update'!$C$8&")*(Qt-1 " &'Model update'!$C$8&")" -> Estimated Revenue (Pt-1 2020)*(Qt-1 2020)
B5: ="Tariffs "&'[1]Model update'!C8 -> Tariffs 2019 | D5: CurrentTar Fixed | E5: CurrentTar Anytime | F5: CurrentTar PkBlk | G5: CurrentTar OPkBlk1 | H5: CurrentTar Dem kVA | I5: CurrentTar Dem kW Sum | J5: CurrentTar Dem kW Win | K5: CurrentTar SumBlk1 | L5: CurrentTar SumBlk2 | M5: CurrentTar SumBlk3 | N5: CurrentTar WtrBlk1 | O5: CurrentTar WtrBlk2 | P5: CurrentTar WtrBlk3 | R5: EstVol Fixed | S5: EstVol Anytime | T5: EstVol Pk | U5: EstVol Opk | V5: EstVol Dem kVA | W5: EstVol Dem kW Sum | X5: EstVol Dem kW Win | Y5: EstVol SumBlk1 | Z5: EstVol SumBlk2 | AA5: EstVol SumBlk3 | AB5: EstVol WtrBlk1 | AC5: EstVol WtrBlk2 | AD5: EstVol WtrBlk3 | AF5: EstRev Fixed | AG5: EstRev Anytime | AH5: EstRev Pk | AI5: EstRev Opk | AJ5: EstRev Dem kVA | AK5: EstRev Dem kW Sum | AL5: EstRev Dem kW Win | AM5: EstRev SumBlk1 | AN5: EstRev SumBlk2 | AO5: EstRev SumBlk3 | AP5: EstRev WtrBlk1 | AQ5: EstRev WtrBlk2 | AR5: EstRev WtrBlk3 | AS5: EstRev Total
A6: C1R | B6: =Prop2021DistTar!C6 -> Residential Single Rate | D6: 140 | E6: 5.57 | F6: 0 | G6: 0 | H6: 0 | I6: 0 | J6: 0 | K6: 0 | L6: 0 | M6: 0 | N6: 0 | O6: 0 | P6: 0 | R6: 572443.2566 | S6: 2509366847 | T6: 0 | U6: 0 | V6: 0 | W6: 0 | X6: 0 | Y6: 0 | Z6: 0 | AA6: 0 | AB6: 0 | AC6: 0 | AD6: 0 | AF6: =D6*R6 -> 80142055.93 | AG6: =E6/100*S6 -> 139771733.4 | AH6: 0 | AI6: 0 | AJ6: =H6*V6 -> 0 | AK6: =I6*W6 -> 0 | AL6: 0 | AM6: =K6/100*Y6 -> 0 | AN6: 0 | AO6: 0 | AP6: 0 | AQ6: 0 | AR6: 0 | AS6: =SUM(AF6:AR6) -> 219913789.3
A7: C1RB | B7: =Prop2021DistTar!C7 -> Climate Saver | D7: 0 | E7: 0 | F7: 7.9 | G7: 1.57 | H7: 0 | I7: 0 | J7: 0 | K7: 0 | L7: 0 | M7: 0 | N7: 0 | O7: 0 | P7: 0 | R7: 16861.04795 | S7: 0 | T7: 9874474.429 | U7: 17935586.28 | V7: 0 | W7: 0 | X7: 0 | Y7: 0 | Z7: 0 | AA7: 0 | AB7: 0 | AC7: 0 | AD7: 0 | AF7: =D7*R7 -> 0 | AG7: =E7/100*S7 -> 0 | AH7: 780083.4799 | AI7: 281588.7046 | AJ7: 0 | AK7: 0 | AL7: 0 | AM7: 0 | AN7: 0 | AO7: 0 | AP7: 0 | AQ7: 0 | AR7: 0 | AS7: =SUM(AF7:AR7) -> 1061672.185
A8: C13R | B8: =Prop2021DistTar!C8 -> Climate Saver Interval | D8: 0 | E8: 0 | F8: 7.9 | G8: 1.57 | H8: 0 | I8: 0 | J8: 0 | K8: 0 | L8: 0 | M8: 0 | N8: 0 | O8: 0 | P8: 0 | R8: 4615 | S8: 0 | T8: 2865633.918 | U8: 5776403.999 | V8: 0 | W8: 0 | X8: 0 | Y8: 0 | Z8: 0 | AA8: 0 | AB8: 0 | AC8: 0 | AD8: 0 | AF8: 0 | AG8: 0 | AH8: 226385.0795 | AI8: 90689.54278 | AJ8: 0 | AK8: 0 | AL8: 0 | AM8: 0 | AN8: 0 | AO8: 0 | AP8: 0 | AQ8: 0 | AR8: 0 | AS8: 317074.6223
A9: C13RB | B9: =Prop2021DistTar!C9 -> Residential - Flexible Pricing | D9: 140 | E9: 0 | F9: 0 | G9: 0 | H9: 0 | I9: 0 | J9: 0 | K9: 10.27 | L9: 5.8 | M9: 2.24 | N9: 10.27 | O9: 5.8 | P9: 2.24 | R9: 3091.114945 | S9: 0 | T9: 0 | U9: 0 | V9: 0 | W9: 0 | X9: 0 | Y9: 780281.0199 | Z9: 1512255.045 | AA9: 1229126.074 | AB9: 2857752.309 | AC9: 5538581.917 | AD9: 4501631.832 | AF9: 432756.0923 | AG9: 0 | AH9: 0 | AI9: 0 | AJ9: 0 | AK9: 0 | AL9: 0 | AM9: 80134.86074 | AN9: 87710.79261 | AO9: 27532.42406 | AP9: 293491.1621 | AQ9: 321237.7512 | AR9: 100836.553 | AS9: 1343699.636
A10: C2R | B10: =Prop2021DistTar!C10 -> Residential Docklands - Flexible Pricing | D10: 140 | E10: 0 | F10: 0 | G10: 0 | H10: 0 | I10: 0 | J10: 0 | K10: 10.27 | L10: 5.8 | M10: 2.24 | N10: 10.27 | O10: 5.8 | P10: 2.24 | R10: 0.8982790797 | S10: 0 | T10: 0 | U10: 0 | V10: 0 | W10: 0 | X10: 0 | Y10: 301.2634427 | Z10: 577.0353633 | AA10: 387.0076533 | AB10: 1038.66086 | AC10: 1989.435033 | AD10: 1334.279721 | AF10: 125.7590712 | AG10: 0 | AH10: 0 | AI10: 0 | AJ10: 0 | AK10: 0 | AL10: 0 | AM10: 30.93975556 | AN10: 33.46805107 | AO10: 8.668971434 | AP10: 106.6704704 | AQ10: 115.3872319 | AR10: 29.88786574 | AS10: 450.7814172
A11: C2RB | B11: =Prop2021DistTar!C11 -> Climate Saver - Flexible Pricing | D11: 0 | E11: 0 | F11: 0 | G11: 0 | H11: 0 | I11: 0 | J11: 0 | K11: 7.9 | L11: 0 | M11: 0 | N11: 1.57 | O11: 0 | P11: 0 | R11: 59 | S11: 0 | T11: 0 | U11: 0 | V11: 0 | W11: 0 | X11: 0 | Y11: 30654.86318 | Z11: 0 | AA11: 0 | AB11: 8569.35181 | AC11: 0 | AD11: 60941.97198 | AF11: 0 | AG11: 0 | AH11: 0 | AI11: 0 | AJ11: 0 | AK11: 0 | AL11: 0 | AM11: 2421.734191 | AN11: 0 | AO11: 0 | AP11: 134.5388234 | AQ11: 0 | AR11: 0 | AS11: 2556.273015
A12: C3R | B12: =Prop2021DistTar!C12 -> Docklands single rate | D12: 140 | E12: 5.57 | F12: 0 | G12: 0 | H12: 0 | I12: 0 | J12: 0 | K12: 0 | L12: 0 | M12: 0 | N12: 0 | O12: 0 | P12: 0 | R12: 2.535344821 | S12: 47230.70418 | T12: 0 | U12: 0 | V12: 0 | W12: 0 | X12: 0 | Y12: 0 | Z12: 0 | AA12: 0 | AB12: 0 | AC12: 0 | AD12: 0 | AF12: 354.948275 | AG12: 2630.750223 | AH12: 0 | AI12: 0 | AJ12: 0 | AK12: 0 | AL12: 0 | AM12: 0 | AN12: 0 | AO12: 0 | AP12: 0 | AQ12: 0 | AR12: 0 | AS12: 2985.698498
A13: C3RB | B13: =Prop2021DistTar!C13 -> Residential Two Rate 5d | D13: 140 | E13: 0 | F13: 9.81 | G13: 2.23 | H13: 0 | I13: 0 | J13: 0 | K13: 0 | L13: 0 | M13: 0 | N13: 0 | O13: 0 | P13: 0 | R13: 45021.61273 | S13: 0 | T13: 124072246.5 | U13: 114355033.8 | V13: 0 | W13: 0 | X13: 0 | Y13: 0 | Z13: 0 | AA13: 0 | AB13: 0 | AC13: 0 | AD13: 0 | AF13: 6303025.782 | AG13: 0 | AH13: 12171487.39 | AI13: 2550117.253 | AJ13: 0 | AK13: 0 | AL13: 0 | AM13: 0 | AN13: 0 | AO13: 0 | AP13: 0 | AQ13: 0 | AR13: 0 | AS13: 21024630.42
A14: C2ROP | B14: =Prop2021DistTar!C14 -> Docklands Two Rate 5d | D14: 140 | E14: 0 | F14: 9.81 | G14: 2.07 | H14: 0 | I14: 0 | J14: 0 | K14: 0 | L14: 0 | M14: 0 | N14: 0 | O14: 0 | P14: 0 | R14: 569.6349375 | S14: 0 | T14: 1813572.865 | U14: 1689527.497 | V14: 0 | W14: 0 | X14: 0 | Y14: 0 | Z14: 0 | AA14: 0 | AB14: 0 | AC14: 0 | AD14: 0 | AF14: 79748.89125 | AG14: 0 | AH14: 177911.4981 | AI14: 34973.21919 | AJ14: 0 | AK14: 0 | AL14: 0 | AM14: 0 | AN14: 0 | AO14: 0 | AP14: 0 | AQ14: 0 | AR14: 0 | AS14: 292633.6085
A15: C2RBOP | B15: =Prop2021DistTar!C15 -> Residential Interval | D15: 140 | E15: 0 | F15: 9.81 | G15: 2.23 | H15: 0 | I15: 0 | J15: 0 | K15: 0 | L15: 0 | M15: 0 | N15: 0 | O15: 0 | P15: 0 | R15: 107903.7555 | S15: 0 | T15: 228035493.7 | U15: 239648531 | V15: 0 | W15: 0 | X15: 0 | Y15: 0 | Z15: 0 | AA15: 0 | AB15: 0 | AC15: 0 | AD15: 0 | AF15: 15106525.78 | AG15: 0 | AH15: 22370281.94 | AI15: 5344162.24 | AJ15: 0 | AK15: 0 | AL15: 0 | AM15: 0 | AN15: 0 | AO15: 0 | AP15: 0 | AQ15: 0 | AR15: 0 | AS15: 42820969.95
A16: CDS | B16: =Prop2021DistTar!C16 -> Residential Two Rate 5d - controlled load | D16: 0 | E16: 0 | F16: 0 | G16: 0 | H16: 0 | I16: 0 | J16: 0 | K16: 0 | L16: 0 | M16: 0 | N16: 0 | O16: 0 | P16: 0 | R16: 0 | S16: 0 | T16: 0 | U16: 0 | V16: 0 | W16: 0 | X16: 0 | Y16: 0 | Z16: 0 | AA16: 0 | AB16: 0 | AC16: 0 | AD16: 0 | AF16: 0 | AG16: 0 | AH16: 0 | AI16: 0 | AJ16: 0 | AK16: 0 | AL16: 0 | AM16: 0 | AN16: 0 | AO16: 0 | AP16: 0 | AQ16: 0 | AR16: 0 | AS16: 0
A17: CDSB | B17: =Prop2021DistTar!C17 -> Docklands Two Rate 5d - controlled load | D17: 0 | E17: 0 | F17: 0 | G17: 0 | H17: 0 | I17: 0 | J17: 0 | K17: 0 | L17: 0 | M17: 0 | N17: 0 | O17: 0 | P17: 0 | R17: 0 | S17: 0 | T17: 0 | U17: 0 | V17: 0 | W17: 0 | X17: 0 | Y17: 0 | Z17: 0 | AA17: 0 | AB17: 0 | AC17: 0 | AD17: 0 | AF17: 0 | AG17: 0 | AH17: 0 | AI17: 0 | AJ17: 0 | AK17: 0 | AL17: 0 | AM17: 0 | AN17: 0 | AO17: 0 | AP17: 0 | AQ17: 0 | AR17: 0 | AS17: 0
A18: CR | B18: =Prop2021DistTar!C18 -> Dedicated circuit | D18: 0 | E18: 0 | F18: 0 | G18: 1.57 | H18: 0 | I18: 0 | J18: 0 | K18: 0 | L18: 0 | M18: 0 | N18: 0 | O18: 0 | P18: 0 | R18: 204923.6273 | S18: 0 | T18: 0 | U18: 377403994 | V18: 0 | W18: 0 | X18: 0 | Y18: 0 | Z18: 0 | AA18: 0 | AB18: 0 | AC18: 0 | AD18: 0 | AF18: 0 | AG18: 0 | AH18: 0 | AI18: 5925242.705 | AJ18: 0 | AK18: 0 | AL18: 0 | AM18: 0 | AN18: 0 | AO18: 0 | AP18: 0 | AQ18: 0 | AR18: 0 | AS18: 5925242.705
A19: CRB | B19: =Prop2021DistTar!C19 -> Hot Water Interval | D19: 0 | E19: 0 | F19: 0 | G19: 0 | H19: 0 | I19: 0 | J19: 0 | K19: 0 | L19: 0 | M19: 0 | N19: 0 | O19: 0 | P19: 0 | R19: 0 | S19: 0 | T19: 0 | U19: 0 | V19: 0 | W19: 0 | X19: 0 | Y19: 0 | Z19: 0 | AA19: 0 | AB19: 0 | AC19: 0 | AD19: 0 | AF19: 0 | AG19: 0 | AH19: 0 | AI19: 0 | AJ19: 0 | AK19: 0 | AL19: 0 | AM19: 0 | AN19: 0 | AO19: 0 | AP19: 0 | AQ19: 0 | AR19: 0 | AS19: 0
A20: C1G | B20: =Prop2021DistTar!C20 -> Residential Demand | D20: 140 | E20: 2.44 | F20: 0 | G20: 0 | H20: 0 | I20: 8.19 | J20: 2.73 | K20: 0 | L20: 0 | M20: 0 | N20: 0 | O20: 0 | P20: 0 | R20: 4.638457997 | S20: 17808.24168 | T20: 0 | U20: 0 | V20: 0 | W20: 53.31988566 | X20: 107.3570863 | Y20: 0 | Z20: 0 | AA20: 0 | AB20: 0 | AC20: 0 | AD20: 0 | AF20: 649.3841196 | AG20: 434.5210971 | AH20: 0 | AI20: 0 | AJ20: 0 | AK20: 436.6898635 | AL20: 293.0848456 | AM20: 0 | AN20: 0 | AO20: 0 | AP20: 0 | AQ20: 0 | AR20: 0 | AS20: 1813.679926
A21: C1GB | B21: =Prop2021DistTar!C21 -> Newstead Residential Trial | D21: 390 | E21: 0 | F21: 0 | G21: 0 | H21: 0 | I21: 1.64 | J21: 1.64 | K21: 0 | L21: 0 | M21: 0 | N21: 0 | O21: 0 | P21: 0 | R21: 9.767123288 | S21: 42793.42516 | T21: 0 | U21: 0 | V21: 0 | W21: 114.1 | X21: 232.3 | Y21: 0 | Z21: 0 | AA21: 0 | AB21: 0 | AC21: 0 | AD21: 0 | AF21: 3809.178082 | AG21: 0 | AH21: 0 | AI21: 0 | AJ21: 0 | AK21: 187.124 | AL21: 380.972 | AM21: 0 | AN21: 0 | AO21: 0 | AP21: 0 | AQ21: 0 | AR21: 0 | AS21: 4377.274082
A22: C2G5 | B22: =Prop2021DistTar!C22 -> Non-Residential Single Rate | D22: 180 | E22: 7.15 | F22: 0 | G22: 0 | H22: 0 | I22: 0 | J22: 0 | K22: 0 | L22: 0 | M22: 0 | N22: 0 | O22: 0 | P22: 0 | R22: 44757.25741 | S22: 285894018.3 | T22: 0 | U22: 0 | V22: 0 | W22: 0 | X22: 0 | Y22: 0 | Z22: 0 | AA22: 0 | AB22: 0 | AC22: 0 | AD22: 0 | AF22: 8056306.334 | AG22: 20441422.31 | AH22: 0 | AI22: 0 | AJ22: =H22*V22 -> 0 | AK22: 0 | AL22: 0 | AM22: 0 | AN22: 0 | AO22: 0 | AP22: 0 | AQ22: 0 | AR22: 0 | AS22: 28497728.64
A23: C2G5B | B23: =Prop2021DistTar!C23 -> Non-Residential Flexible Pricing | D23: 180 | E23: 0 | F23: 0 | G23: 0 | H23: 0 | I23: 0 | J23: 0 | K23: 11.62 | L23: 3.6 | M23: 2.73 | N23: 11.62 | O23: 3.6 | P23: 2.73 | R23: 185.3732239 | S23: 0 | T23: 0 | U23: 0 | V23: 0 | W23: 0 | X23: 0 | Y23: 389065.4574 | Z23: 144770.8667 | AA23: 415832.5339 | AB23: 1116363.747 | AC23: 415397.8316 | AD23: 1193167.774 | AF23: 33367.1803 | AG23: 0 | AH23: 0 | AI23: 0 | AJ23: 0 | AK23: 0 | AL23: 0 | AM23: 45209.40615 | AN23: 5211.751203 | AO23: 11352.22818 | AP23: 129721.4675 | AQ23: 14954.32194 | AR23: 32573.48024 | AS23: 272389.8355
A24: C3G | B24: =Prop2021DistTar!C24 -> Non-Residential Two Rate 5d | D24: 180 | E24: 0 | F24: 11.76 | G24: 2.62 | H24: 0 | I24: 0 | J24: 0 | K24: 0 | L24: 0 | M24: 0 | N24: 0 | O24: 0 | P24: 0 | R24: 23862.43162 | S24: 0 | T24: 193485923.8 | U24: 171713473.8 | V24: 0 | W24: 0 | X24: 0 | Y24: 0 | Z24: 0 | AA24: 0 | AB24: 0 | AC24: 0 | AD24: 0 | AF24: 4295237.691 | AG24: 0 | AH24: 22753944.64 | AI24: 4498893.014 | AJ24: 0 | AK24: 0 | AL24: 0 | AM24: 0 | AN24: 0 | AO24: 0 | AP24: 0 | AQ24: 0 | AR24: 0 | AS24: 31548075.35
A25: C3GB | B25: =Prop2021DistTar!C25 -> Non-Residential Interval | D25: 180 | E25: 0 | F25: 11.76 | G25: 2.62 | H25: 0 | I25: 0 | J25: 0 | K25: 0 | L25: 0 | M25: 0 | N25: 0 | O25: 0 | P25: 0 | R25: 12072.36866 | S25: 0 | T25: 85635596.92 | U25: 62438419.24 | V25: 0 | W25: 0 | X25: 0 | Y25: 0 | Z25: 0 | AA25: 0 | AB25: 0 | AC25: 0 | AD25: 0 | AF25: 2173026.359 | AG25: 0 | AH25: 10070746.2 | AI25: 1635886.584 | AJ25: 0 | AK25: 0 | AL25: 0 | AM25: 0 | AN25: 0 | AO25: 0 | AP25: 0 | AQ25: 0 | AR25: 0 | AS25: 13879659.14
A26: C14G | B26: =Prop2021DistTar!C26 -> Non-Residential Two Rate 7d | D26: 180 | E26: 0 | F26: 10.37 | G26: 2.62 | H26: 0 | I26: 0 | J26: 0 | K26: 0 | L26: 0 | M26: 0 | N26: 0 | O26: 0 | P26: 0 | R26: 7019.479943 | S26: 0 | T26: 54390915.31 | U26: 21067936.39 | V26: 0 | W26: 0 | X26: 0 | Y26: 0 | Z26: 0 | AA26: 0 | AB26: 0 | AC26: 0 | AD26: 0 | AF26: 1263506.39 | AG26: 0 | AH26: 5640337.917 | AI26: 551979.9333 | AJ26: 0 | AK26: 0 | AL26: 0 | AM26: 0 | AN26: 0 | AO26: 0 | AP26: 0 | AQ26: 0 | AR26: 0 | AS26: 7455824.241
A27: C14GB | B27: =Prop2021DistTar!C27 -> Non-Residential Demand | D27: 180 | E27: 3.37 | F27: 0 | G27: 0 | H27: 0 | I27: 12.72 | J27: 4.24 | K27: 0 | L27: 0 | M27: 0 | N27: 0 | O27: 0 | P27: 0 | R27: 114.0665769 | S27: 4632749.457 | T27: 0 | U27: 0 | V27: 0 | W27: 1491.820739 | X27: 3511.797771 | Y27: 0 | Z27: 0 | AA27: 0 | AB27: 0 | AC27: 0 | AD27: 0 | AF27: 20531.98385 | AG27: 156123.6567 | AH27: 0 | AI27: 0 | AJ27: 0 | AK27: 18975.95979 | AL27: 14890.02255 | AM27: 0 | AN27: 0 | AO27: 0 | AP27: 0 | AQ27: 0 | AR27: 0 | AS27: 210521.6229
A28: C2G7 | B28: =Prop2021DistTar!C28 -> Medium business Demand | D28: 1200 | E28: 0 | F28: 3.33 | G28: 3.33 | H28: 0 | I28: 11.92 | J28: 5.95 | K28: 0 | L28: 0 | M28: 0 | N28: 0 | O28: 0 | P28: 0 | R28: 7728.558394 | S28: 0 | T28: 521622988.5 | U28: 460904199 | V28: 0 | W28: 1415486.63 | X28: 2510898.806 | Y28: 0 | Z28: 0 | AA28: 0 | AB28: 0 | AC28: 0 | AD28: 0 | AF28: 9274270.073 | AG28: 0 | AH28: 17370045.52 | AI28: 15348109.83 | AJ28: 0 | AK28: 16872600.62 | AL28: 14939847.9 | AM28: 0 | AN28: 0 | AO28: 0 | AP28: 0 | AQ28: 0 | AR28: 0 | AS28: 73804873.94
A29: C2G7B | B29: =Prop2021DistTar!C29 -> Medium business Opt-out | D29: 1200 | E29: 0 | F29: 12.32 | G29: 3.96 | H29: 0 | I29: 0 | J29: 0 | K29: 0 | L29: 0 | M29: 0 | N29: 0 | O29: 0 | P29: 0 | R29: 153.7035844 | S29: 0 | T29: 6410795.222 | U29: 4790864.918 | V29: 0 | W29: 0 | X29: 0 | Y29: 0 | Z29: 0 | AA29: 0 | AB29: 0 | AC29: 0 | AD29: 0 | AF29: 184444.3012 | AG29: 0 | AH29: 789809.9714 | AI29: 189718.2507 | AJ29: 0 | AK29: 0 | AL29: 0 | AM29: 0 | AN29: 0 | AO29: 0 | AP29: 0 | AQ29: 0 | AR29: 0 | AS29: 1163972.523
A30: C2L7 | B30: =Prop2021DistTar!C30 -> Public Lighting | D30: 0 | E30: 0 | F30: 16.18 | G30: 4.88 | H30: 0 | I30: 0 | J30: 0 | K30: 0 | L30: 0 | M30: 0 | N30: 0 | O30: 0 | P30: 0 | R30: 8533.552004 | S30: 0 | T30: 22127392.06 | U30: 55870540.72 | V30: 0 | W30: 0 | X30: 0 | Y30: 0 | Z30: 0 | AA30: 0 | AB30: 0 | AC30: 0 | AD30: 0 | AF30: 0 | AG30: 0 | AH30: 3580212.035 | AI30: 2726482.387 | AJ30: 0 | AK30: 0 | AL30: 0 | AM30: 0 | AN30: 0 | AO30: 0 | AP30: 0 | AQ30: 0 | AR30: 0 | AS30: 6306694.422
A31: CG | B31: =Prop2021DistTar!C31 -> Large low Voltage | D31: 8800 | E31: 0 | F31: 3.33 | G31: 1.61 | H31: 93.59 | I31: 0 | J31: 0 | K31: 0 | L31: 0 | M31: 0 | N31: 0 | O31: 0 | P31: 0 | R31: 2882.562375 | S31: 0 | T31: 1374258544 | U31: 1079562538 | V31: 855266.5349 | W31: 0 | X31: 0 | Y31: 0 | Z31: 0 | AA31: 0 | AB31: 0 | AC31: 0 | AD31: 0 | AF31: 25366548.9 | AG31: 0 | AH31: 45762809.5 | AI31: 17380956.86 | AJ31: 80044395 | AK31: 0 | AL31: 0 | AM31: 0 | AN31: 0 | AO31: 0 | AP31: 0 | AQ31: 0 | AR31: 0 | AS31: 168554710.3
A32: CGB | B32: =Prop2021DistTar!C32 -> High Voltage | D32: 49600 | E32: 0 | F32: 1.6 | G32: 0.61 | H32: 57.44 | I32: 0 | J32: 0 | K32: 0 | L32: 0 | M32: 0 | N32: 0 | O32: 0 | P32: 0 | R32: 170.8100271 | S32: 0 | T32: 753809957.8 | U32: 686531052.5 | V32: 396969.309 | W32: 0 | X32: 0 | Y32: 0 | Z32: 0 | AA32: 0 | AB32: 0 | AC32: 0 | AD32: 0 | AF32: 8472177.346 | AG32: 0 | AH32: 12060959.33 | AI32: 4187839.42 | AJ32: 22801917.11 | AK32: 0 | AL32: 0 | AM32: 0 | AN32: 0 | AO32: 0 | AP32: 0 | AQ32: 0 | AR32: 0 | AS32: 47522893.2
A33: CMG | B33: =Prop2021DistTar!C33 -> High Voltage Docklands | D33: 45300 | E33: 0 | F33: 1.49 | G33: 0.58 | H33: 54.12 | I33: 0 | J33: 0 | K33: 0 | L33: 0 | M33: 0 | N33: 0 | O33: 0 | P33: 0 | R33: 7.418730278 | S33: 0 | T33: 117981877.6 | U33: 123663478.9 | V33: 65516.45569 | W33: 0 | X33: 0 | Y33: 0 | Z33: 0 | AA33: 0 | AB33: 0 | AC33: 0 | AD33: 0 | AF33: 336068.4816 | AG33: 0 | AH33: 1757929.976 | AI33: 717248.1775 | AJ33: 3545750.582 | AK33: 0 | AL33: 0 | AM33: 0 | AN33: 0 | AO33: 0 | AP33: 0 | AQ33: 0 | AR33: 0 | AS33: 6356997.217
A34: CMGB | B34: =Prop2021DistTar!C34 -> Subtransmission | D34: 262600 | E34: 0 | F34: 0.54 | G34: 0.16 | H34: 5.09 | I34: 0 | J34: 0 | K34: 0 | L34: 0 | M34: 0 | N34: 0 | O34: 0 | P34: 0 | R34: 14 | S34: 0 | T34: 561857994.9 | U34: 641803918.6 | V34: 264628.1239 | W34: 0 | X34: 0 | Y34: 0 | Z34: 0 | AA34: 0 | AB34: 0 | AC34: 0 | AD34: 0 | AF34: 3676400 | AG34: 0 | AH34: 3034033.173 | AI34: 1026886.27 | AJ34: 1346957.151 | AK34: 0 | AL34: 0 | AM34: 0 | AN34: 0 | AO34: 0 | AP34: 0 | AQ34: 0 | AR34: 0 | AS34: 9084276.593
AF35: 0 | AG35: 0 | AH35: 0 | AI35: 0 | AJ35: 0 | AK35: 0 | AL35: 0 | AM35: =K35/100*Y35 -> 0 | AN35: 0 | AO35: 0 | AP35: 0 | AQ35: 0 | AR35: 0 | AS35: 0
AF36: 0 | AG36: 0 | AH36: 0 | AI36: 0 | AJ36: 0 | AK36: 0 | AL36: 0 | AM36: 0 | AN36: 0 | AO36: 0 | AP36: 0 | AQ36: 0 | AR36: 0 | AS36: 0
AF37: 0 | AG37: 0 | AH37: 0 | AI37: 0 | AJ37: 0 | AK37: 0 | AL37: 0 | AM37: 0 | AN37: 0 | AO37: 0 | AP37: 0 | AQ37: 0 | AR37: 0 | AS37: 0
AF38: 0 | AG38: 0 | AH38: 0 | AI38: 0 | AJ38: 0 | AK38: 0 | AL38: 0 | AM38: 0 | AN38: 0 | AO38: 0 | AP38: 0 | AQ38: 0 | AR38: 0 | AS38: 0
AF39: 0 | AG39: =E39/100*S39 -> 0 | AH39: 0 | AI39: 0 | AJ39: 0 | AK39: 0 | AL39: 0 | AM39: 0 | AN39: 0 | AO39: 0 | AP39: 0 | AQ39: 0 | AR39: 0 | AS39: 0
AF40: 0 | AG40: 0 | AH40: 0 | AI40: 0 | AJ40: 0 | AK40: 0 | AL40: 0 | AM40: 0 | AN40: 0 | AO40: 0 | AP40: 0 | AQ40: 0 | AR40: 0 | AS40: 0
AF41: 0 | AG41: 0 | AH41: 0 | AI41: 0 | AJ41: 0 | AK41: 0 | AL41: 0 | AM41: 0 | AN41: 0 | AO41: 0 | AP41: 0 | AQ41: 0 | AR41: 0 | AS41: 0
AF42: 0 | AG42: 0 | AH42: 0 | AI42: 0 | AJ42: 0 | AK42: 0 | AL42: 0 | AM42: 0 | AN42: 0 | AO42: 0 | AP42: 0 | AQ42: 0 | AR42: 0 | AS42: 0
AF43: 0 | AG43: 0 | AH43: 0 | AI43: 0 | AJ43: 0 | AK43: 0 | AL43: 0 | AM43: 0 | AN43: 0 | AO43: 0 | AP43: 0 | AQ43: 0 | AR43: 0 | AS43: 0
AF44: 0 | AG44: 0 | AH44: 0 | AI44: 0 | AJ44: 0 | AK44: 0 | AL44: 0 | AM44: 0 | AN44: 0 | AO44: 0 | AP44: 0 | AQ44: 0 | AR44: 0 | AS44: 0
AF45: 0 | AG45: 0 | AH45: 0 | AI45: 0 | AJ45: 0 | AK45: 0 | AL45: 0 | AM45: 0 | AN45: 0 | AO45: 0 | AP45: 0 | AQ45: 0 | AR45: 0 | AS45: 0
AF46: 0 | AG46: 0 | AH46: 0 | AI46: 0 | AJ46: 0 | AK46: 0 | AL46: 0 | AM46: 0 | AN46: 0 | AO46: 0 | AP46: 0 | AQ46: 0 | AR46: 0 | AS46: 0
AF47: 0 | AG47: 0 | AH47: 0 | AI47: 0 | AJ47: 0 | AK47: 0 | AL47: 0 | AM47: 0 | AN47: 0 | AO47: 0 | AP47: 0 | AQ47: 0 | AR47: 0 | AS47: 0
AF48: 0 | AG48: 0 | AH48: 0 | AI48: 0 | AJ48: 0 | AK48: 0 | AL48: 0 | AM48: 0 | AN48: 0 | AO48: 0 | AP48: 0 | AQ48: 0 | AR48: 0 | AS48: 0
AF49: 0 | AG49: 0 | AH49: 0 | AI49: 0 | AJ49: 0 | AK49: 0 | AL49: 0 | AM49: 0 | AN49: 0 | AO49: 0 | AP49: 0 | AQ49: 0 | AR49: 0 | AS49: 0
AF50: 0 | AG50: 0 | AH50: 0 | AI50: 0 | AJ50: 0 | AK50: 0 | AL50: 0 | AM50: 0 | AN50: 0 | AO50: 0 | AP50: 0 | AQ50: 0 | AR50: 0 | AS50: 0
AF51: 0 | AG51: 0 | AH51: 0 | AI51: 0 | AJ51: 0 | AK51: 0 | AL51: 0 | AM51: 0 | AN51: 0 | AO51: 0 | AP51: 0 | AQ51: 0 | AR51: 0 | AS51: 0
AF52: 0 | AG52: 0 | AH52: 0 | AI52: 0 | AJ52: 0 | AK52: 0 | AL52: 0 | AM52: 0 | AN52: 0 | AO52: 0 | AP52: 0 | AQ52: 0 | AR52: 0 | AS52: 0
AF53: 0 | AG53: 0 | AH53: 0 | AI53: 0 | AJ53: 0 | AK53: 0 | AL53: 0 | AM53: 0 | AN53: 0 | AO53: 0 | AP53: 0 | AQ53: 0 | AR53: 0 | AS53: 0
AF54: 0 | AG54: 0 | AH54: 0 | AI54: 0 | AJ54: 0 | AK54: 0 | AL54: 0 | AM54: 0 | AN54: 0 | AO54: 0 | AP54: 0 | AQ54: 0 | AR54: 0 | AS54: 0
AF55: 0 | AG55: 0 | AH55: 0 | AI55: 0 | AJ55: 0 | AK55: 0 | AL55: 0 | AM55: 0 | AN55: 0 | AO55: 0 | AP55: 0 | AQ55: 0 | AR55: 0 | AS55: 0
AF56: 0 | AG56: 0 | AH56: 0 | AI56: 0 | AJ56: 0 | AK56: 0 | AL56: 0 | AM56: 0 | AN56: 0 | AO56: 0 | AP56: 0 | AQ56: 0 | AR56: 0 | AS56: 0
AF57: 0 | AG57: 0 | AH57: 0 | AI57: 0 | AJ57: 0 | AK57: 0 | AL57: 0 | AM57: 0 | AN57: 0 | AO57: 0 | AP57: 0 | AQ57: 0 | AR57: 0 | AS57: 0
AF58: 0 | AG58: 0 | AH58: 0 | AI58: 0 | AJ58: 0 | AK58: 0 | AL58: 0 | AM58: 0 | AN58: 0 | AO58: 0 | AP58: 0 | AQ58: 0 | AR58: 0 | AS58: 0
AF59: 0 | AG59: 0 | AH59: 0 | AI59: 0 | AJ59: 0 | AK59: 0 | AL59: 0 | AM59: 0 | AN59: 0 | AO59: 0 | AP59: 0 | AQ59: 0 | AR59: 0 | AS59: 0
AF60: 0 | AG60: 0 | AH60: 0 | AI60: 0 | AJ60: 0 | AK60: 0 | AL60: 0 | AM60: 0 | AN60: 0 | AO60: 0 | AP60: 0 | AQ60: 0 | AR60: 0 | AS60: 0
AF61: 0 | AG61: 0 | AH61: 0 | AI61: 0 | AJ61: 0 | AK61: 0 | AL61: 0 | AM61: 0 | AN61: 0 | AO61: 0 | AP61: 0 | AQ61: 0 | AR61: 0 | AS61: 0
AF62: 0 | AG62: 0 | AH62: 0 | AI62: 0 | AJ62: 0 | AK62: 0 | AL62: 0 | AM62: 0 | AN62: 0 | AO62: 0 | AP62: 0 | AQ62: 0 | AR62: 0 | AS62: 0
AF63: 0 | AG63: 0 | AH63: 0 | AI63: 0 | AJ63: 0 | AK63: 0 | AL63: 0 | AM63: 0 | AN63: 0 | AO63: 0 | AP63: 0 | AQ63: 0 | AR63: 0 | AS63: 0
AF64: 0 | AG64: 0 | AH64: 0 | AI64: 0 | AJ64: 0 | AK64: 0 | AL64: 0 | AM64: 0 | AN64: 0 | AO64: 0 | AP64: 0 | AQ64: 0 | AR64: 0 | AS64: 0
AF65: 0 | AG65: 0 | AH65: 0 | AI65: 0 | AJ65: 0 | AK65: 0 | AL65: 0 | AM65: 0 | AN65: 0 | AO65: 0 | AP65: 0 | AQ65: 0 | AR65: 0 | AS65: 0
R66: =SUM(R6:R65) -> 1063007.472 | S66: 2800001447 | T66: 4058243407 | U66: 4065155498 | V66: 1582380.423 | W66: 1417145.87 | X66: 2514750.261 | Y66: 1200302.604 | Z66: 1657602.947 | AA66: =SUM(AA6:AA65) -> 1645345.616 | AB66: 3983724.069 | AC66: 5955969.183 | AD66: 5757075.858 | AF66: 165220936.8 | AG66: 160372344.6 | AH66: 158546977.6 | AI66: 62490774.39 | AJ66: 107739019.8 | AK66: 16892200.4 | AL66: 14955411.98 | AM66: =SUM(AM6:AM65) -> 127796.9408 | AN66: 92956.01186 | AO66: 38893.32121 | AP66: 423453.8389 | AQ66: 336307.4603 | AR66: 133439.9211 | AS66: 687370513.1

Sheet Prop2021TransTar
B1: ="Tariff Approval - "&'Model update'!C3 -> Tariff Approval - Powercor | D1: ="Prop"&'Model update'!$C$5&"TransTar" -> Prop2021TransTar
B3: ="PROPOSED "&'Model update'!$C$5&" TRANSMISSION TARIFFS" -> PROPOSED 2021 TRANSMISSION TARIFFS
D4: ="Proposed Transmission Tariffs (Pt) for "&'Model update'!$C$5 -> Proposed Transmission Tariffs (Pt) for 2021 | R4: ="Forecast Quantities (Qt) for "&'Model update'!$C$5 -> Forecast Quantities (Qt) for 2021 | AF4: ="Forecast Revenue (Pt "&'Model update'!$C$5&")*(Qt " &'Model update'!$C$5&")" -> Forecast Revenue (Pt 2021)*(Qt 2021)
B5: Proposed tariff | D5: =[1]Prop2020DistTar!D5 -> PropTar Fixed | E5: =[1]Prop2020DistTar!E5 -> PropTar Anytime | F5: =[1]Prop2020DistTar!F5 -> PropTar PkBlk | G5: =[1]Prop2020DistTar!G5 -> PropTar OPkBlk1 | H5: =[1]Prop2020DistTar!H5 -> PropTar Dem kVA | I5: =[1]Prop2020DistTar!I5 -> PropTar Dem kW Sum | J5: =[1]Prop2020DistTar!J5 -> PropTar Dem kW Win | K5: =[1]Prop2020DistTar!K5 -> PropTar SumBlk1 | L5: =[1]Prop2020DistTar!L5 -> PropTar SumBlk2 | M5: =[1]Prop2020DistTar!M5 -> PropTar SumBlk3 | N5: =[1]Prop2020DistTar!N5 -> PropTar WtrBlk1 | O5: =[1]Prop2020DistTar!O5 -> PropTar WtrBlk2 | P5: =[1]Prop2020DistTar!P5 -> PropTar WtrBlk3 | R5: =[1]Prop2020DistTar!AF5 -> FcastVol Fixed | S5: =[1]Prop2020DistTar!AG5 -> FcastVol Anytime | T5: =[1]Prop2020DistTar!AH5 -> FcastVol Pk | U5: =[1]Prop2020DistTar!AI5 -> FcastVol Opk | V5: =[1]Prop2020DistTar!AJ5 -> FcastVol Dem kVA | W5: =[1]Prop2020DistTar!AK5 -> FcastVol Dem kW Sum | X5: =[1]Prop2020DistTar!AL5 -> FcastVol Dem kW Win | Y5: =[1]Prop2020DistTar!AM5 -> FcastVol SumBlk1 | Z5: =[1]Prop2020DistTar!AN5 -> FcastVol SumBlk2 | AA5: =[1]Prop2020DistTar!AO5 -> FcastVol SumBlk3 | AB5: =[1]Prop2020DistTar!AP5 -> FcastVol WtrBlk1 | AC5: =[1]Prop2020DistTar!AQ5 -> FcastVol WtrBlk2 | AD5: =[1]Prop2020DistTar!AR5 -> FcastVol WtrBlk3 | AF5: =[1]Prop2020DistTar!AT5 -> PropRev Fixed | AG5: =[1]Prop2020DistTar!AU5 -> PropRev Anytime | AH5: =[1]Prop2020DistTar!AV5 -> PropRev Pk | AI5: =[1]Prop2020DistTar!AW5 -> PropRev Opk | AJ5: =[1]Prop2020DistTar!AX5 -> PropRev Dem kVA | AK5: =[1]Prop2020DistTar!AY5 -> PropRev Dem kW Sum | AL5: =[1]Prop2020DistTar!AZ5 -> PropRev Dem kW Win | AM5: =[1]Prop2020DistTar!BA5 -> PropRev SumBlk1 | AN5: =[1]Prop2020DistTar!BB5 -> PropRev SumBlk2 | AO5: =[1]Prop2020DistTar!BC5 -> PropRev SumBlk3 | AP5: =[1]Prop2020DistTar!BD5 -> PropRev WtrBlk1 | AQ5: =[1]Prop2020DistTar!BE5 -> PropRev WtrBlk2 | AR5: =[1]Prop2020DistTar!BF5 -> PropRev WtrBlk3 | AS5: PropRev Total
B6: =Prop2021DistTar!B6 -> Residential Single Rate | D6: 0 | E6: 1.87 | F6: 0 | G6: 0 | H6: 0 | I6: 0 | J6: 0 | K6: 0 | L6: 0 | M6: 0 | N6: 0 | O6: 0 | P6: 0 | R6: =Prop2021DistTar!AF6 -> 287372.8633 | S6: =Prop2021DistTar!AG6 -> 1280472172 | T6: =Prop2021DistTar!AH6 -> 0 | U6: =Prop2021DistTar!AI6 -> 0 | V6: =Prop2021DistTar!AJ6 -> 0 | W6: =Prop2021DistTar!AK6 -> 0 | X6: =Prop2021DistTar!AL6 -> 0 | Y6: =Prop2021DistTar!AM6 -> 0 | Z6: =Prop2021DistTar!AN6 -> 0 | AA6: =Prop2021DistTar!AO6 -> 0 | AB6: =Prop2021DistTar!AP6 -> 0 | AC6: =Prop2021DistTar!AQ6 -> 0 | AD6: =Prop2021DistTar!AR6 -> 0 | AF6: =D6*R6 -> 0 | AG6: =E6/100*S6 -> 23944829.61 | AH6: 0 | AI6: 0 | AJ6: =H6*V6 -> 0 | AK6: =I6*W6 -> 0 | AL6: =J6*X6 -> 0 | AM6: =K6/100*Y6 -> 0 | AN6: =L6/100*Z6 -> 0 | AO6: =M6/100*AA6 -> 0 | AP6: =N6/100*AB6 -> 0 | AQ6: =O6/100*AC6 -> 0 | AR6: =P6/100*AD6 -> 0 | AS6: =SUM(AF6:AR6) -> 23944829.61
B7: =Prop2021DistTar!B7 -> Climate Saver | D7: 0 | E7: 0 | F7: 1.91 | G7: 0.67 | H7: 0 | I7: 0 | J7: 0 | K7: 0 | L7: 0 | M7: 0 | N7: 0 | O7: 0 | P7: 0 | R7: =Prop2021DistTar!AF7 -> 8520.880264 | S7: =Prop2021DistTar!AG7 -> 0 | T7: =Prop2021DistTar!AH7 -> 6824248.905 | U7: =Prop2021DistTar!AI7 -> 6994649.08 | V7: =Prop2021DistTar!AJ7 -> 0 | W7: =Prop2021DistTar!AK7 -> 0 | X7: =Prop2021DistTar!AL7 -> 0 | Y7: =Prop2021DistTar!AM7 -> 0 | Z7: =Prop2021DistTar!AN7 -> 0 | AA7: =Prop2021DistTar!AO7 -> 0 | AB7: =Prop2021DistTar!AP7 -> 0 | AC7: =Prop2021DistTar!AQ7 -> 0 | AD7: =Prop2021DistTar!AR7 -> 0 | AF7: =D7*R7 -> 0 | AG7: 0 | AH7: 130343.1541 | AI7: 46864.14883 | AJ7: =H7*V7 -> 0 | AK7: =I7*W7 -> 0 | AL7: =J7*X7 -> 0 | AM7: =K7/100*Y7 -> 0 | AN7: =L7/100*Z7 -> 0 | AO7: =M7/100*AA7 -> 0 | AP7: =N7/100*AB7 -> 0 | AQ7: =O7/100*AC7 -> 0 | AR7: =P7/100*AD7 -> 0 | AS7: =SUM(AF7:AR7) -> 177207.3029
B8: =Prop2021DistTar!B8 -> Climate Saver Interval | D8: 0 | E8: 0 | F8: 1.91 | G8: 0.67 | H8: 0 | I8: 0 | J8: 0 | K8: 0 | L8: 0 | M8: 0 | N8: 0 | O8: 0 | P8: 0 | R8: =Prop2021DistTar!AF8 -> 2324 | S8: =Prop2021DistTar!AG8 -> 0 | T8: =Prop2021DistTar!AH8 -> 1975264.14 | U8: =Prop2021DistTar!AI8 -> 2186214.006 | V8: =Prop2021DistTar!AJ8 -> 0 | W8: =Prop2021DistTar!AK8 -> 0 | X8: =Prop2021DistTar!AL8 -> 0 | Y8: =Prop2021DistTar!AM8 -> 0 | Z8: =Prop2021DistTar!AN8 -> 0 | AA8: =Prop2021DistTar!AO8 -> 0 | AB8: =Prop2021DistTar!AP8 -> 0 | AC8: =Prop2021DistTar!AQ8 -> 0 | AD8: =Prop2021DistTar!AR8 -> 0 | AF8: 0 | AG8: 0 | AH8: 37727.54508 | AI8: 14647.63384 | AJ8: 0 | AK8: 0 | AL8: 0 | AM8: 0 | AN8: 0 | AO8: 0 | AP8: 0 | AQ8: 0 | AR8: 0 | AS8: 52375.17892
B9: =Prop2021DistTar!B9 -> Residential - Flexible Pricing | D9: 0 | E9: 0 | F9: 0 | G9: 0 | H9: 0 | I9: 0 | J9: 0 | K9: 3.26 | L9: 1.85 | M9: 0.73 | N9: 3.26 | O9: 1.85 | P9: 0.73 | R9: =Prop2021DistTar!AF9 -> 1561.19922 | S9: =Prop2021DistTar!AG9 -> 0 | T9: =Prop2021DistTar!AH9 -> 0 | U9: =Prop2021DistTar!AI9 -> 0 | V9: =Prop2021DistTar!AJ9 -> 0 | W9: =Prop2021DistTar!AK9 -> 0 | X9: =Prop2021DistTar!AL9 -> 0 | Y9: =Prop2021DistTar!AM9 -> 581865.2345 | Z9: =Prop2021DistTar!AN9 -> 1127707.344 | AA9: =Prop2021DistTar!AO9 -> 916574.5586 | AB9: =Prop2021DistTar!AP9 -> 1326685.558 | AC9: =Prop2021DistTar!AQ9 -> 2571236.359 | AD9: =Prop2021DistTar!AR9 -> 2089841.698 | AF9: 0 | AG9: 0 | AH9: 0 | AI9: 0 | AJ9: 0 | AK9: 0 | AL9: 0 | AM9: 18968.80665 | AN9: 20862.58586 | AO9: 6690.994278 | AP9: 43249.9492 | AQ9: 47567.87264 | AR9: 15255.8444 | AS9: 152596.053
B10: =Prop2021DistTar!B10 -> Residential Docklands - Flexible Pricing | D10: 0 | E10: 0 | F10: 0 | G10: 0 | H10: 0 | I10: 0 | J10: 0 | K10: 3.26 | L10: 1.85 | M10: 0.73 | N10: 3.26 | O10: 1.85 | P10: 0.73 | R10: =Prop2021DistTar!AF10 -> 0.4944581281 | S10: =Prop2021DistTar!AG10 -> 0 | T10: =Prop2021DistTar!AH10 -> 0 | U10: =Prop2021DistTar!AI10 -> 0 | V10: =Prop2021DistTar!AJ10 -> 0 | W10: =Prop2021DistTar!AK10 -> 0 | X10: =Prop2021DistTar!AL10 -> 0 | Y10: =Prop2021DistTar!AM10 -> 234.5165156 | Z10: =Prop2021DistTar!AN10 -> 449.189326 | AA10: =Prop2021DistTar!AO10 -> 301.2635239 | AB10: =Prop2021DistTar!AP10 -> 484.1450681 | AC10: =Prop2021DistTar!AQ10 -> 927.324015 | AD10: =Prop2021DistTar!AR10 -> 621.9402028 | AF10: 0 | AG10: 0 | AH10: 0 | AI10: 0 | AJ10: 0 | AK10: 0 | AL10: 0 | AM10: 7.645238409 | AN10: 8.310002532 | AO10: 2.199223724 | AP10: 15.78312922 | AQ10: 17.15549428 | AR10: 4.540163481 | AS10: 55.63325164
B11: =Prop2021DistTar!B11 -> Climate Saver - Flexible Pricing | D11: 0 | E11: 0 | F11: 0 | G11: 0 | H11: 0 | I11: 0 | J11: 0 | K11: 1.91 | L11: 0 | M11: 0 | N11: 0.67 | O11: 0 | P11: 0 | R11: =Prop2021DistTar!AF11 -> 29 | S11: =Prop2021DistTar!AG11 -> 0 | T11: =Prop2021DistTar!AH11 -> 0 | U11: =Prop2021DistTar!AI11 -> 0 | V11: =Prop2021DistTar!AJ11 -> 0 | W11: =Prop2021DistTar!AK11 -> 0 | X11: =Prop2021DistTar!AL11 -> 0 | Y11: =Prop2021DistTar!AM11 -> 21667.10912 | Z11: =Prop2021DistTar!AN11 -> 0 | AA11: =Prop2021DistTar!AO11 -> 0 | AB11: =Prop2021DistTar!AP11 -> 5212.456243 | AC11: =Prop2021DistTar!AQ11 -> 0 | AD11: =Prop2021DistTar!AR11 -> 23509.39034 | AF11: 0 | AG11: 0 | AH11: 0 | AI11: 0 | AJ11: 0 | AK11: 0 | AL11: 0 | AM11: 413.8417843 | AN11: 0 | AO11: 0 | AP11: 34.92345683 | AQ11: 0 | AR11: 0 | AS11: 448.7652411
B12: =Prop2021DistTar!B12 -> Docklands single rate | D12: 0 | E12: 1.87 | F12: 0 | G12: 0 | H12: 0 | I12: 0 | J12: 0 | K12: 0 | L12: 0 | M12: 0 | N12: 0 | O12: 0 | P12: 0 | R12: =Prop2021DistTar!AF12 -> 1.483374384 | S12: =Prop2021DistTar!AG12 -> 26451.718 | T12: =Prop2021DistTar!AH12 -> 0 | U12: =Prop2021DistTar!AI12 -> 0 | V12: =Prop2021DistTar!AJ12 -> 0 | W12: =Prop2021DistTar!AK12 -> 0 | X12: =Prop2021DistTar!AL12 -> 0 | Y12: =Prop2021DistTar!AM12 -> 0 | Z12: =Prop2021DistTar!AN12 -> 0 | AA12: =Prop2021DistTar!AO12 -> 0 | AB12: =Prop2021DistTar!AP12 -> 0 | AC12: =Prop2021DistTar!AQ12 -> 0 | AD12: =Prop2021DistTar!AR12 -> 0 | AF12: 0 | AG12: 494.6471265 | AH12: 0 | AI12: 0 | AJ12: 0 | AK12: 0 | AL12: 0 | AM12: 0 | AN12: 0 | AO12: 0 | AP12: 0 | AQ12: 0 | AR12: 0 | AS12: 494.6471265
B13: =Prop2021DistTar!B13 -> Residential Two Rate 5d | D13: 0 | E13: 0 | F13: 2.03 | G13: 0.67 | H13: 0 | I13: 0 | J13: 0 | K13: 0 | L13: 0 | M13: 0 | N13: 0 | O13: 0 | P13: 0 | R13: =Prop2021DistTar!AF13 -> 22324.88116 | S13: =Prop2021DistTar!AG13 -> 0 | T13: =Prop2021DistTar!AH13 -> 62052089.6 | U13: =Prop2021DistTar!AI13 -> 57192232.73 | V13: =Prop2021DistTar!AJ13 -> 0 | W13: =Prop2021DistTar!AK13 -> 0 | X13: =Prop2021DistTar!AL13 -> 0 | Y13: =Prop2021DistTar!AM13 -> 0 | Z13: =Prop2021DistTar!AN13 -> 0 | AA13: =Prop2021DistTar!AO13 -> 0 | AB13: =Prop2021DistTar!AP13 -> 0 | AC13: =Prop2021DistTar!AQ13 -> 0 | AD13: =Prop2021DistTar!AR13 -> 0 | AF13: 0 | AG13: 0 | AH13: 1259657.419 | AI13: 383187.9593 | AJ13: 0 | AK13: 0 | AL13: 0 | AM13: 0 | AN13: 0 | AO13: 0 | AP13: 0 | AQ13: 0 | AR13: 0 | AS13: 1642845.378
B14: =Prop2021DistTar!B14 -> Docklands Two Rate 5d | D14: 0 | E14: 0 | F14: 2.03 | G14: 0.67 | H14: 0 | I14: 0 | J14: 0 | K14: 0 | L14: 0 | M14: 0 | N14: 0 | O14: 0 | P14: 0 | R14: =Prop2021DistTar!AF14 -> 289.9641147 | S14: =Prop2021DistTar!AG14 -> 0 | T14: =Prop2021DistTar!AH14 -> 920600.0654 | U14: =Prop2021DistTar!AI14 -> 857632.5517 | V14: =Prop2021DistTar!AJ14 -> 0 | W14: =Prop2021DistTar!AK14 -> 0 | X14: =Prop2021DistTar!AL14 -> 0 | Y14: =Prop2021DistTar!AM14 -> 0 | Z14: =Prop2021DistTar!AN14 -> 0 | AA14: =Prop2021DistTar!AO14 -> 0 | AB14: =Prop2021DistTar!AP14 -> 0 | AC14: =Prop2021DistTar!AQ14 -> 0 | AD14: =Prop2021DistTar!AR14 -> 0 | AF14: 0 | AG14: 0 | AH14: 18688.18133 | AI14: 5746.138096 | AJ14: 0 | AK14: 0 | AL14: 0 | AM14: 0 | AN14: 0 | AO14: 0 | AP14: 0 | AQ14: 0 | AR14: 0 | AS14: 24434.31942
B15: =Prop2021DistTar!B15 -> Residential Interval | D15: 0 | E15: 0 | F15: 2.03 | G15: 0.67 | H15: 0 | I15: 0 | J15: 0 | K15: 0 | L15: 0 | M15: 0 | N15: 0 | O15: 0 | P15: 0 | R15: =Prop2021DistTar!AF15 -> 53700.62898 | S15: =Prop2021DistTar!AG15 -> 0 | T15: =Prop2021DistTar!AH15 -> 125119939 | U15: =Prop2021DistTar!AI15 -> 131491852.8 | V15: =Prop2021DistTar!AJ15 -> 0 | W15: =Prop2021DistTar!AK15 -> 0 | X15: =Prop2021DistTar!AL15 -> 0 | Y15: =Prop2021DistTar!AM15 -> 0 | Z15: =Prop2021DistTar!AN15 -> 0 | AA15: =Prop2021DistTar!AO15 -> 0 | AB15: =Prop2021DistTar!AP15 -> 0 | AC15: =Prop2021DistTar!AQ15 -> 0 | AD15: =Prop2021DistTar!AR15 -> 0 | AF15: 0 | AG15: 0 | AH15: 2539934.762 | AI15: 880995.4138 | AJ15: 0 | AK15: 0 | AL15: 0 | AM15: 0 | AN15: 0 | AO15: 0 | AP15: 0 | AQ15: 0 | AR15: 0 | AS15: 3420930.176
B16: =Prop2021DistTar!B16 -> Residential Two Rate 5d - controlled load | D16: 0 | E16: 0 | F16: 0 | G16: 0 | H16: 0 | I16: 0 | J16: 0 | K16: 0 | L16: 0 | M16: 0 | N16: 0 | O16: 0 | P16: 0 | R16: =Prop2021DistTar!AF16 -> 0 | S16: =Prop2021DistTar!AG16 -> 0 | T16: =Prop2021DistTar!AH16 -> 0 | U16: =Prop2021DistTar!AI16 -> 0 | V16: =Prop2021DistTar!AJ16 -> 0 | W16: =Prop2021DistTar!AK16 -> 0 | X16: =Prop2021DistTar!AL16 -> 0 | Y16: =Prop2021DistTar!AM16 -> 0 | Z16: =Prop2021DistTar!AN16 -> 0 | AA16: =Prop2021DistTar!AO16 -> 0 | AB16: =Prop2021DistTar!AP16 -> 0 | AC16: =Prop2021DistTar!AQ16 -> 0 | AD16: =Prop2021DistTar!AR16 -> 0 | AF16: 0 | AG16: 0 | AH16: 0 | AI16: 0 | AJ16: 0 | AK16: 0 | AL16: 0 | AM16: 0 | AN16: 0 | AO16: 0 | AP16: 0 | AQ16: 0 | AR16: 0 | AS16: 0
B17: =Prop2021DistTar!B17 -> Docklands Two Rate 5d - controlled load | D17: 0 | E17: 0 | F17: 0 | G17: 0 | H17: 0 | I17: 0 | J17: 0 | K17: 0 | L17: 0 | M17: 0 | N17: 0 | O17: 0 | P17: 0 | R17: =Prop2021DistTar!AF17 -> 0 | S17: =Prop2021DistTar!AG17 -> 0 | T17: =Prop2021DistTar!AH17 -> 0 | U17: =Prop2021DistTar!AI17 -> 0 | V17: =Prop2021DistTar!AJ17 -> 0 | W17: =Prop2021DistTar!AK17 -> 0 | X17: =Prop2021DistTar!AL17 -> 0 | Y17: =Prop2021DistTar!AM17 -> 0 | Z17: =Prop2021DistTar!AN17 -> 0 | AA17: =Prop2021DistTar!AO17 -> 0 | AB17: =Prop2021DistTar!AP17 -> 0 | AC17: =Prop2021DistTar!AQ17 -> 0 | AD17: =Prop2021DistTar!AR17 -> 0 | AF17: 0 | AG17: 0 | AH17: 0 | AI17: 0 | AJ17: 0 | AK17: 0 | AL17: 0 | AM17: 0 | AN17: 0 | AO17: 0 | AP17: 0 | AQ17: 0 | AR17: 0 | AS17: 0
B18: =Prop2021DistTar!B18 -> Dedicated circuit | D18: 0 | E18: 0 | F18: 0 | G18: 0.52 | H18: 0 | I18: 0 | J18: 0 | K18: 0 | L18: 0 | M18: 0 | N18: 0 | O18: 0 | P18: 0 | R18: =Prop2021DistTar!AF18 -> 103127.4205 | S18: =Prop2021DistTar!AG18 -> 0 | T18: =Prop2021DistTar!AH18 -> 0 | U18: =Prop2021DistTar!AI18 -> 156754447.1 | V18: =Prop2021DistTar!AJ18 -> 0 | W18: =Prop2021DistTar!AK18 -> 0 | X18: =Prop2021DistTar!AL18 -> 0 | Y18: =Prop2021DistTar!AM18 -> 0 | Z18: =Prop2021DistTar!AN18 -> 0 | AA18: =Prop2021DistTar!AO18 -> 0 | AB18: =Prop2021DistTar!AP18 -> 0 | AC18: =Prop2021DistTar!AQ18 -> 0 | AD18: =Prop2021DistTar!AR18 -> 0 | AF18: 0 | AG18: 0 | AH18: 0 | AI18: 815123.125 | AJ18: 0 | AK18: 0 | AL18: 0 | AM18: 0 | AN18: 0 | AO18: 0 | AP18: 0 | AQ18: 0 | AR18: 0 | AS18: 815123.125
B19: =Prop2021DistTar!B19 -> Hot Water Interval | D19: 0 | E19: 0 | F19: 0 | G19: 0 | H19: 0 | I19: 0 | J19: 0 | K19: 0 | L19: 0 | M19: 0 | N19: 0 | O19: 0 | P19: 0 | R19: =Prop2021DistTar!AF19 -> 0 | S19: =Prop2021DistTar!AG19 -> 0 | T19: =Prop2021DistTar!AH19 -> 0 | U19: =Prop2021DistTar!AI19 -> 0 | V19: =Prop2021DistTar!AJ19 -> 0 | W19: =Prop2021DistTar!AK19 -> 0 | X19: =Prop2021DistTar!AL19 -> 0 | Y19: =Prop2021DistTar!AM19 -> 0 | Z19: =Prop2021DistTar!AN19 -> 0 | AA19: =Prop2021DistTar!AO19 -> 0 | AB19: =Prop2021DistTar!AP19 -> 0 | AC19: =Prop2021DistTar!AQ19 -> 0 | AD19: =Prop2021DistTar!AR19 -> 0 | AF19: 0 | AG19: 0 | AH19: 0 | AI19: 0 | AJ19: 0 | AK19: 0 | AL19: 0 | AM19: 0 | AN19: 0 | AO19: 0 | AP19: 0 | AQ19: 0 | AR19: 0 | AS19: 0
B20: =Prop2021DistTar!B20 -> Residential Demand | D20: 0 | E20: 0.79 | F20: 0 | G20: 0 | H20: 0 | I20: 2.58 | J20: 0.86 | K20: 0 | L20: 0 | M20: 0 | N20: 0 | O20: 0 | P20: 0 | R20: =Prop2021DistTar!AF20 -> 5.034482759 | S20: =Prop2021DistTar!AG20 -> 12371.84712 | T20: =Prop2021DistTar!AH20 -> 0 | U20: =Prop2021DistTar!AI20 -> 0 | V20: =Prop2021DistTar!AJ20 -> 0 | W20: =Prop2021DistTar!AK20 -> 88.60689655 | X20: =Prop2021DistTar!AL20 -> 90.11724138 | Y20: =Prop2021DistTar!AM20 -> 0 | Z20: =Prop2021DistTar!AN20 -> 0 | AA20: =Prop2021DistTar!AO20 -> 0 | AB20: =Prop2021DistTar!AP20 -> 0 | AC20: =Prop2021DistTar!AQ20 -> 0 | AD20: =Prop2021DistTar!AR20 -> 0 | AF20: 0 | AG20: 97.73759228 | AH20: 0 | AI20: 0 | AJ20: 0 | AK20: 228.6057931 | AL20: 77.50082759 | AM20: 0 | AN20: 0 | AO20: 0 | AP20: 0 | AQ20: 0 | AR20: 0 | AS20: 403.844213
B21: =Prop2021DistTar!B21 -> Newstead Residential Trial | D21: 0 | E21: 0 | F21: 0 | G21: 0 | H21: 0 | I21: 2.12 | J21: 2.12 | K21: 0 | L21: 0 | M21: 0 | N21: 0 | O21: 0 | P21: 0 | R21: =Prop2021DistTar!AF21 -> 2.483940954 | S21: =Prop2021DistTar!AG21 -> 10727.22847 | T21: =Prop2021DistTar!AH21 -> 0 | U21: =Prop2021DistTar!AI21 -> 0 | V21: =Prop2021DistTar!AJ21 -> 0 | W21: =Prop2021DistTar!AK21 -> 42.69454526 | X21: =Prop2021DistTar!AL21 -> 45.51974449 | Y21: =Prop2021DistTar!AM21 -> 0 | Z21: =Prop2021DistTar!AN21 -> 0 | AA21: =Prop2021DistTar!AO21 -> 0 | AB21: =Prop2021DistTar!AP21 -> 0 | AC21: =Prop2021DistTar!AQ21 -> 0 | AD21: =Prop2021DistTar!AR21 -> 0 | AF21: 0 | AG21: 0 | AH21: 0 | AI21: 0 | AJ21: 0 | AK21: 90.51243596 | AL21: 96.50185832 | AM21: 0 | AN21: 0 | AO21: 0 | AP21: 0 | AQ21: 0 | AR21: 0 | AS21: 187.0142943
B22: =Prop2021DistTar!B22 -> Non-Residential Single Rate | D22: 0 | E22: 1.87 | F22: 0 | G22: 0 | H22: 0 | I22: 0 | J22: 0 | K22: 0 | L22: 0 | M22: 0 | N22: 0 | O22: 0 | P22: 0 | R22: =Prop2021DistTar!AF22 -> 22587.86724 | S22: =Prop2021DistTar!AG22 -> 154078537.7 | T22: =Prop2021DistTar!AH22 -> 0 | U22: =Prop2021DistTar!AI22 -> 0 | V22: =Prop2021DistTar!AJ22 -> 0 | W22: =Prop2021DistTar!AK22 -> 0 | X22: =Prop2021DistTar!AL22 -> 0 | Y22: =Prop2021DistTar!AM22 -> 0 | Z22: =Prop2021DistTar!AN22 -> 0 | AA22: =Prop2021DistTar!AO22 -> 0 | AB22: =Prop2021DistTar!AP22 -> 0 | AC22: =Prop2021DistTar!AQ22 -> 0 | AD22: =Prop2021DistTar!AR22 -> 0 | AF22: 0 | AG22: 2881268.656 | AH22: 0 | AI22: 0 | AJ22: 0 | AK22: 0 | AL22: 0 | AM22: 0 | AN22: 0 | AO22: 0 | AP22: 0 | AQ22: 0 | AR22: 0 | AS22: 2881268.656
B23: =Prop2021DistTar!B23 -> Non-Residential Flexible Pricing | D23: 0 | E23: 0 | F23: 0 | G23: 0 | H23: 0 | I23: 0 | J23: 0 | K23: 5.09 | L23: 1.8 | M23: 1.16 | N23: 5.09 | O23: 1.8 | P23: 1.16 | R23: =Prop2021DistTar!AF23 -> 93.52250958 | S23: =Prop2021DistTar!AG23 -> 0 | T23: =Prop2021DistTar!AH23 -> 0 | U23: =Prop2021DistTar!AI23 -> 0 | V23: =Prop2021DistTar!AJ23 -> 0 | W23: =Prop2021DistTar!AK23 -> 0 | X23: =Prop2021DistTar!AL23 -> 0 | Y23: =Prop2021DistTar!AM23 -> 309561.5322 | Z23: =Prop2021DistTar!AN23 -> 115187.5359 | AA23: =Prop2021DistTar!AO23 -> 330858.8668 | AB23: =Prop2021DistTar!AP23 -> 563923.8396 | AC23: =Prop2021DistTar!AQ23 -> 209835.4955 | AD23: =Prop2021DistTar!AR23 -> 602720.8911 | AF23: 0 | AG23: 0 | AH23: 0 | AI23: 0 | AJ23: 0 | AK23: 0 | AL23: 0 | AM23: 15756.68199 | AN23: 2073.375646 | AO23: 3837.962855 | AP23: 28703.72344 | AQ23: 3777.03892 | AR23: 6991.562337 | AS23: 61140.34518
B24: =Prop2021DistTar!B24 -> Non-Residential Two Rate 5d | D24: 0 | E24: 0 | F24: 2.03 | G24: 0.67 | H24: 0 | I24: 0 | J24: 0 | K24: 0 | L24: 0 | M24: 0 | N24: 0 | O24: 0 | P24: 0 | R24: =Prop2021DistTar!AF24 -> 11552.234 | S24: =Prop2021DistTar!AG24 -> 0 | T24: =Prop2021DistTar!AH24 -> 94897630.64 | U24: =Prop2021DistTar!AI24 -> 84219055.8 | V24: =Prop2021DistTar!AJ24 -> 0 | W24: =Prop2021DistTar!AK24 -> 0 | X24: =Prop2021DistTar!AL24 -> 0 | Y24: =Prop2021DistTar!AM24 -> 0 | Z24: =Prop2021DistTar!AN24 -> 0 | AA24: =Prop2021DistTar!AO24 -> 0 | AB24: =Prop2021DistTar!AP24 -> 0 | AC24: =Prop2021DistTar!AQ24 -> 0 | AD24: =Prop2021DistTar!AR24 -> 0 | AF24: 0 | AG24: 0 | AH24: 1926421.902 | AI24: 564267.6739 | AJ24: 0 | AK24: 0 | AL24: 0 | AM24: 0 | AN24: 0 | AO24: 0 | AP24: 0 | AQ24: 0 | AR24: 0 | AS24: 2490689.576
B25: =Prop2021DistTar!B25 -> Non-Residential Interval | D25: 0 | E25: 0 | F25: 2.03 | G25: 0.67 | H25: 0 | I25: 0 | J25: 0 | K25: 0 | L25: 0 | M25: 0 | N25: 0 | O25: 0 | P25: 0 | R25: =Prop2021DistTar!AF25 -> 5873.824713 | S25: =Prop2021DistTar!AG25 -> 0 | T25: =Prop2021DistTar!AH25 -> 43789013.77 | U25: =Prop2021DistTar!AI25 -> 31927339.78 | V25: =Prop2021DistTar!AJ25 -> 0 | W25: =Prop2021DistTar!AK25 -> 0 | X25: =Prop2021DistTar!AL25 -> 0 | Y25: =Prop2021DistTar!AM25 -> 0 | Z25: =Prop2021DistTar!AN25 -> 0 | AA25: =Prop2021DistTar!AO25 -> 0 | AB25: =Prop2021DistTar!AP25 -> 0 | AC25: =Prop2021DistTar!AQ25 -> 0 | AD25: =Prop2021DistTar!AR25 -> 0 | AF25: 0 | AG25: 0 | AH25: 888916.9795 | AI25: 213913.1765 | AJ25: 0 | AK25: 0 | AL25: 0 | AM25: 0 | AN25: 0 | AO25: 0 | AP25: 0 | AQ25: 0 | AR25: 0 | AS25: 1102830.156
B26: =Prop2021DistTar!B26 -> Non-Residential Two Rate 7d | D26: 0 | E26: 0 | F26: 2.03 | G26: 0.67 | H26: 0 | I26: 0 | J26: 0 | K26: 0 | L26: 0 | M26: 0 | N26: 0 | O26: 0 | P26: 0 | R26: =Prop2021DistTar!AF26 -> 3347.528257 | S26: =Prop2021DistTar!AG26 -> 0 | T26: =Prop2021DistTar!AH26 -> 25991313.89 | U26: =Prop2021DistTar!AI26 -> 10067551.62 | V26: =Prop2021DistTar!AJ26 -> 0 | W26: =Prop2021DistTar!AK26 -> 0 | X26: =Prop2021DistTar!AL26 -> 0 | Y26: =Prop2021DistTar!AM26 -> 0 | Z26: =Prop2021DistTar!AN26 -> 0 | AA26: =Prop2021DistTar!AO26 -> 0 | AB26: =Prop2021DistTar!AP26 -> 0 | AC26: =Prop2021DistTar!AQ26 -> 0 | AD26: =Prop2021DistTar!AR26 -> 0 | AF26: 0 | AG26: 0 | AH26: 527623.672 | AI26: 67452.59588 | AJ26: 0 | AK26: 0 | AL26: 0 | AM26: 0 | AN26: 0 | AO26: 0 | AP26: 0 | AQ26: 0 | AR26: 0 | AS26: 595076.2679
B27: =Prop2021DistTar!B27 -> Non-Residential Demand | D27: 0 | E27: 1.57 | F27: 0 | G27: 0 | H27: 0 | I27: 2.72 | J27: 1.01 | K27: 0 | L27: 0 | M27: 0 | N27: 0 | O27: 0 | P27: 0 | R27: =Prop2021DistTar!AF27 -> 50.40867816 | S27: =Prop2021DistTar!AG27 -> 2196450.819 | T27: =Prop2021DistTar!AH27 -> 0 | U27: =Prop2021DistTar!AI27 -> 0 | V27: =Prop2021DistTar!AJ27 -> 0 | W27: =Prop2021DistTar!AK27 -> 1125.028898 | X27: =Prop2021DistTar!AL27 -> 1183.049489 | Y27: =Prop2021DistTar!AM27 -> 0 | Z27: =Prop2021DistTar!AN27 -> 0 | AA27: =Prop2021DistTar!AO27 -> 0 | AB27: =Prop2021DistTar!AP27 -> 0 | AC27: =Prop2021DistTar!AQ27 -> 0 | AD27: =Prop2021DistTar!AR27 -> 0 | AF27: 0 | AG27: 34484.27786 | AH27: 0 | AI27: 0 | AJ27: 0 | AK27: 3060.078602 | AL27: 1194.879983 | AM27: 0 | AN27: 0 | AO27: 0 | AP27: 0 | AQ27: 0 | AR27: 0 | AS27: 38739.23645
B28: =Prop2021DistTar!B28 -> Medium business Demand | D28: 0 | E28: 0 | F28: 1.72 | G28: 1.72 | H28: 0 | I28: 3.31 | J28: 1.66 | K28: 0 | L28: 0 | M28: 0 | N28: 0 | O28: 0 | P28: 0 | R28: =Prop2021DistTar!AF28 -> 3653.553089 | S28: =Prop2021DistTar!AG28 -> 0 | T28: =Prop2021DistTar!AH28 -> 245653226.1 | U28: =Prop2021DistTar!AI28 -> 217058308.2 | V28: =Prop2021DistTar!AJ28 -> 0 | W28: =Prop2021DistTar!AK28 -> 1000553.748 | X28: =Prop2021DistTar!AL28 -> 878208.9101 | Y28: =Prop2021DistTar!AM28 -> 0 | Z28: =Prop2021DistTar!AN28 -> 0 | AA28: =Prop2021DistTar!AO28 -> 0 | AB28: =Prop2021DistTar!AP28 -> 0 | AC28: =Prop2021DistTar!AQ28 -> 0 | AD28: =Prop2021DistTar!AR28 -> 0 | AF28: 0 | AG28: 0 | AH28: 4225235.489 | AI28: 3733402.901 | AJ28: 0 | AK28: 3311832.906 | AL28: 1457826.791 | AM28: 0 | AN28: 0 | AO28: 0 | AP28: 0 | AQ28: 0 | AR28: 0 | AS28: 12728298.09
B29: =Prop2021DistTar!B29 -> Medium business Opt-out | D29: 0 | E29: 0 | F29: 2.55 | G29: 0.82 | H29: 0 | I29: 0 | J29: 0 | K29: 0 | L29: 0 | M29: 0 | N29: 0 | O29: 0 | P29: 0 | R29: =Prop2021DistTar!AF29 -> 78.73132184 | S29: =Prop2021DistTar!AG29 -> 0 | T29: =Prop2021DistTar!AH29 -> 3442426.065 | U29: =Prop2021DistTar!AI29 -> 2572566.693 | V29: =Prop2021DistTar!AJ29 -> 0 | W29: =Prop2021DistTar!AK29 -> 0 | X29: =Prop2021DistTar!AL29 -> 0 | Y29: =Prop2021DistTar!AM29 -> 0 | Z29: =Prop2021DistTar!AN29 -> 0 | AA29: =Prop2021DistTar!AO29 -> 0 | AB29: =Prop2021DistTar!AP29 -> 0 | AC29: =Prop2021DistTar!AQ29 -> 0 | AD29: =Prop2021DistTar!AR29 -> 0 | AF29: 0 | AG29: 0 | AH29: 87781.86466 | AI29: 21095.04689 | AJ29: 0 | AK29: 0 | AL29: 0 | AM29: 0 | AN29: 0 | AO29: 0 | AP29: 0 | AQ29: 0 | AR29: 0 | AS29: 108876.9115
B30: =Prop2021DistTar!B30 -> Public Lighting | D30: 0 | E30: 0 | H30: 0 | I30: 0 | J30: 0 | K30: 0 | L30: 0 | M30: 0 | N30: 0 | O30: 0 | P30: 0 | R30: =Prop2021DistTar!AF30 -> 4298.458904 | S30: =Prop2021DistTar!AG30 -> 0 | T30: =Prop2021DistTar!AH30 -> 10667979.55 | U30: =Prop2021DistTar!AI30 -> 26936106.36 | V30: =Prop2021DistTar!AJ30 -> 0 | W30: =Prop2021DistTar!AK30 -> 0 | X30: =Prop2021DistTar!AL30 -> 0 | Y30: =Prop2021DistTar!AM30 -> 0 | Z30: =Prop2021DistTar!AN30 -> 0 | AA30: =Prop2021DistTar!AO30 -> 0 | AB30: =Prop2021DistTar!AP30 -> 0 | AC30: =Prop2021DistTar!AQ30 -> 0 | AD30: =Prop2021DistTar!AR30 -> 0 | AF30: 0 | AG30: 0 | AH30: 0 | AI30: 0 | AJ30: 0 | AK30: 0 | AL30: 0 | AM30: 0 | AN30: 0 | AO30: 0 | AP30: 0 | AQ30: 0 | AR30: 0 | AS30: 0
B31: =Prop2021DistTar!B31 -> Large low Voltage | D31: 0 | E31: 0 | F31: 1.75 | G31: 0.62 | H31: 17.36 | I31: 0 | J31: 0 | K31: 0 | L31: 0 | M31: 0 | N31: 0 | O31: 0 | P31: 0 | R31: =Prop2021DistTar!AF31 -> 1479.782629 | S31: =Prop2021DistTar!AG31 -> 0 | T31: =Prop2021DistTar!AH31 -> 689204400.8 | U31: =Prop2021DistTar!AI31 -> 541411407.3 | V31: =Prop2021DistTar!AJ31 -> 435439.347 | W31: =Prop2021DistTar!AK31 -> 0 | X31: =Prop2021DistTar!AL31 -> 0 | Y31: =Prop2021DistTar!AM31 -> 0 | Z31: =Prop2021DistTar!AN31 -> 0 | AA31: =Prop2021DistTar!AO31 -> 0 | AB31: =Prop2021DistTar!AP31 -> 0 | AC31: =Prop2021DistTar!AQ31 -> 0 | AD31: =Prop2021DistTar!AR31 -> 0 | AF31: 0 | AG31: 0 | AH31: 12061077.01 | AI31: 3356750.725 | AJ31: 7559227.064 | AK31: 0 | AL31: 0 | AM31: 0 | AN31: 0 | AO31: 0 | AP31: 0 | AQ31: 0 | AR31: 0 | AS31: 22977054.8
B32: =Prop2021DistTar!B32 -> High Voltage | D32: 0 | E32: 0 | F32: 1.75 | G32: 0.62 | H32: 17.36 | I32: 0 | J32: 0 | K32: 0 | L32: 0 | M32: 0 | N32: 0 | O32: 0 | P32: 0 | R32: =Prop2021DistTar!AF32 -> 90.4582859 | S32: =Prop2021DistTar!AG32 -> 0 | T32: =Prop2021DistTar!AH32 -> 388330933.4 | U32: =Prop2021DistTar!AI32 -> 353671693.6 | V32: =Prop2021DistTar!AJ32 -> 208522.6622 | W32: =Prop2021DistTar!AK32 -> 0 | X32: =Prop2021DistTar!AL32 -> 0 | Y32: =Prop2021DistTar!AM32 -> 0 | Z32: =Prop2021DistTar!AN32 -> 0 | AA32: =Prop2021DistTar!AO32 -> 0 | AB32: =Prop2021DistTar!AP32 -> 0 | AC32: =Prop2021DistTar!AQ32 -> 0 | AD32: =Prop2021DistTar!AR32 -> 0 | AF32: 0 | AG32: 0 | AH32: 6795791.335 | AI32: 2192764.5 | AJ32: 3619953.416 | AK32: 0 | AL32: 0 | AM32: 0 | AN32: 0 | AO32: 0 | AP32: 0 | AQ32: 0 | AR32: 0 | AS32: 12608509.25
B33: =Prop2021DistTar!B33 -> High Voltage Docklands | D33: 0 | E33: 0 | F33: 1.75 | G33: 0.62 | H33: 17.36 | I33: 0 | J33: 0 | K33: 0 | L33: 0 | M33: 0 | N33: 0 | O33: 0 | P33: 0 | R33: =Prop2021DistTar!AF33 -> 3.856273503 | S33: =Prop2021DistTar!AG33 -> 0 | T33: =Prop2021DistTar!AH33 -> 55564703.12 | U33: =Prop2021DistTar!AI33 -> 58240508.05 | V33: =Prop2021DistTar!AJ33 -> 25021.29077 | W33: =Prop2021DistTar!AK33 -> 0 | X33: =Prop2021DistTar!AL33 -> 0 | Y33: =Prop2021DistTar!AM33 -> 0 | Z33: =Prop2021DistTar!AN33 -> 0 | AA33: =Prop2021DistTar!AO33 -> 0 | AB33: =Prop2021DistTar!AP33 -> 0 | AC33: =Prop2021DistTar!AQ33 -> 0 | AD33: =Prop2021DistTar!AR33 -> 0 | AF33: 0 | AG33: 0 | AH33: 972382.3046 | AI33: 361091.1499 | AJ33: 434369.6078 | AK33: 0 | AL33: 0 | AM33: 0 | AN33: 0 | AO33: 0 | AP33: 0 | AQ33: 0 | AR33: 0 | AS33: 1767843.062
B34: =Prop2021DistTar!B34 -> Subtransmission | D34: 0 | E34: 0 | F34: 1.75 | G34: 0.62 | H34: 13.02 | I34: 0 | J34: 0 | K34: 0 | L34: 0 | M34: 0 | N34: 0 | O34: 0 | P34: 0 | R34: =Prop2021DistTar!AF34 -> 6.482232056 | S34: =Prop2021DistTar!AG34 -> 0 | T34: =Prop2021DistTar!AH34 -> 237591547.3 | U34: =Prop2021DistTar!AI34 -> 271398089 | V34: =Prop2021DistTar!AJ34 -> 120478.8877 | W34: =Prop2021DistTar!AK34 -> 0 | X34: =Prop2021DistTar!AL34 -> 0 | Y34: =Prop2021DistTar!AM34 -> 0 | Z34: =Prop2021DistTar!AN34 -> 0 | AA34: =Prop2021DistTar!AO34 -> 0 | AB34: =Prop2021DistTar!AP34 -> 0 | AC34: =Prop2021DistTar!AQ34 -> 0 | AD34: =Prop2021DistTar!AR34 -> 0 | AF34: 0 | AG34: 0 | AH34: 4157852.078 | AI34: 1682668.152 | AJ34: 1568635.118 | AK34: 0 | AL34: 0 | AM34: 0 | AN34: 0 | AO34: 0 | AP34: 0 | AQ34: 0 | AR34: 0 | AS34: 7409155.348
R35: =Prop2021DistTar!AF35 -> 0 | S35: =Prop2021DistTar!AG35 -> 0 | T35: =Prop2021DistTar!AH35 -> 0 | U35: =Prop2021DistTar!AI35 -> 0 | V35: =Prop2021DistTar!AJ35 -> 0 | W35: =Prop2021DistTar!AK35 -> 0 | X35: =Prop2021DistTar!AL35 -> 0 | Y35: =Prop2021DistTar!AM35 -> 0 | Z35: =Prop2021DistTar!AN35 -> 0 | AA35: =Prop2021DistTar!AO35 -> 0 | AB35: =Prop2021DistTar!AP35 -> 0 | AC35: =Prop2021DistTar!AQ35 -> 0 | AD35: =Prop2021DistTar!AR35 -> 0 | AF35: =D35*R35 -> 0 | AG35: =E35/100*S35 -> 0 | AH35: 0 | AI35: 0 | AJ35: 0 | AK35: 0 | AL35: 0 | AM35: 0 | AN35: 0 | AO35: 0 | AP35: 0 | AQ35: 0 | AR35: 0 | AS35: =SUM(AF35:AR35) -> 0
R36: =Prop2021DistTar!AF36 -> 0 | S36: =Prop2021DistTar!AG36 -> 0 | T36: =Prop2021DistTar!AH36 -> 0 | U36: =Prop2021DistTar!AI36 -> 0 | V36: =Prop2021DistTar!AJ36 -> 0 | W36: =Prop2021DistTar!AK36 -> 0 | X36: =Prop2021DistTar!AL36 -> 0 | Y36: =Prop2021DistTar!AM36 -> 0 | Z36: =Prop2021DistTar!AN36 -> 0 | AA36: =Prop2021DistTar!AO36 -> 0 | AB36: =Prop2021DistTar!AP36 -> 0 | AC36: =Prop2021DistTar!AQ36 -> 0 | AD36: =Prop2021DistTar!AR36 -> 0 | AF36: 0 | AG36: 0 | AH36: 0 | AI36: 0 | AJ36: 0 | AK36: 0 | AL36: 0 | AM36: 0 | AN36: 0 | AO36: 0 | AP36: 0 | AQ36: 0 | AR36: 0 | AS36: 0
R37: =Prop2021DistTar!AF37 -> 0 | S37: =Prop2021DistTar!AG37 -> 0 | T37: =Prop2021DistTar!AH37 -> 0 | U37: =Prop2021DistTar!AI37 -> 0 | V37: =Prop2021DistTar!AJ37 -> 0 | W37: =Prop2021DistTar!AK37 -> 0 | X37: =Prop2021DistTar!AL37 -> 0 | Y37: =Prop2021DistTar!AM37 -> 0 | Z37: =Prop2021DistTar!AN37 -> 0 | AA37: =Prop2021DistTar!AO37 -> 0 | AB37: =Prop2021DistTar!AP37 -> 0 | AC37: =Prop2021DistTar!AQ37 -> 0 | AD37: =Prop2021DistTar!AR37 -> 0 | AF37: 0 | AG37: 0 | AH37: 0 | AI37: 0 | AJ37: 0 | AK37: 0 | AL37: 0 | AM37: 0 | AN37: 0 | AO37: 0 | AP37: 0 | AQ37: 0 | AR37: 0 | AS37: 0
R38: =Prop2021DistTar!AF38 -> 0 | S38: =Prop2021DistTar!AG38 -> 0 | T38: =Prop2021DistTar!AH38 -> 0 | U38: =Prop2021DistTar!AI38 -> 0 | V38: =Prop2021DistTar!AJ38 -> 0 | W38: =Prop2021DistTar!AK38 -> 0 | X38: =Prop2021DistTar!AL38 -> 0 | Y38: =Prop2021DistTar!AM38 -> 0 | Z38: =Prop2021DistTar!AN38 -> 0 | AA38: =Prop2021DistTar!AO38 -> 0 | AB38: =Prop2021DistTar!AP38 -> 0 | AC38: =Prop2021DistTar!AQ38 -> 0 | AD38: =Prop2021DistTar!AR38 -> 0 | AF38: 0 | AG38: 0 | AH38: 0 | AI38: 0 | AJ38: 0 | AK38: 0 | AL38: 0 | AM38: 0 | AN38: 0 | AO38: 0 | AP38: 0 | AQ38: 0 | AR38: 0 | AS38: 0
R39: =Prop2021DistTar!AF39 -> 0 | S39: =Prop2021DistTar!AG39 -> 0 | T39: =Prop2021DistTar!AH39 -> 0 | U39: =Prop2021DistTar!AI39 -> 0 | V39: =Prop2021DistTar!AJ39 -> 0 | W39: =Prop2021DistTar!AK39 -> 0 | X39: =Prop2021DistTar!AL39 -> 0 | Y39: =Prop2021DistTar!AM39 -> 0 | Z39: =Prop2021DistTar!AN39 -> 0 | AA39: =Prop2021DistTar!AO39 -> 0 | AB39: =Prop2021DistTar!AP39 -> 0 | AC39: =Prop2021DistTar!AQ39 -> 0 | AD39: =Prop2021DistTar!AR39 -> 0 | AF39: 0 | AG39: 0 | AH39: 0 | AI39: 0 | AJ39: 0 | AK39: 0 | AL39: 0 | AM39: 0 | AN39: 0 | AO39: 0 | AP39: 0 | AQ39: 0 | AR39: 0 | AS39: 0
R40: =Prop2021DistTar!AF40 -> 0 | S40: =Prop2021DistTar!AG40 -> 0 | T40: =Prop2021DistTar!AH40 -> 0 | U40: =Prop2021DistTar!AI40 -> 0 | V40: =Prop2021DistTar!AJ40 -> 0 | W40: =Prop2021DistTar!AK40 -> 0 | X40: =Prop2021DistTar!AL40 -> 0 | Y40: =Prop2021DistTar!AM40 -> 0 | Z40: =Prop2021DistTar!AN40 -> 0 | AA40: =Prop2021DistTar!AO40 -> 0 | AB40: =Prop2021DistTar!AP40 -> 0 | AC40: =Prop2021DistTar!AQ40 -> 0 | AD40: =Prop2021DistTar!AR40 -> 0 | AF40: 0 | AG40: 0 | AH40: 0 | AI40: 0 | AJ40: 0 | AK40: 0 | AL40: 0 | AM40: 0 | AN40: 0 | AO40: 0 | AP40: 0 | AQ40: 0 | AR40: 0 | AS40: 0
R41: =Prop2021DistTar!AF41 -> 0 | S41: =Prop2021DistTar!AG41 -> 0 | T41: =Prop2021DistTar!AH41 -> 0 | U41: =Prop2021DistTar!AI41 -> 0 | V41: =Prop2021DistTar!AJ41 -> 0 | W41: =Prop2021DistTar!AK41 -> 0 | X41: =Prop2021DistTar!AL41 -> 0 | Y41: =Prop2021DistTar!AM41 -> 0 | Z41: =Prop2021DistTar!AN41 -> 0 | AA41: =Prop2021DistTar!AO41 -> 0 | AB41: =Prop2021DistTar!AP41 -> 0 | AC41: =Prop2021DistTar!AQ41 -> 0 | AD41: =Prop2021DistTar!AR41 -> 0 | AF41: 0 | AG41: 0 | AH41: 0 | AI41: 0 | AJ41: 0 | AK41: 0 | AL41: 0 | AM41: 0 | AN41: 0 | AO41: 0 | AP41: 0 | AQ41: 0 | AR41: 0 | AS41: 0
R42: =Prop2021DistTar!AF42 -> 0 | S42: =Prop2021DistTar!AG42 -> 0 | T42: =Prop2021DistTar!AH42 -> 0 | U42: =Prop2021DistTar!AI42 -> 0 | V42: =Prop2021DistTar!AJ42 -> 0 | W42: =Prop2021DistTar!AK42 -> 0 | X42: =Prop2021DistTar!AL42 -> 0 | Y42: =Prop2021DistTar!AM42 -> 0 | Z42: =Prop2021DistTar!AN42 -> 0 | AA42: =Prop2021DistTar!AO42 -> 0 | AB42: =Prop2021DistTar!AP42 -> 0 | AC42: =Prop2021DistTar!AQ42 -> 0 | AD42: =Prop2021DistTar!AR42 -> 0 | AF42: 0 | AG42: 0 | AH42: 0 | AI42: 0 | AJ42: 0 | AK42: 0 | AL42: 0 | AM42: 0 | AN42: 0 | AO42: 0 | AP42: 0 | AQ42: 0 | AR42: 0 | AS42: 0
R43: =Prop2021DistTar!AF43 -> 0 | S43: =Prop2021DistTar!AG43 -> 0 | T43: =Prop2021DistTar!AH43 -> 0 | U43: =Prop2021DistTar!AI43 -> 0 | V43: =Prop2021DistTar!AJ43 -> 0 | W43: =Prop2021DistTar!AK43 -> 0 | X43: =Prop2021DistTar!AL43 -> 0 | Y43: =Prop2021DistTar!AM43 -> 0 | Z43: =Prop2021DistTar!AN43 -> 0 | AA43: =Prop2021DistTar!AO43 -> 0 | AB43: =Prop2021DistTar!AP43 -> 0 | AC43: =Prop2021DistTar!AQ43 -> 0 | AD43: =Prop2021DistTar!AR43 -> 0 | AF43: 0 | AG43: 0 | AH43: 0 | AI43: 0 | AJ43: 0 | AK43: 0 | AL43: 0 | AM43: 0 | AN43: 0 | AO43: 0 | AP43: 0 | AQ43: 0 | AR43: 0 | AS43: 0
R44: =Prop2021DistTar!AF44 -> 0 | S44: =Prop2021DistTar!AG44 -> 0 | T44: =Prop2021DistTar!AH44 -> 0 | U44: =Prop2021DistTar!AI44 -> 0 | V44: =Prop2021DistTar!AJ44 -> 0 | W44: =Prop2021DistTar!AK44 -> 0 | X44: =Prop2021DistTar!AL44 -> 0 | Y44: =Prop2021DistTar!AM44 -> 0 | Z44: =Prop2021DistTar!AN44 -> 0 | AA44: =Prop2021DistTar!AO44 -> 0 | AB44: =Prop2021DistTar!AP44 -> 0 | AC44: =Prop2021DistTar!AQ44 -> 0 | AD44: =Prop2021DistTar!AR44 -> 0 | AF44: 0 | AG44: 0 | AH44: 0 | AI44: 0 | AJ44: 0 | AK44: 0 | AL44: 0 | AM44: 0 | AN44: 0 | AO44: 0 | AP44: 0 | AQ44: 0 | AR44: 0 | AS44: 0
R45: =Prop2021DistTar!AF45 -> 0 | S45: =Prop2021DistTar!AG45 -> 0 | T45: =Prop2021DistTar!AH45 -> 0 | U45: =Prop2021DistTar!AI45 -> 0 | V45: =Prop2021DistTar!AJ45 -> 0 | W45: =Prop2021DistTar!AK45 -> 0 | X45: =Prop2021DistTar!AL45 -> 0 | Y45: =Prop2021DistTar!AM45 -> 0 | Z45: =Prop2021DistTar!AN45 -> 0 | AA45: =Prop2021DistTar!AO45 -> 0 | AB45: =Prop2021DistTar!AP45 -> 0 | AC45: =Prop2021DistTar!AQ45 -> 0 | AD45: =Prop2021DistTar!AR45 -> 0 | AF45: 0 | AG45: 0 | AH45: 0 | AI45: 0 | AJ45: 0 | AK45: 0 | AL45: 0 | AM45: 0 | AN45: 0 | AO45: 0 | AP45: 0 | AQ45: 0 | AR45: 0 | AS45: 0
R46: =Prop2021DistTar!AF46 -> 0 | S46: =Prop2021DistTar!AG46 -> 0 | T46: =Prop2021DistTar!AH46 -> 0 | U46: =Prop2021DistTar!AI46 -> 0 | V46: =Prop2021DistTar!AJ46 -> 0 | W46: =Prop2021DistTar!AK46 -> 0 | X46: =Prop2021DistTar!AL46 -> 0 | Y46: =Prop2021DistTar!AM46 -> 0 | Z46: =Prop2021DistTar!AN46 -> 0 | AA46: =Prop2021DistTar!AO46 -> 0 | AB46: =Prop2021DistTar!AP46 -> 0 | AC46: =Prop2021DistTar!AQ46 -> 0 | AD46: =Prop2021DistTar!AR46 -> 0 | AF46: 0 | AG46: 0 | AH46: 0 | AI46: 0 | AJ46: 0 | AK46: 0 | AL46: 0 | AM46: 0 | AN46: 0 | AO46: 0 | AP46: 0 | AQ46: 0 | AR46: 0 | AS46: 0
R47: =Prop2021DistTar!AF47 -> 0 | S47: =Prop2021DistTar!AG47 -> 0 | T47: =Prop2021DistTar!AH47 -> 0 | U47: =Prop2021DistTar!AI47 -> 0 | V47: =Prop2021DistTar!AJ47 -> 0 | W47: =Prop2021DistTar!AK47 -> 0 | X47: =Prop2021DistTar!AL47 -> 0 | Y47: =Prop2021DistTar!AM47 -> 0 | Z47: =Prop2021DistTar!AN47 -> 0 | AA47: =Prop2021DistTar!AO47 -> 0 | AB47: =Prop2021DistTar!AP47 -> 0 | AC47: =Prop2021DistTar!AQ47 -> 0 | AD47: =Prop2021DistTar!AR47 -> 0 | AF47: 0 | AG47: 0 | AH47: 0 | AI47: 0 | AJ47: 0 | AK47: 0 | AL47: 0 | AM47: 0 | AN47: 0 | AO47: 0 | AP47: 0 | AQ47: 0 | AR47: 0 | AS47: 0
R48: =Prop2021DistTar!AF48 -> 0 | S48: =Prop2021DistTar!AG48 -> 0 | T48: =Prop2021DistTar!AH48 -> 0 | U48: =Prop2021DistTar!AI48 -> 0 | V48: =Prop2021DistTar!AJ48 -> 0 | W48: =Prop2021DistTar!AK48 -> 0 | X48: =Prop2021DistTar!AL48 -> 0 | Y48: =Prop2021DistTar!AM48 -> 0 | Z48: =Prop2021DistTar!AN48 -> 0 | AA48: =Prop2021DistTar!AO48 -> 0 | AB48: =Prop2021DistTar!AP48 -> 0 | AC48: =Prop2021DistTar!AQ48 -> 0 | AD48: =Prop2021DistTar!AR48 -> 0 | AF48: 0 | AG48: 0 | AH48: 0 | AI48: 0 | AJ48: 0 | AK48: 0 | AL48: 0 | AM48: 0 | AN48: 0 | AO48: 0 | AP48: 0 | AQ48: 0 | AR48: 0 | AS48: 0
R49: =Prop2021DistTar!AF49 -> 0 | S49: =Prop2021DistTar!AG49 -> 0 | T49: =Prop2021DistTar!AH49 -> 0 | U49: =Prop2021DistTar!AI49 -> 0 | V49: =Prop2021DistTar!AJ49 -> 0 | W49: =Prop2021DistTar!AK49 -> 0 | X49: =Prop2021DistTar!AL49 -> 0 | Y49: =Prop2021DistTar!AM49 -> 0 | Z49: =Prop2021DistTar!AN49 -> 0 | AA49: =Prop2021DistTar!AO49 -> 0 | AB49: =Prop2021DistTar!AP49 -> 0 | AC49: =Prop2021DistTar!AQ49 -> 0 | AD49: =Prop2021DistTar!AR49 -> 0 | AF49: 0 | AG49: 0 | AH49: 0 | AI49: 0 | AJ49: 0 | AK49: 0 | AL49: 0 | AM49: 0 | AN49: 0 | AO49: 0 | AP49: 0 | AQ49: 0 | AR49: 0 | AS49: 0
R50: =Prop2021DistTar!AF50 -> 0 | S50: =Prop2021DistTar!AG50 -> 0 | T50: =Prop2021DistTar!AH50 -> 0 | U50: =Prop2021DistTar!AI50 -> 0 | V50: =Prop2021DistTar!AJ50 -> 0 | W50: =Prop2021DistTar!AK50 -> 0 | X50: =Prop2021DistTar!AL50 -> 0 | Y50: =Prop2021DistTar!AM50 -> 0 | Z50: =Prop2021DistTar!AN50 -> 0 | AA50: =Prop2021DistTar!AO50 -> 0 | AB50: =Prop2021DistTar!AP50 -> 0 | AC50: =Prop2021DistTar!AQ50 -> 0 | AD50: =Prop2021DistTar!AR50 -> 0 | AF50: 0 | AG50: 0 | AH50: 0 | AI50: 0 | AJ50: 0 | AK50: 0 | AL50: 0 | AM50: 0 | AN50: 0 | AO50: 0 | AP50: 0 | AQ50: 0 | AR50: 0 | AS50: 0
R51: =Prop2021DistTar!AF51 -> 0 | S51: =Prop2021DistTar!AG51 -> 0 | T51: =Prop2021DistTar!AH51 -> 0 | U51: =Prop2021DistTar!AI51 -> 0 | V51: =Prop2021DistTar!AJ51 -> 0 | W51: =Prop2021DistTar!AK51 -> 0 | X51: =Prop2021DistTar!AL51 -> 0 | Y51: =Prop2021DistTar!AM51 -> 0 | Z51: =Prop2021DistTar!AN51 -> 0 | AA51: =Prop2021DistTar!AO51 -> 0 | AB51: =Prop2021DistTar!AP51 -> 0 | AC51: =Prop2021DistTar!AQ51 -> 0 | AD51: =Prop2021DistTar!AR51 -> 0 | AF51: 0 | AG51: 0 | AH51: 0 | AI51: 0 | AJ51: 0 | AK51: 0 | AL51: 0 | AM51: 0 | AN51: 0 | AO51: 0 | AP51: 0 | AQ51: 0 | AR51: 0 | AS51: 0
R52: =Prop2021DistTar!AF52 -> 0 | S52: =Prop2021DistTar!AG52 -> 0 | T52: =Prop2021DistTar!AH52 -> 0 | U52: =Prop2021DistTar!AI52 -> 0 | V52: =Prop2021DistTar!AJ52 -> 0 | W52: =Prop2021DistTar!AK52 -> 0 | X52: =Prop2021DistTar!AL52 -> 0 | Y52: =Prop2021DistTar!AM52 -> 0 | Z52: =Prop2021DistTar!AN52 -> 0 | AA52: =Prop2021DistTar!AO52 -> 0 | AB52: =Prop2021DistTar!AP52 -> 0 | AC52: =Prop2021DistTar!AQ52 -> 0 | AD52: =Prop2021DistTar!AR52 -> 0 | AF52: 0 | AG52: 0 | AH52: 0 | AI52: 0 | AJ52: 0 | AK52: 0 | AL52: 0 | AM52: 0 | AN52: 0 | AO52: 0 | AP52: 0 | AQ52: 0 | AR52: 0 | AS52: 0
R53: =Prop2021DistTar!AF53 -> 0 | S53: =Prop2021DistTar!AG53 -> 0 | T53: =Prop2021DistTar!AH53 -> 0 | U53: =Prop2021DistTar!AI53 -> 0 | V53: =Prop2021DistTar!AJ53 -> 0 | W53: =Prop2021DistTar!AK53 -> 0 | X53: =Prop2021DistTar!AL53 -> 0 | Y53: =Prop2021DistTar!AM53 -> 0 | Z53: =Prop2021DistTar!AN53 -> 0 | AA53: =Prop2021DistTar!AO53 -> 0 | AB53: =Prop2021DistTar!AP53 -> 0 | AC53: =Prop2021DistTar!AQ53 -> 0 | AD53: =Prop2021DistTar!AR53 -> 0 | AF53: 0 | AG53: 0 | AH53: 0 | AI53: 0 | AJ53: 0 | AK53: 0 | AL53: 0 | AM53: 0 | AN53: 0 | AO53: 0 | AP53: 0 | AQ53: 0 | AR53: 0 | AS53: 0
R54: =Prop2021DistTar!AF54 -> 0 | S54: =Prop2021DistTar!AG54 -> 0 | T54: =Prop2021DistTar!AH54 -> 0 | U54: =Prop2021DistTar!AI54 -> 0 | V54: =Prop2021DistTar!AJ54 -> 0 | W54: =Prop2021DistTar!AK54 -> 0 | X54: =Prop2021DistTar!AL54 -> 0 | Y54: =Prop2021DistTar!AM54 -> 0 | Z54: =Prop2021DistTar!AN54 -> 0 | AA54: =Prop2021DistTar!AO54 -> 0 | AB54: =Prop2021DistTar!AP54 -> 0 | AC54: =Prop2021DistTar!AQ54 -> 0 | AD54: =Prop2021DistTar!AR54 -> 0 | AF54: 0 | AG54: 0 | AH54: 0 | AI54: 0 | AJ54: 0 | AK54: 0 | AL54: 0 | AM54: 0 | AN54: 0 | AO54: 0 | AP54: 0 | AQ54: 0 | AR54: 0 | AS54: 0
AF55: 0 | AG55: =E55/100*S55 -> 0 | AH55: 0 | AI55: 0 | AJ55: 0 | AK55: 0 | AL55: 0 | AM55: 0 | AN55: 0 | AO55: 0 | AP55: 0 | AQ55: 0 | AR55: 0 | AS55: 0
AF56: 0 | AG56: 0 | AH56: 0 | AI56: 0 | AJ56: 0 | AK56: 0 | AL56: 0 | AM56: 0 | AN56: 0 | AO56: 0 | AP56: 0 | AQ56: 0 | AR56: 0 | AS56: 0
AF57: 0 | AG57: 0 | AH57: 0 | AI57: 0 | AJ57: 0 | AK57: 0 | AL57: 0 | AM57: 0 | AN57: 0 | AO57: 0 | AP57: 0 | AQ57: 0 | AR57: 0 | AS57: 0
AF58: 0 | AG58: 0 | AH58: 0 | AI58: 0 | AJ58: 0 | AK58: 0 | AL58: 0 | AM58: 0 | AN58: 0 | AO58: 0 | AP58: 0 | AQ58: 0 | AR58: 0 | AS58: 0
AF59: 0 | AG59: 0 | AH59: 0 | AI59: 0 | AJ59: 0 | AK59: 0 | AL59: 0 | AM59: 0 | AN59: 0 | AO59: 0 | AP59: 0 | AQ59: 0 | AR59: 0 | AS59: 0
AF60: 0 | AG60: 0 | AH60: 0 | AI60: 0 | AJ60: 0 | AK60: 0 | AL60: 0 | AM60: 0 | AN60: 0 | AO60: 0 | AP60: 0 | AQ60: 0 | AR60: 0 | AS60: 0
AF61: 0 | AG61: 0 | AH61: 0 | AI61: 0 | AJ61: 0 | AK61: 0 | AL61: 0 | AM61: 0 | AN61: 0 | AO61: 0 | AP61: 0 | AQ61: 0 | AR61: 0 | AS61: 0
AF62: 0 | AG62: 0 | AH62: 0 | AI62: 0 | AJ62: 0 | AK62: 0 | AL62: 0 | AM62: 0 | AN62: 0 | AO62: 0 | AP62: 0 | AQ62: 0 | AR62: 0 | AS62: 0
AF63: 0 | AG63: 0 | AH63: 0 | AI63: 0 | AJ63: 0 | AK63: 0 | AL63: 0 | AM63: 0 | AN63: 0 | AO63: 0 | AP63: 0 | AQ63: 0 | AR63: 0 | AS63: 0
AF64: 0 | AG64: 0 | AH64: 0 | AI64: 0 | AJ64: 0 | AK64: 0 | AL64: 0 | AM64: 0 | AN64: 0 | AO64: 0 | AP64: 0 | AQ64: 0 | AR64: 0 | AS64: 0
AF65: 0 | AG65: 0 | AH65: 0 | AI65: 0 | AJ65: 0 | AK65: 0 | AL65: 0 | AM65: 0 | AN65: 0 | AO65: 0 | AP65: 0 | AQ65: 0 | AR65: 0 | AS65: 0
R66: =SUM(R6:R65) -> 532377.0419 | S66: 1436796711 | T66: 1992025316 | U66: 1952979655 | V66: 789462.1877 | W66: 1001810.078 | X66: 879527.5965 | Y66: =SUM(Y6:Y65) -> 913328.3923 | Z66: 1243344.069 | AA66: 1247734.689 | AB66: 1896305.999 | AC66: 2781999.178 | AD66: 2716693.92 | AF66: =SUM(AF6:AF65) -> 0 | AG66: 26861174.93 | AH66: 35629433.7 | AI66: 14339970.34 | AJ66: 13182185.21 | AK66: 3315212.103 | AL66: 1459195.673 | AM66: =SUM(AM6:AM65) -> 35146.97566 | AN66: 22944.27151 | AO66: 10531.15636 | AP66: 72004.37922 | AQ66: 51362.06705 | AR66: 22251.9469 | AS66: 95001412.75

Sheet 2021TransRevCont
B2: ="Tariff Approval - "&'Model update'!$C$3 -> Tariff Approval - Powercor | C2: ='Model update'!$C$5&"TransRevCont" -> 2021TransRevCont
B4: Designated pricing proposal charges (DPPC)
B6: Year (t) | C6: ='Model update'!C5 -> 2021
B8: Table 1- Compliance with DPPC Revenue Formula
B9: Revenue from designated pricing proposal charges for year t | C9: =Prop2021TransTar!AS66 -> 95001412.75
B10: Total DPPC related payments for year t | C10: =C19 -> 95013289.21
C11: =IF(C9="","",IF(C10>=C9,"DPPC REVENUE FORMULA COMPLIANT","DPPC REVENUE FORMULA BREACHED")) -> DPPC REVENUE FORMULA COMPLIANT
B14: Table 3 - Transmission charges for year t
B15: AEMO (TCt) | C15: 76776680.32
B16: Transmission connection (TCt) | C16: 8062687.42
B17: Embedded generators (Gt) | C17: 6974735.421
B18: Inter-network (Dt) | C18: -3199186.04
B19: TC + G - D | C19: =C15+C16+C17-C18 -> 95013289.21

Sheet Prop2021JSTar
B1: ="Tariff Approval - "&'Model update'!C3 -> Tariff Approval - Powercor | D1: ="Prop"&'Model update'!$C$5&"JSTar" -> Prop2021JSTar
B3: ="PROPOSED "&'Model update'!$C$5&" JURISDICTIONAL SCHEME TARIFFS" -> PROPOSED 2021 JURISDICTIONAL SCHEME TARIFFS
D4: ="Proposed Jurisdictional scheme Tariffs (Pt) for "&'Model update'!$C$5 -> Proposed Jurisdictional scheme Tariffs (Pt) for 2021 | R4: ="Forecast Quantities (Qt) for "&'Model update'!$C$5 -> Forecast Quantities (Qt) for 2021 | AF4: ="Forecast Revenue (Pt "&'Model update'!$C$5&")*(Qt " &'Model update'!$C$5&")" -> Forecast Revenue (Pt 2021)*(Qt 2021)
B5: Proposed tariff | D5: =[1]Prop2020DistTar!D5 -> PropTar Fixed | E5: =[1]Prop2020DistTar!E5 -> PropTar Anytime | F5: =[1]Prop2020DistTar!F5 -> PropTar PkBlk | G5: =[1]Prop2020DistTar!G5 -> PropTar OPkBlk1 | H5: =[1]Prop2020DistTar!H5 -> PropTar Dem kVA | I5: =[1]Prop2020DistTar!I5 -> PropTar Dem kW Sum | J5: =[1]Prop2020DistTar!J5 -> PropTar Dem kW Win | K5: =[1]Prop2020DistTar!K5 -> PropTar SumBlk1 | L5: =[1]Prop2020DistTar!L5 -> PropTar SumBlk2 | M5: =[1]Prop2020DistTar!M5 -> PropTar SumBlk3 | N5: =[1]Prop2020DistTar!N5 -> PropTar WtrBlk1 | O5: =[1]Prop2020DistTar!O5 -> PropTar WtrBlk2 | P5: =[1]Prop2020DistTar!P5 -> PropTar WtrBlk3 | R5: =[1]Prop2020DistTar!AF5 -> FcastVol Fixed | S5: =[1]Prop2020DistTar!AG5 -> FcastVol Anytime | T5: =[1]Prop2020DistTar!AH5 -> FcastVol Pk | U5: =[1]Prop2020DistTar!AI5 -> FcastVol Opk | V5: =[1]Prop2020DistTar!AJ5 -> FcastVol Dem kVA | W5: =[1]Prop2020DistTar!AK5 -> FcastVol Dem kW Sum | X5: =[1]Prop2020DistTar!AL5 -> FcastVol Dem kW Win | Y5: =[1]Prop2020DistTar!AM5 -> FcastVol SumBlk1 | Z5: =[1]Prop2020DistTar!AN5 -> FcastVol SumBlk2 | AA5: =[1]Prop2020DistTar!AO5 -> FcastVol SumBlk3 | AB5: =[1]Prop2020DistTar!AP5 -> FcastVol WtrBlk1 | AC5: =[1]Prop2020DistTar!AQ5 -> FcastVol WtrBlk2 | AD5: =[1]Prop2020DistTar!AR5 -> FcastVol WtrBlk3 | AF5: =[1]Prop2020DistTar!AT5 -> PropRev Fixed | AG5: =[1]Prop2020DistTar!AU5 -> PropRev Anytime | AH5: =[1]Prop2020DistTar!AV5 -> PropRev Pk | AI5: =[1]Prop2020DistTar!AW5 -> PropRev Opk | AJ5: =[1]Prop2020DistTar!AX5 -> PropRev Dem kVA | AK5: =[1]Prop2020DistTar!AY5 -> PropRev Dem kW Sum | AL5: =[1]Prop2020DistTar!AZ5 -> PropRev Dem kW Win | AM5: =[1]Prop2020DistTar!BA5 -> PropRev SumBlk1 | AN5: =[1]Prop2020DistTar!BB5 -> PropRev SumBlk2 | AO5: =[1]Prop2020DistTar!BC5 -> PropRev SumBlk3 | AP5: =[1]Prop2020DistTar!BD5 -> PropRev WtrBlk1 | AQ5: =[1]Prop2020DistTar!BE5 -> PropRev WtrBlk2 | AR5: =[1]Prop2020DistTar!BF5 -> PropRev WtrBlk3 | AS5: PropRev Total
B6: =Prop2021DistTar!B6 -> Residential Single Rate | D6: 0 | E6: 0.33 | F6: 0 | G6: 0 | H6: 0 | I6: 0 | J6: 0 | K6: 0 | L6: 0 | M6: 0 | N6: 0 | O6: 0 | P6: 0 | R6: =Prop2021DistTar!AF6 -> 287372.8633 | S6: =Prop2021DistTar!AG6 -> 1280472172 | T6: =Prop2021DistTar!AH6 -> 0 | U6: =Prop2021DistTar!AI6 -> 0 | V6: =Prop2021DistTar!AJ6 -> 0 | W6: =Prop2021DistTar!AK6 -> 0 | X6: =Prop2021DistTar!AL6 -> 0 | Y6: =Prop2021DistTar!AM6 -> 0 | Z6: =Prop2021DistTar!AN6 -> 0 | AA6: =Prop2021DistTar!AO6 -> 0 | AB6: =Prop2021DistTar!AP6 -> 0 | AC6: =Prop2021DistTar!AQ6 -> 0 | AD6: =Prop2021DistTar!AR6 -> 0 | AF6: =D6*R6 -> 0 | AG6: =E6/100*S6 -> 4225558.166 | AH6: 0 | AI6: 0 | AJ6: =H6*V6 -> 0 | AK6: 0 | AL6: 0 | AM6: =K6/100*Y6 -> 0 | AN6: 0 | AO6: 0 | AP6: 0 | AQ6: 0 | AR6: 0 | AS6: =SUM(AF6:AR6) -> 4225558.166
B7: =Prop2021DistTar!B7 -> Climate Saver | D7: 0 | E7: 0 | F7: 0.33 | G7: 0.33 | H7: 0 | I7: 0 | J7: 0 | K7: 0 | L7: 0 | M7: 0 | N7: 0 | O7: 0 | P7: 0 | R7: =Prop2021DistTar!AF7 -> 8520.880264 | S7: =Prop2021DistTar!AG7 -> 0 | T7: =Prop2021DistTar!AH7 -> 6824248.905 | U7: =Prop2021DistTar!AI7 -> 6994649.08 | V7: =Prop2021DistTar!AJ7 -> 0 | W7: =Prop2021DistTar!AK7 -> 0 | X7: =Prop2021DistTar!AL7 -> 0 | Y7: =Prop2021DistTar!AM7 -> 0 | Z7: =Prop2021DistTar!AN7 -> 0 | AA7: =Prop2021DistTar!AO7 -> 0 | AB7: =Prop2021DistTar!AP7 -> 0 | AC7: =Prop2021DistTar!AQ7 -> 0 | AD7: =Prop2021DistTar!AR7 -> 0 | AF7: =D7*R7 -> 0 | AG7: =E7/100*S7 -> 0 | AH7: 22520.02139 | AI7: 23082.34196 | AJ7: 0 | AK7: 0 | AL7: 0 | AM7: 0 | AN7: 0 | AO7: 0 | AP7: 0 | AQ7: 0 | AR7: 0 | AS7: =SUM(AF7:AR7) -> 45602.36335
B8: =Prop2021DistTar!B8 -> Climate Saver Interval | D8: 0 | E8: 0 | F8: 0.33 | G8: 0.33 | H8: 0 | I8: 0 | J8: 0 | K8: 0 | L8: 0 | M8: 0 | N8: 0 | O8: 0 | P8: 0 | R8: =Prop2021DistTar!AF8 -> 2324 | S8: =Prop2021DistTar!AG8 -> 0 | T8: =Prop2021DistTar!AH8 -> 1975264.14 | U8: =Prop2021DistTar!AI8 -> 2186214.006 | V8: =Prop2021DistTar!AJ8 -> 0 | W8: =Prop2021DistTar!AK8 -> 0 | X8: =Prop2021DistTar!AL8 -> 0 | Y8: =Prop2021DistTar!AM8 -> 0 | Z8: =Prop2021DistTar!AN8 -> 0 | AA8: =Prop2021DistTar!AO8 -> 0 | AB8: =Prop2021DistTar!AP8 -> 0 | AC8: =Prop2021DistTar!AQ8 -> 0 | AD8: =Prop2021DistTar!AR8 -> 0 | AF8: 0 | AG8: 0 | AH8: 6518.371663 | AI8: 7214.50622 | AJ8: 0 | AK8: 0 | AL8: 0 | AM8: 0 | AN8: 0 | AO8: 0 | AP8: 0 | AQ8: 0 | AR8: 0 | AS8: 13732.87788
B9: =Prop2021DistTar!B9 -> Residential - Flexible Pricing | D9: 0 | E9: 0 | F9: 0 | G9: 0 | H9: 0 | I9: 0 | J9: 0 | K9: 0.33 | L9: 0.33 | M9: 0.33 | N9: 0.33 | O9: 0.33 | P9: 0.33 | R9: =Prop2021DistTar!AF9 -> 1561.19922 | S9: =Prop2021DistTar!AG9 -> 0 | T9: =Prop2021DistTar!AH9 -> 0 | U9: =Prop2021DistTar!AI9 -> 0 | V9: =Prop2021DistTar!AJ9 -> 0 | W9: =Prop2021DistTar!AK9 -> 0 | X9: =Prop2021DistTar!AL9 -> 0 | Y9: =Prop2021DistTar!AM9 -> 581865.2345 | Z9: =Prop2021DistTar!AN9 -> 1127707.344 | AA9: =Prop2021DistTar!AO9 -> 916574.5586 | AB9: =Prop2021DistTar!AP9 -> 1326685.558 | AC9: =Prop2021DistTar!AQ9 -> 2571236.359 | AD9: =Prop2021DistTar!AR9 -> 2089841.698 | AF9: 0 | AG9: 0 | AH9: 0 | AI9: 0 | AJ9: 0 | AK9: 0 | AL9: 0 | AM9: 1920.155274 | AN9: 3721.434235 | AO9: 3024.696044 | AP9: 4378.062342 | AQ9: 8485.079984 | AR9: 6896.477604 | AS9: 28425.90548
B10: =Prop2021DistTar!B10 -> Residential Docklands - Flexible Pricing | D10: 0 | E10: 0 | F10: 0 | G10: 0 | H10: 0 | I10: 0 | J10: 0 | K10: 0.33 | L10: 0.33 | M10: 0.33 | N10: 0.33 | O10: 0.33 | P10: 0.33 | R10: =Prop2021DistTar!AF10 -> 0.4944581281 | S10: =Prop2021DistTar!AG10 -> 0 | T10: =Prop2021DistTar!AH10 -> 0 | U10: =Prop2021DistTar!AI10 -> 0 | V10: =Prop2021DistTar!AJ10 -> 0 | W10: =Prop2021DistTar!AK10 -> 0 | X10: =Prop2021DistTar!AL10 -> 0 | Y10: =Prop2021DistTar!AM10 -> 234.5165156 | Z10: =Prop2021DistTar!AN10 -> 449.189326 | AA10: =Prop2021DistTar!AO10 -> 301.2635239 | AB10: =Prop2021DistTar!AP10 -> 484.1450681 | AC10: =Prop2021DistTar!AQ10 -> 927.324015 | AD10: =Prop2021DistTar!AR10 -> 621.9402028 | AF10: 0 | AG10: 0 | AH10: 0 | AI10: 0 | AJ10: 0 | AK10: 0 | AL10: 0 | AM10: 0.7739045015 | AN10: 1.482324776 | AO10: 0.9941696288 | AP10: 1.597678725 | AQ10: 3.060169249 | AR10: 2.052402669 | AS10: 9.96064955
B11: =Prop2021DistTar!B11 -> Climate Saver - Flexible Pricing | D11: 0 | E11: 0 | F11: 0 | G11: 0 | H11: 0 | I11: 0 | J11: 0 | K11: 0.33 | L11: 0 | M11: 0 | N11: 0.33 | O11: 0 | P11: 0 | R11: =Prop2021DistTar!AF11 -> 29 | S11: =Prop2021DistTar!AG11 -> 0 | T11: =Prop2021DistTar!AH11 -> 0 | U11: =Prop2021DistTar!AI11 -> 0 | V11: =Prop2021DistTar!AJ11 -> 0 | W11: =Prop2021DistTar!AK11 -> 0 | X11: =Prop2021DistTar!AL11 -> 0 | Y11: =Prop2021DistTar!AM11 -> 21667.10912 | Z11: =Prop2021DistTar!AN11 -> 0 | AA11: =Prop2021DistTar!AO11 -> 0 | AB11: =Prop2021DistTar!AP11 -> 5212.456243 | AC11: =Prop2021DistTar!AQ11 -> 0 | AD11: =Prop2021DistTar!AR11 -> 23509.39034 | AF11: 0 | AG11: 0 | AH11: 0 | AI11: 0 | AJ11: 0 | AK11: 0 | AL11: 0 | AM11: 71.50146011 | AN11: 0 | AO11: 0 | AP11: 17.2011056 | AQ11: 0 | AR11: 0 | AS11: 88.70256572
B12: =Prop2021DistTar!B12 -> Docklands single rate | D12: 0 | E12: 0.33 | F12: 0 | G12: 0 | H12: 0 | I12: 0 | J12: 0 | K12: 0 | L12: 0 | M12: 0 | N12: 0 | O12: 0 | P12: 0 | R12: =Prop2021DistTar!AF12 -> 1.483374384 | S12: =Prop2021DistTar!AG12 -> 26451.718 | T12: =Prop2021DistTar!AH12 -> 0 | U12: =Prop2021DistTar!AI12 -> 0 | V12: =Prop2021DistTar!AJ12 -> 0 | W12: =Prop2021DistTar!AK12 -> 0 | X12: =Prop2021DistTar!AL12 -> 0 | Y12: =Prop2021DistTar!AM12 -> 0 | Z12: =Prop2021DistTar!AN12 -> 0 | AA12: =Prop2021DistTar!AO12 -> 0 | AB12: =Prop2021DistTar!AP12 -> 0 | AC12: =Prop2021DistTar!AQ12 -> 0 | AD12: =Prop2021DistTar!AR12 -> 0 | AF12: 0 | AG12: 87.29066939 | AH12: 0 | AI12: 0 | AJ12: 0 | AK12: 0 | AL12: 0 | AM12: 0 | AN12: 0 | AO12: 0 | AP12: 0 | AQ12: 0 | AR12: 0 | AS12: 87.29066939
B13: =Prop2021DistTar!B13 -> Residential Two Rate 5d | D13: 0 | E13: 0 | F13: 0.33 | G13: 0.33 | H13: 0 | I13: 0 | J13: 0 | K13: 0 | L13: 0 | M13: 0 | N13: 0 | O13: 0 | P13: 0 | R13: =Prop2021DistTar!AF13 -> 22324.88116 | S13: =Prop2021DistTar!AG13 -> 0 | T13: =Prop2021DistTar!AH13 -> 62052089.6 | U13: =Prop2021DistTar!AI13 -> 57192232.73 | V13: =Prop2021DistTar!AJ13 -> 0 | W13: =Prop2021DistTar!AK13 -> 0 | X13: =Prop2021DistTar!AL13 -> 0 | Y13: =Prop2021DistTar!AM13 -> 0 | Z13: =Prop2021DistTar!AN13 -> 0 | AA13: =Prop2021DistTar!AO13 -> 0 | AB13: =Prop2021DistTar!AP13 -> 0 | AC13: =Prop2021DistTar!AQ13 -> 0 | AD13: =Prop2021DistTar!AR13 -> 0 | AF13: 0 | AG13: 0 | AH13: 204771.8957 | AI13: 188734.368 | AJ13: 0 | AK13: 0 | AL13: 0 | AM13: 0 | AN13: 0 | AO13: 0 | AP13: 0 | AQ13: 0 | AR13: 0 | AS13: 393506.2637
B14: =Prop2021DistTar!B14 -> Docklands Two Rate 5d | D14: 0 | E14: 0 | F14: 0.33 | G14: 0.33 | H14: 0 | I14: 0 | J14: 0 | K14: 0 | L14: 0 | M14: 0 | N14: 0 | O14: 0 | P14: 0 | R14: =Prop2021DistTar!AF14 -> 289.9641147 | S14: =Prop2021DistTar!AG14 -> 0 | T14: =Prop2021DistTar!AH14 -> 920600.0654 | U14: =Prop2021DistTar!AI14 -> 857632.5517 | V14: =Prop2021DistTar!AJ14 -> 0 | W14: =Prop2021DistTar!AK14 -> 0 | X14: =Prop2021DistTar!AL14 -> 0 | Y14: =Prop2021DistTar!AM14 -> 0 | Z14: =Prop2021DistTar!AN14 -> 0 | AA14: =Prop2021DistTar!AO14 -> 0 | AB14: =Prop2021DistTar!AP14 -> 0 | AC14: =Prop2021DistTar!AQ14 -> 0 | AD14: =Prop2021DistTar!AR14 -> 0 | AF14: 0 | AG14: 0 | AH14: 3037.980216 | AI14: 2830.187421 | AJ14: 0 | AK14: 0 | AL14: 0 | AM14: 0 | AN14: 0 | AO14: 0 | AP14: 0 | AQ14: 0 | AR14: 0 | AS14: 5868.167636
B15: =Prop2021DistTar!B15 -> Residential Interval | D15: 0 | E15: 0 | F15: 0.33 | G15: 0.33 | H15: 0 | I15: 0 | J15: 0 | K15: 0 | L15: 0 | M15: 0 | N15: 0 | O15: 0 | P15: 0 | R15: =Prop2021DistTar!AF15 -> 53700.62898 | S15: =Prop2021DistTar!AG15 -> 0 | T15: =Prop2021DistTar!AH15 -> 125119939 | U15: =Prop2021DistTar!AI15 -> 131491852.8 | V15: =Prop2021DistTar!AJ15 -> 0 | W15: =Prop2021DistTar!AK15 -> 0 | X15: =Prop2021DistTar!AL15 -> 0 | Y15: =Prop2021DistTar!AM15 -> 0 | Z15: =Prop2021DistTar!AN15 -> 0 | AA15: =Prop2021DistTar!AO15 -> 0 | AB15: =Prop2021DistTar!AP15 -> 0 | AC15: =Prop2021DistTar!AQ15 -> 0 | AD15: =Prop2021DistTar!AR15 -> 0 | AF15: 0 | AG15: 0 | AH15: 412895.7987 | AI15: 433923.1143 | AJ15: 0 | AK15: 0 | AL15: 0 | AM15: 0 | AN15: 0 | AO15: 0 | AP15: 0 | AQ15: 0 | AR15: 0 | AS15: 846818.913
B16: =Prop2021DistTar!B16 -> Residential Two Rate 5d - controlled load | D16: 0 | E16: 0 | F16: 0 | G16: 0 | H16: 0 | I16: 0 | J16: 0 | K16: 0 | L16: 0 | M16: 0 | N16: 0 | O16: 0 | P16: 0 | R16: =Prop2021DistTar!AF16 -> 0 | S16: =Prop2021DistTar!AG16 -> 0 | T16: =Prop2021DistTar!AH16 -> 0 | U16: =Prop2021DistTar!AI16 -> 0 | V16: =Prop2021DistTar!AJ16 -> 0 | W16: =Prop2021DistTar!AK16 -> 0 | X16: =Prop2021DistTar!AL16 -> 0 | Y16: =Prop2021DistTar!AM16 -> 0 | Z16: =Prop2021DistTar!AN16 -> 0 | AA16: =Prop2021DistTar!AO16 -> 0 | AB16: =Prop2021DistTar!AP16 -> 0 | AC16: =Prop2021DistTar!AQ16 -> 0 | AD16: =Prop2021DistTar!AR16 -> 0 | AF16: 0 | AG16: 0 | AH16: 0 | AI16: 0 | AJ16: 0 | AK16: 0 | AL16: 0 | AM16: 0 | AN16: 0 | AO16: 0 | AP16: 0 | AQ16: 0 | AR16: 0 | AS16: 0
B17: =Prop2021DistTar!B17 -> Docklands Two Rate 5d - controlled load | D17: 0 | E17: 0 | F17: 0 | G17: 0 | H17: 0 | I17: 0 | J17: 0 | K17: 0 | L17: 0 | M17: 0 | N17: 0 | O17: 0 | P17: 0 | R17: =Prop2021DistTar!AF17 -> 0 | S17: =Prop2021DistTar!AG17 -> 0 | T17: =Prop2021DistTar!AH17 -> 0 | U17: =Prop2021DistTar!AI17 -> 0 | V17: =Prop2021DistTar!AJ17 -> 0 | W17: =Prop2021DistTar!AK17 -> 0 | X17: =Prop2021DistTar!AL17 -> 0 | Y17: =Prop2021DistTar!AM17 -> 0 | Z17: =Prop2021DistTar!AN17 -> 0 | AA17: =Prop2021DistTar!AO17 -> 0 | AB17: =Prop2021DistTar!AP17 -> 0 | AC17: =Prop2021DistTar!AQ17 -> 0 | AD17: =Prop2021DistTar!AR17 -> 0 | AF17: 0 | AG17: 0 | AH17: 0 | AI17: 0 | AJ17: 0 | AK17: 0 | AL17: 0 | AM17: 0 | AN17: 0 | AO17: 0 | AP17: 0 | AQ17: 0 | AR17: 0 | AS17: 0
B18: =Prop2021DistTar!B18 -> Dedicated circuit | D18: 0 | E18: 0 | F18: 0 | G18: 0.33 | H18: 0 | I18: 0 | J18: 0 | K18: 0 | L18: 0 | M18: 0 | N18: 0 | O18: 0 | P18: 0 | R18: =Prop2021DistTar!AF18 -> 103127.4205 | S18: =Prop2021DistTar!AG18 -> 0 | T18: =Prop2021DistTar!AH18 -> 0 | U18: =Prop2021DistTar!AI18 -> 156754447.1 | V18: =Prop2021DistTar!AJ18 -> 0 | W18: =Prop2021DistTar!AK18 -> 0 | X18: =Prop2021DistTar!AL18 -> 0 | Y18: =Prop2021DistTar!AM18 -> 0 | Z18: =Prop2021DistTar!AN18 -> 0 | AA18: =Prop2021DistTar!AO18 -> 0 | AB18: =Prop2021DistTar!AP18 -> 0 | AC18: =Prop2021DistTar!AQ18 -> 0 | AD18: =Prop2021DistTar!AR18 -> 0 | AF18: 0 | AG18: 0 | AH18: 0 | AI18: 517289.6755 | AJ18: 0 | AK18: 0 | AL18: 0 | AM18: 0 | AN18: 0 | AO18: 0 | AP18: 0 | AQ18: 0 | AR18: 0 | AS18: 517289.6755
B19: =Prop2021DistTar!B19 -> Hot Water Interval | D19: 0 | E19: 0 | F19: 0 | G19: 0 | H19: 0 | I19: 0 | J19: 0 | K19: 0 | L19: 0 | M19: 0 | N19: 0 | O19: 0 | P19: 0 | R19: =Prop2021DistTar!AF19 -> 0 | S19: =Prop2021DistTar!AG19 -> 0 | T19: =Prop2021DistTar!AH19 -> 0 | U19: =Prop2021DistTar!AI19 -> 0 | V19: =Prop2021DistTar!AJ19 -> 0 | W19: =Prop2021DistTar!AK19 -> 0 | X19: =Prop2021DistTar!AL19 -> 0 | Y19: =Prop2021DistTar!AM19 -> 0 | Z19: =Prop2021DistTar!AN19 -> 0 | AA19: =Prop2021DistTar!AO19 -> 0 | AB19: =Prop2021DistTar!AP19 -> 0 | AC19: =Prop2021DistTar!AQ19 -> 0 | AD19: =Prop2021DistTar!AR19 -> 0 | AF19: 0 | AG19: 0 | AH19: 0 | AI19: 0 | AJ19: 0 | AK19: 0 | AL19: 0 | AM19: 0 | AN19: 0 | AO19: 0 | AP19: 0 | AQ19: 0 | AR19: 0 | AS19: 0
B20: =Prop2021DistTar!B20 -> Residential Demand | D20: 0 | E20: 0.33 | F20: 0 | G20: 0 | H20: 0 | I20: 0 | J20: 0 | K20: 0 | L20: 0 | M20: 0 | N20: 0 | O20: 0 | P20: 0 | R20: =Prop2021DistTar!AF20 -> 5.034482759 | S20: =Prop2021DistTar!AG20 -> 12371.84712 | T20: =Prop2021DistTar!AH20 -> 0 | U20: =Prop2021DistTar!AI20 -> 0 | V20: =Prop2021DistTar!AJ20 -> 0 | W20: =Prop2021DistTar!AK20 -> 88.60689655 | X20: =Prop2021DistTar!AL20 -> 90.11724138 | Y20: =Prop2021DistTar!AM20 -> 0 | Z20: =Prop2021DistTar!AN20 -> 0 | AA20: =Prop2021DistTar!AO20 -> 0 | AB20: =Prop2021DistTar!AP20 -> 0 | AC20: =Prop2021DistTar!AQ20 -> 0 | AD20: =Prop2021DistTar!AR20 -> 0 | AF20: 0 | AG20: 40.82709551 | AH20: 0 | AI20: 0 | AJ20: 0 | AK20: 0 | AL20: 0 | AM20: 0 | AN20: 0 | AO20: 0 | AP20: 0 | AQ20: 0 | AR20: 0 | AS20: 40.82709551
B21: =Prop2021DistTar!B21 -> Newstead Residential Trial | D21: 0 | E21: 0 | F21: 0 | G21: 0 | H21: 0 | I21: 0 | J21: 0 | K21: 0 | L21: 0 | M21: 0 | N21: 0 | O21: 0 | P21: 0 | R21: =Prop2021DistTar!AF21 -> 2.483940954 | S21: =Prop2021DistTar!AG21 -> 10727.22847 | T21: =Prop2021DistTar!AH21 -> 0 | U21: =Prop2021DistTar!AI21 -> 0 | V21: =Prop2021DistTar!AJ21 -> 0 | W21: =Prop2021DistTar!AK21 -> 42.69454526 | X21: =Prop2021DistTar!AL21 -> 45.51974449 | Y21: =Prop2021DistTar!AM21 -> 0 | Z21: =Prop2021DistTar!AN21 -> 0 | AA21: =Prop2021DistTar!AO21 -> 0 | AB21: =Prop2021DistTar!AP21 -> 0 | AC21: =Prop2021DistTar!AQ21 -> 0 | AD21: =Prop2021DistTar!AR21 -> 0 | AF21: 0 | AG21: 0 | AH21: 0 | AI21: 0 | AJ21: 0 | AK21: 0 | AL21: 0 | AM21: 0 | AN21: 0 | AO21: 0 | AP21: 0 | AQ21: 0 | AR21: 0 | AS21: 0
B22: =Prop2021DistTar!B22 -> Non-Residential Single Rate | D22: 0 | E22: 0.33 | F22: 0 | G22: 0 | H22: 0 | I22: 0 | J22: 0 | K22: 0 | L22: 0 | M22: 0 | N22: 0 | O22: 0 | P22: 0 | R22: =Prop2021DistTar!AF22 -> 22587.86724 | S22: =Prop2021DistTar!AG22 -> 154078537.7 | T22: =Prop2021DistTar!AH22 -> 0 | U22: =Prop2021DistTar!AI22 -> 0 | V22: =Prop2021DistTar!AJ22 -> 0 | W22: =Prop2021DistTar!AK22 -> 0 | X22: =Prop2021DistTar!AL22 -> 0 | Y22: =Prop2021DistTar!AM22 -> 0 | Z22: =Prop2021DistTar!AN22 -> 0 | AA22: =Prop2021DistTar!AO22 -> 0 | AB22: =Prop2021DistTar!AP22 -> 0 | AC22: =Prop2021DistTar!AQ22 -> 0 | AD22: =Prop2021DistTar!AR22 -> 0 | AF22: 0 | AG22: 508459.1745 | AH22: 0 | AI22: 0 | AJ22: =H22*V22 -> 0 | AK22: 0 | AL22: 0 | AM22: 0 | AN22: 0 | AO22: 0 | AP22: 0 | AQ22: 0 | AR22: 0 | AS22: 508459.1745
B23: =Prop2021DistTar!B23 -> Non-Residential Flexible Pricing | D23: 0 | E23: 0 | F23: 0 | G23: 0 | H23: 0 | I23: 0 | J23: 0 | K23: 0.33 | L23: 0.33 | M23: 0.33 | N23: 0.33 | O23: 0.33 | P23: 0.33 | R23: =Prop2021DistTar!AF23 -> 93.52250958 | S23: =Prop2021DistTar!AG23 -> 0 | T23: =Prop2021DistTar!AH23 -> 0 | U23: =Prop2021DistTar!AI23 -> 0 | V23: =Prop2021DistTar!AJ23 -> 0 | W23: =Prop2021DistTar!AK23 -> 0 | X23: =Prop2021DistTar!AL23 -> 0 | Y23: =Prop2021DistTar!AM23 -> 309561.5322 | Z23: =Prop2021DistTar!AN23 -> 115187.5359 | AA23: =Prop2021DistTar!AO23 -> 330858.8668 | AB23: =Prop2021DistTar!AP23 -> 563923.8396 | AC23: =Prop2021DistTar!AQ23 -> 209835.4955 | AD23: =Prop2021DistTar!AR23 -> 602720.8911 | AF23: 0 | AG23: 0 | AH23: 0 | AI23: 0 | AJ23: 0 | AK23: 0 | AL23: 0 | AM23: 1021.553056 | AN23: 380.1188683 | AO23: 1091.83426 | AP23: 1860.948671 | AQ23: 692.4571353 | AR23: 1988.978941 | AS23: 7035.890932
B24: =Prop2021DistTar!B24 -> Non-Residential Two Rate 5d | D24: 0 | E24: 0 | F24: 0.33 | G24: 0.33 | H24: 0 | I24: 0 | J24: 0 | K24: 0 | L24: 0 | M24: 0 | N24: 0 | O24: 0 | P24: 0 | R24: =Prop2021DistTar!AF24 -> 11552.234 | S24: =Prop2021DistTar!AG24 -> 0 | T24: =Prop2021DistTar!AH24 -> 94897630.64 | U24: =Prop2021DistTar!AI24 -> 84219055.8 | V24: =Prop2021DistTar!AJ24 -> 0 | W24: =Prop2021DistTar!AK24 -> 0 | X24: =Prop2021DistTar!AL24 -> 0 | Y24: =Prop2021DistTar!AM24 -> 0 | Z24: =Prop2021DistTar!AN24 -> 0 | AA24: =Prop2021DistTar!AO24 -> 0 | AB24: =Prop2021DistTar!AP24 -> 0 | AC24: =Prop2021DistTar!AQ24 -> 0 | AD24: =Prop2021DistTar!AR24 -> 0 | AF24: 0 | AG24: 0 | AH24: 313162.1811 | AI24: 277922.8841 | AJ24: 0 | AK24: 0 | AL24: 0 | AM24: 0 | AN24: 0 | AO24: 0 | AP24: 0 | AQ24: 0 | AR24: 0 | AS24: 591085.0653
B25: =Prop2021DistTar!B25 -> Non-Residential Interval | D25: 0 | E25: 0 | F25: 0.33 | G25: 0.33 | H25: 0 | I25: 0 | J25: 0 | K25: 0 | L25: 0 | M25: 0 | N25: 0 | O25: 0 | P25: 0 | R25: =Prop2021DistTar!AF25 -> 5873.824713 | S25: =Prop2021DistTar!AG25 -> 0 | T25: =Prop2021DistTar!AH25 -> 43789013.77 | U25: =Prop2021DistTar!AI25 -> 31927339.78 | V25: =Prop2021DistTar!AJ25 -> 0 | W25: =Prop2021DistTar!AK25 -> 0 | X25: =Prop2021DistTar!AL25 -> 0 | Y25: =Prop2021DistTar!AM25 -> 0 | Z25: =Prop2021DistTar!AN25 -> 0 | AA25: =Prop2021DistTar!AO25 -> 0 | AB25: =Prop2021DistTar!AP25 -> 0 | AC25: =Prop2021DistTar!AQ25 -> 0 | AD25: =Prop2021DistTar!AR25 -> 0 | AF25: 0 | AG25: 0 | AH25: 144503.7454 | AI25: 105360.2213 | AJ25: 0 | AK25: 0 | AL25: 0 | AM25: 0 | AN25: 0 | AO25: 0 | AP25: 0 | AQ25: 0 | AR25: 0 | AS25: 249863.9667
B26: =Prop2021DistTar!B26 -> Non-Residential Two Rate 7d | D26: 0 | E26: 0 | F26: 0.33 | G26: 0.33 | H26: 0 | I26: 0 | J26: 0 | K26: 0 | L26: 0 | M26: 0 | N26: 0 | O26: 0 | P26: 0 | R26: =Prop2021DistTar!AF26 -> 3347.528257 | S26: =Prop2021DistTar!AG26 -> 0 | T26: =Prop2021DistTar!AH26 -> 25991313.89 | U26: =Prop2021DistTar!AI26 -> 10067551.62 | V26: =Prop2021DistTar!AJ26 -> 0 | W26: =Prop2021DistTar!AK26 -> 0 | X26: =Prop2021DistTar!AL26 -> 0 | Y26: =Prop2021DistTar!AM26 -> 0 | Z26: =Prop2021DistTar!AN26 -> 0 | AA26: =Prop2021DistTar!AO26 -> 0 | AB26: =Prop2021DistTar!AP26 -> 0 | AC26: =Prop2021DistTar!AQ26 -> 0 | AD26: =Prop2021DistTar!AR26 -> 0 | AF26: 0 | AG26: 0 | AH26: 85771.33585 | AI26: 33222.92036 | AJ26: 0 | AK26: 0 | AL26: 0 | AM26: 0 | AN26: 0 | AO26: 0 | AP26: 0 | AQ26: 0 | AR26: 0 | AS26: 118994.2562
B27: =Prop2021DistTar!B27 -> Non-Residential Demand | D27: 0 | E27: 0.33 | F27: 0 | G27: 0 | H27: 0 | I27: 0 | J27: 0 | K27: 0 | L27: 0 | M27: 0 | N27: 0 | O27: 0 | P27: 0 | R27: =Prop2021DistTar!AF27 -> 50.40867816 | S27: =Prop2021DistTar!AG27 -> 2196450.819 | T27: =Prop2021DistTar!AH27 -> 0 | U27: =Prop2021DistTar!AI27 -> 0 | V27: =Prop2021DistTar!AJ27 -> 0 | W27: =Prop2021DistTar!AK27 -> 1125.028898 | X27: =Prop2021DistTar!AL27 -> 1183.049489 | Y27: =Prop2021DistTar!AM27 -> 0 | Z27: =Prop2021DistTar!AN27 -> 0 | AA27: =Prop2021DistTar!AO27 -> 0 | AB27: =Prop2021DistTar!AP27 -> 0 | AC27: =Prop2021DistTar!AQ27 -> 0 | AD27: =Prop2021DistTar!AR27 -> 0 | AF27: 0 | AG27: 7248.287703 | AH27: 0 | AI27: 0 | AJ27: 0 | AK27: 0 | AL27: 0 | AM27: 0 | AN27: 0 | AO27: 0 | AP27: 0 | AQ27: 0 | AR27: 0 | AS27: 7248.287703
B28: =Prop2021DistTar!B28 -> Medium business Demand | D28: 0 | E28: 0 | F28: 0.32 | G28: 0.32 | H28: 0 | I28: 0 | J28: 0 | K28: 0 | L28: 0 | M28: 0 | N28: 0 | O28: 0 | P28: 0 | R28: =Prop2021DistTar!AF28 -> 3653.553089 | S28: =Prop2021DistTar!AG28 -> 0 | T28: =Prop2021DistTar!AH28 -> 245653226.1 | U28: =Prop2021DistTar!AI28 -> 217058308.2 | V28: =Prop2021DistTar!AJ28 -> 0 | W28: =Prop2021DistTar!AK28 -> 1000553.748 | X28: =Prop2021DistTar!AL28 -> 878208.9101 | Y28: =Prop2021DistTar!AM28 -> 0 | Z28: =Prop2021DistTar!AN28 -> 0 | AA28: =Prop2021DistTar!AO28 -> 0 | AB28: =Prop2021DistTar!AP28 -> 0 | AC28: =Prop2021DistTar!AQ28 -> 0 | AD28: =Prop2021DistTar!AR28 -> 0 | AF28: 0 | AG28: 0 | AH28: 786090.3235 | AI28: 694586.5863 | AJ28: 0 | AK28: 0 | AL28: 0 | AM28: 0 | AN28: 0 | AO28: 0 | AP28: 0 | AQ28: 0 | AR28: 0 | AS28: 1480676.91
B29: =Prop2021DistTar!B29 -> Medium business Opt-out | D29: 0 | E29: 0 | F29: 0.32 | G29: 0.32 | H29: 0 | I29: 0 | J29: 0 | K29: 0 | L29: 0 | M29: 0 | N29: 0 | O29: 0 | P29: 0 | R29: =Prop2021DistTar!AF29 -> 78.73132184 | S29: =Prop2021DistTar!AG29 -> 0 | T29: =Prop2021DistTar!AH29 -> 3442426.065 | U29: =Prop2021DistTar!AI29 -> 2572566.693 | V29: =Prop2021DistTar!AJ29 -> 0 | W29: =Prop2021DistTar!AK29 -> 0 | X29: =Prop2021DistTar!AL29 -> 0 | Y29: =Prop2021DistTar!AM29 -> 0 | Z29: =Prop2021DistTar!AN29 -> 0 | AA29: =Prop2021DistTar!AO29 -> 0 | AB29: =Prop2021DistTar!AP29 -> 0 | AC29: =Prop2021DistTar!AQ29 -> 0 | AD29: =Prop2021DistTar!AR29 -> 0 | AF29: 0 | AG29: 0 | AH29: 11015.76341 | AI29: 8232.213419 | AJ29: 0 | AK29: 0 | AL29: 0 | AM29: 0 | AN29: 0 | AO29: 0 | AP29: 0 | AQ29: 0 | AR29: 0 | AS29: 19247.97683
B30: =Prop2021DistTar!B30 -> Public Lighting | D30: 0 | E30: 0 | H30: 0 | I30: 0 | J30: 0 | K30: 0 | L30: 0 | M30: 0 | N30: 0 | O30: 0 | P30: 0 | R30: =Prop2021DistTar!AF30 -> 4298.458904 | S30: =Prop2021DistTar!AG30 -> 0 | T30: =Prop2021DistTar!AH30 -> 10667979.55 | U30: =Prop2021DistTar!AI30 -> 26936106.36 | V30: =Prop2021DistTar!AJ30 -> 0 | W30: =Prop2021DistTar!AK30 -> 0 | X30: =Prop2021DistTar!AL30 -> 0 | Y30: =Prop2021DistTar!AM30 -> 0 | Z30: =Prop2021DistTar!AN30 -> 0 | AA30: =Prop2021DistTar!AO30 -> 0 | AB30: =Prop2021DistTar!AP30 -> 0 | AC30: =Prop2021DistTar!AQ30 -> 0 | AD30: =Prop2021DistTar!AR30 -> 0 | AF30: 0 | AG30: 0 | AH30: 0 | AI30: 0 | AJ30: 0 | AK30: 0 | AL30: 0 | AM30: 0 | AN30: 0 | AO30: 0 | AP30: 0 | AQ30: 0 | AR30: 0 | AS30: 0
B31: =Prop2021DistTar!B31 -> Large low Voltage | D31: 0 | E31: 0 | F31: 0.32 | G31: 0.32 | H31: 0 | I31: 0 | J31: 0 | K31: 0 | L31: 0 | M31: 0 | N31: 0 | O31: 0 | P31: 0 | R31: =Prop2021DistTar!AF31 -> 1479.782629 | S31: =Prop2021DistTar!AG31 -> 0 | T31: =Prop2021DistTar!AH31 -> 689204400.8 | U31: =Prop2021DistTar!AI31 -> 541411407.3 | V31: =Prop2021DistTar!AJ31 -> 435439.347 | W31: =Prop2021DistTar!AK31 -> 0 | X31: =Prop2021DistTar!AL31 -> 0 | Y31: =Prop2021DistTar!AM31 -> 0 | Z31: =Prop2021DistTar!AN31 -> 0 | AA31: =Prop2021DistTar!AO31 -> 0 | AB31: =Prop2021DistTar!AP31 -> 0 | AC31: =Prop2021DistTar!AQ31 -> 0 | AD31: =Prop2021DistTar!AR31 -> 0 | AF31: 0 | AG31: 0 | AH31: 2205454.083 | AI31: 1732516.503 | AJ31: 0 | AK31: 0 | AL31: 0 | AM31: 0 | AN31: 0 | AO31: 0 | AP31: 0 | AQ31: 0 | AR31: 0 | AS31: 3937970.586
B32: =Prop2021DistTar!B32 -> High Voltage | D32: 0 | E32: 0 | F32: 0 | G32: 0 | H32: 0 | I32: 0 | J32: 0 | K32: 0 | L32: 0 | M32: 0 | N32: 0 | O32: 0 | P32: 0 | R32: =Prop2021DistTar!AF32 -> 90.4582859 | S32: =Prop2021DistTar!AG32 -> 0 | T32: =Prop2021DistTar!AH32 -> 388330933.4 | U32: =Prop2021DistTar!AI32 -> 353671693.6 | V32: =Prop2021DistTar!AJ32 -> 208522.6622 | W32: =Prop2021DistTar!AK32 -> 0 | X32: =Prop2021DistTar!AL32 -> 0 | Y32: =Prop2021DistTar!AM32 -> 0 | Z32: =Prop2021DistTar!AN32 -> 0 | AA32: =Prop2021DistTar!AO32 -> 0 | AB32: =Prop2021DistTar!AP32 -> 0 | AC32: =Prop2021DistTar!AQ32 -> 0 | AD32: =Prop2021DistTar!AR32 -> 0 | AF32: 0 | AG32: 0 | AH32: 0 | AI32: 0 | AJ32: 0 | AK32: 0 | AL32: 0 | AM32: 0 | AN32: 0 | AO32: 0 | AP32: 0 | AQ32: 0 | AR32: 0 | AS32: 0
B33: =Prop2021DistTar!B33 -> High Voltage Docklands | D33: 0 | E33: 0 | F33: 0 | G33: 0 | H33: 0 | I33: 0 | J33: 0 | K33: 0 | L33: 0 | M33: 0 | N33: 0 | O33: 0 | P33: 0 | R33: =Prop2021DistTar!AF33 -> 3.856273503 | S33: =Prop2021DistTar!AG33 -> 0 | T33: =Prop2021DistTar!AH33 -> 55564703.12 | U33: =Prop2021DistTar!AI33 -> 58240508.05 | V33: =Prop2021DistTar!AJ33 -> 25021.29077 | W33: =Prop2021DistTar!AK33 -> 0 | X33: =Prop2021DistTar!AL33 -> 0 | Y33: =Prop2021DistTar!AM33 -> 0 | Z33: =Prop2021DistTar!AN33 -> 0 | AA33: =Prop2021DistTar!AO33 -> 0 | AB33: =Prop2021DistTar!AP33 -> 0 | AC33: =Prop2021DistTar!AQ33 -> 0 | AD33: =Prop2021DistTar!AR33 -> 0 | AF33: =D33*R33 -> 0 | AG33: =E33/100*S33 -> 0 | AH33: 0 | AI33: 0 | AJ33: 0 | AK33: 0 | AL33: 0 | AM33: 0 | AN33: 0 | AO33: 0 | AP33: 0 | AQ33: 0 | AR33: 0 | AS33: =SUM(AF33:AR33) -> 0
B34: =Prop2021DistTar!B34 -> Subtransmission | D34: 0 | E34: 0 | F34: 0 | G34: 0 | H34: 0 | I34: 0 | J34: 0 | K34: 0 | L34: 0 | M34: 0 | N34: 0 | O34: 0 | P34: 0 | R34: =Prop2021DistTar!AF34 -> 6.482232056 | S34: =Prop2021DistTar!AG34 -> 0 | T34: =Prop2021DistTar!AH34 -> 237591547.3 | U34: =Prop2021DistTar!AI34 -> 271398089 | V34: =Prop2021DistTar!AJ34 -> 120478.8877 | W34: =Prop2021DistTar!AK34 -> 0 | X34: =Prop2021DistTar!AL34 -> 0 | Y34: =Prop2021DistTar!AM34 -> 0 | Z34: =Prop2021DistTar!AN34 -> 0 | AA34: =Prop2021DistTar!AO34 -> 0 | AB34: =Prop2021DistTar!AP34 -> 0 | AC34: =Prop2021DistTar!AQ34 -> 0 | AD34: =Prop2021DistTar!AR34 -> 0 | AF34: 0 | AG34: 0 | AH34: 0 | AI34: 0 | AJ34: 0 | AK34: 0 | AL34: 0 | AM34: 0 | AN34: 0 | AO34: 0 | AP34: 0 | AQ34: 0 | AR34: 0 | AS34: 0
R35: =Prop2021DistTar!AF35 -> 0 | S35: =Prop2021DistTar!AG35 -> 0 | T35: =Prop2021DistTar!AH35 -> 0 | U35: =Prop2021DistTar!AI35 -> 0 | V35: =Prop2021DistTar!AJ35 -> 0 | W35: =Prop2021DistTar!AK35 -> 0 | X35: =Prop2021DistTar!AL35 -> 0 | Y35: =Prop2021DistTar!AM35 -> 0 | Z35: =Prop2021DistTar!AN35 -> 0 | AA35: =Prop2021DistTar!AO35 -> 0 | AB35: =Prop2021DistTar!AP35 -> 0 | AC35: =Prop2021DistTar!AQ35 -> 0 | AD35: =Prop2021DistTar!AR35 -> 0 | AF35: =D35*R35 -> 0 | AG35: =E35/100*S35 -> 0 | AH35: =F35/100*T35 -> 0 | AI35: =G35/100*U35 -> 0 | AJ35: 0 | AK35: 0 | AL35: 0 | AM35: =K35/100*Y35 -> 0 | AN35: 0 | AO35: 0 | AP35: 0 | AQ35: 0 | AR35: 0 | AS35: =SUM(AF35:AR35) -> 0
R36: =Prop2021DistTar!AF36 -> 0 | S36: =Prop2021DistTar!AG36 -> 0 | T36: =Prop2021DistTar!AH36 -> 0 | U36: =Prop2021DistTar!AI36 -> 0 | V36: =Prop2021DistTar!AJ36 -> 0 | W36: =Prop2021DistTar!AK36 -> 0 | X36: =Prop2021DistTar!AL36 -> 0 | Y36: =Prop2021DistTar!AM36 -> 0 | Z36: =Prop2021DistTar!AN36 -> 0 | AA36: =Prop2021DistTar!AO36 -> 0 | AB36: =Prop2021DistTar!AP36 -> 0 | AC36: =Prop2021DistTar!AQ36 -> 0 | AD36: =Prop2021DistTar!AR36 -> 0 | AF36: 0 | AG36: 0 | AH36: 0 | AI36: 0 | AJ36: 0 | AK36: 0 | AL36: 0 | AM36: 0 | AN36: 0 | AO36: 0 | AP36: 0 | AQ36: 0 | AR36: 0 | AS36: 0
R37: =Prop2021DistTar!AF37 -> 0 | S37: =Prop2021DistTar!AG37 -> 0 | T37: =Prop2021DistTar!AH37 -> 0 | U37: =Prop2021DistTar!AI37 -> 0 | V37: =Prop2021DistTar!AJ37 -> 0 | W37: =Prop2021DistTar!AK37 -> 0 | X37: =Prop2021DistTar!AL37 -> 0 | Y37: =Prop2021DistTar!AM37 -> 0 | Z37: =Prop2021DistTar!AN37 -> 0 | AA37: =Prop2021DistTar!AO37 -> 0 | AB37: =Prop2021DistTar!AP37 -> 0 | AC37: =Prop2021DistTar!AQ37 -> 0 | AD37: =Prop2021DistTar!AR37 -> 0 | AF37: 0 | AG37: 0 | AH37: 0 | AI37: 0 | AJ37: 0 | AK37: 0 | AL37: 0 | AM37: 0 | AN37: 0 | AO37: 0 | AP37: 0 | AQ37: 0 | AR37: 0 | AS37: 0
R38: =Prop2021DistTar!AF38 -> 0 | S38: =Prop2021DistTar!AG38 -> 0 | T38: =Prop2021DistTar!AH38 -> 0 | U38: =Prop2021DistTar!AI38 -> 0 | V38: =Prop2021DistTar!AJ38 -> 0 | W38: =Prop2021DistTar!AK38 -> 0 | X38: =Prop2021DistTar!AL38 -> 0 | Y38: =Prop2021DistTar!AM38 -> 0 | Z38: =Prop2021DistTar!AN38 -> 0 | AA38: =Prop2021DistTar!AO38 -> 0 | AB38: =Prop2021DistTar!AP38 -> 0 | AC38: =Prop2021DistTar!AQ38 -> 0 | AD38: =Prop2021DistTar!AR38 -> 0 | AF38: 0 | AG38: 0 | AH38: 0 | AI38: 0 | AJ38: 0 | AK38: 0 | AL38: 0 | AM38: 0 | AN38: 0 | AO38: 0 | AP38: 0 | AQ38: 0 | AR38: 0 | AS38: 0
R39: =Prop2021DistTar!AF39 -> 0 | S39: =Prop2021DistTar!AG39 -> 0 | T39: =Prop2021DistTar!AH39 -> 0 | U39: =Prop2021DistTar!AI39 -> 0 | V39: =Prop2021DistTar!AJ39 -> 0 | W39: =Prop2021DistTar!AK39 -> 0 | X39: =Prop2021DistTar!AL39 -> 0 | Y39: =Prop2021DistTar!AM39 -> 0 | Z39: =Prop2021DistTar!AN39 -> 0 | AA39: =Prop2021DistTar!AO39 -> 0 | AB39: =Prop2021DistTar!AP39 -> 0 | AC39: =Prop2021DistTar!AQ39 -> 0 | AD39: =Prop2021DistTar!AR39 -> 0 | AF39: 0 | AG39: =E39/100*S39 -> 0 | AH39: 0 | AI39: 0 | AJ39: 0 | AK39: 0 | AL39: 0 | AM39: 0 | AN39: 0 | AO39: 0 | AP39: 0 | AQ39: 0 | AR39: 0 | AS39: 0
R40: =Prop2021DistTar!AF40 -> 0 | S40: =Prop2021DistTar!AG40 -> 0 | T40: =Prop2021DistTar!AH40 -> 0 | U40: =Prop2021DistTar!AI40 -> 0 | V40: =Prop2021DistTar!AJ40 -> 0 | W40: =Prop2021DistTar!AK40 -> 0 | X40: =Prop2021DistTar!AL40 -> 0 | Y40: =Prop2021DistTar!AM40 -> 0 | Z40: =Prop2021DistTar!AN40 -> 0 | AA40: =Prop2021DistTar!AO40 -> 0 | AB40: =Prop2021DistTar!AP40 -> 0 | AC40: =Prop2021DistTar!AQ40 -> 0 | AD40: =Prop2021DistTar!AR40 -> 0 | AF40: 0 | AG40: 0 | AH40: 0 | AI40: 0 | AJ40: 0 | AK40: 0 | AL40: 0 | AM40: 0 | AN40: 0 | AO40: 0 | AP40: 0 | AQ40: 0 | AR40: 0 | AS40: 0
R41: =Prop2021DistTar!AF41 -> 0 | S41: =Prop2021DistTar!AG41 -> 0 | T41: =Prop2021DistTar!AH41 -> 0 | U41: =Prop2021DistTar!AI41 -> 0 | V41: =Prop2021DistTar!AJ41 -> 0 | W41: =Prop2021DistTar!AK41 -> 0 | X41: =Prop2021DistTar!AL41 -> 0 | Y41: =Prop2021DistTar!AM41 -> 0 | Z41: =Prop2021DistTar!AN41 -> 0 | AA41: =Prop2021DistTar!AO41 -> 0 | AB41: =Prop2021DistTar!AP41 -> 0 | AC41: =Prop2021DistTar!AQ41 -> 0 | AD41: =Prop2021DistTar!AR41 -> 0 | AF41: 0 | AG41: 0 | AH41: 0 | AI41: 0 | AJ41: 0 | AK41: 0 | AL41: 0 | AM41: 0 | AN41: 0 | AO41: 0 | AP41: 0 | AQ41: 0 | AR41: 0 | AS41: 0
R42: =Prop2021DistTar!AF42 -> 0 | S42: =Prop2021DistTar!AG42 -> 0 | T42: =Prop2021DistTar!AH42 -> 0 | U42: =Prop2021DistTar!AI42 -> 0 | V42: =Prop2021DistTar!AJ42 -> 0 | W42: =Prop2021DistTar!AK42 -> 0 | X42: =Prop2021DistTar!AL42 -> 0 | Y42: =Prop2021DistTar!AM42 -> 0 | Z42: =Prop2021DistTar!AN42 -> 0 | AA42: =Prop2021DistTar!AO42 -> 0 | AB42: =Prop2021DistTar!AP42 -> 0 | AC42: =Prop2021DistTar!AQ42 -> 0 | AD42: =Prop2021DistTar!AR42 -> 0 | AF42: 0 | AG42: 0 | AH42: 0 | AI42: 0 | AJ42: 0 | AK42: 0 | AL42: 0 | AM42: 0 | AN42: 0 | AO42: 0 | AP42: 0 | AQ42: 0 | AR42: 0 | AS42: 0
R43: =Prop2021DistTar!AF43 -> 0 | S43: =Prop2021DistTar!AG43 -> 0 | T43: =Prop2021DistTar!AH43 -> 0 | U43: =Prop2021DistTar!AI43 -> 0 | V43: =Prop2021DistTar!AJ43 -> 0 | W43: =Prop2021DistTar!AK43 -> 0 | X43: =Prop2021DistTar!AL43 -> 0 | Y43: =Prop2021DistTar!AM43 -> 0 | Z43: =Prop2021DistTar!AN43 -> 0 | AA43: =Prop2021DistTar!AO43 -> 0 | AB43: =Prop2021DistTar!AP43 -> 0 | AC43: =Prop2021DistTar!AQ43 -> 0 | AD43: =Prop2021DistTar!AR43 -> 0 | AF43: 0 | AG43: 0 | AH43: 0 | AI43: 0 | AJ43: 0 | AK43: 0 | AL43: 0 | AM43: 0 | AN43: 0 | AO43: 0 | AP43: 0 | AQ43: 0 | AR43: 0 | AS43: 0
R44: =Prop2021DistTar!AF44 -> 0 | S44: =Prop2021DistTar!AG44 -> 0 | T44: =Prop2021DistTar!AH44 -> 0 | U44: =Prop2021DistTar!AI44 -> 0 | V44: =Prop2021DistTar!AJ44 -> 0 | W44: =Prop2021DistTar!AK44 -> 0 | X44: =Prop2021DistTar!AL44 -> 0 | Y44: =Prop2021DistTar!AM44 -> 0 | Z44: =Prop2021DistTar!AN44 -> 0 | AA44: =Prop2021DistTar!AO44 -> 0 | AB44: =Prop2021DistTar!AP44 -> 0 | AC44: =Prop2021DistTar!AQ44 -> 0 | AD44: =Prop2021DistTar!AR44 -> 0 | AF44: 0 | AG44: 0 | AH44: 0 | AI44: 0 | AJ44: 0 | AK44: 0 | AL44: 0 | AM44: 0 | AN44: 0 | AO44: 0 | AP44: 0 | AQ44: 0 | AR44: 0 | AS44: 0
R45: =Prop2021DistTar!AF45 -> 0 | S45: =Prop2021DistTar!AG45 -> 0 | T45: =Prop2021DistTar!AH45 -> 0 | U45: =Prop2021DistTar!AI45 -> 0 | V45: =Prop2021DistTar!AJ45 -> 0 | W45: =Prop2021DistTar!AK45 -> 0 | X45: =Prop2021DistTar!AL45 -> 0 | Y45: =Prop2021DistTar!AM45 -> 0 | Z45: =Prop2021DistTar!AN45 -> 0 | AA45: =Prop2021DistTar!AO45 -> 0 | AB45: =Prop2021DistTar!AP45 -> 0 | AC45: =Prop2021DistTar!AQ45 -> 0 | AD45: =Prop2021DistTar!AR45 -> 0 | AF45: 0 | AG45: 0 | AH45: 0 | AI45: 0 | AJ45: 0 | AK45: 0 | AL45: 0 | AM45: 0 | AN45: 0 | AO45: 0 | AP45: 0 | AQ45: 0 | AR45: 0 | AS45: 0
R46: =Prop2021DistTar!AF46 -> 0 | S46: =Prop2021DistTar!AG46 -> 0 | T46: =Prop2021DistTar!AH46 -> 0 | U46: =Prop2021DistTar!AI46 -> 0 | V46: =Prop2021DistTar!AJ46 -> 0 | W46: =Prop2021DistTar!AK46 -> 0 | X46: =Prop2021DistTar!AL46 -> 0 | Y46: =Prop2021DistTar!AM46 -> 0 | Z46: =Prop2021DistTar!AN46 -> 0 | AA46: =Prop2021DistTar!AO46 -> 0 | AB46: =Prop2021DistTar!AP46 -> 0 | AC46: =Prop2021DistTar!AQ46 -> 0 | AD46: =Prop2021DistTar!AR46 -> 0 | AF46: 0 | AG46: 0 | AH46: 0 | AI46: 0 | AJ46: 0 | AK46: 0 | AL46: 0 | AM46: 0 | AN46: 0 | AO46: 0 | AP46: 0 | AQ46: 0 | AR46: 0 | AS46: 0
R47: =Prop2021DistTar!AF47 -> 0 | S47: =Prop2021DistTar!AG47 -> 0 | T47: =Prop2021DistTar!AH47 -> 0 | U47: =Prop2021DistTar!AI47 -> 0 | V47: =Prop2021DistTar!AJ47 -> 0 | W47: =Prop2021DistTar!AK47 -> 0 | X47: =Prop2021DistTar!AL47 -> 0 | Y47: =Prop2021DistTar!AM47 -> 0 | Z47: =Prop2021DistTar!AN47 -> 0 | AA47: =Prop2021DistTar!AO47 -> 0 | AB47: =Prop2021DistTar!AP47 -> 0 | AC47: =Prop2021DistTar!AQ47 -> 0 | AD47: =Prop2021DistTar!AR47 -> 0 | AF47: 0 | AG47: 0 | AH47: 0 | AI47: 0 | AJ47: 0 | AK47: 0 | AL47: 0 | AM47: 0 | AN47: 0 | AO47: 0 | AP47: 0 | AQ47: 0 | AR47: 0 | AS47: 0
R48: =Prop2021DistTar!AF48 -> 0 | S48: =Prop2021DistTar!AG48 -> 0 | T48: =Prop2021DistTar!AH48 -> 0 | U48: =Prop2021DistTar!AI48 -> 0 | V48: =Prop2021DistTar!AJ48 -> 0 | W48: =Prop2021DistTar!AK48 -> 0 | X48: =Prop2021DistTar!AL48 -> 0 | Y48: =Prop2021DistTar!AM48 -> 0 | Z48: =Prop2021DistTar!AN48 -> 0 | AA48: =Prop2021DistTar!AO48 -> 0 | AB48: =Prop2021DistTar!AP48 -> 0 | AC48: =Prop2021DistTar!AQ48 -> 0 | AD48: =Prop2021DistTar!AR48 -> 0 | AF48: 0 | AG48: 0 | AH48: 0 | AI48: 0 | AJ48: 0 | AK48: 0 | AL48: 0 | AM48: 0 | AN48: 0 | AO48: 0 | AP48: 0 | AQ48: 0 | AR48: 0 | AS48: 0
R49: =Prop2021DistTar!AF49 -> 0 | S49: =Prop2021DistTar!AG49 -> 0 | T49: =Prop2021DistTar!AH49 -> 0 | U49: =Prop2021DistTar!AI49 -> 0 | V49: =Prop2021DistTar!AJ49 -> 0 | W49: =Prop2021DistTar!AK49 -> 0 | X49: =Prop2021DistTar!AL49 -> 0 | Y49: =Prop2021DistTar!AM49 -> 0 | Z49: =Prop2021DistTar!AN49 -> 0 | AA49: =Prop2021DistTar!AO49 -> 0 | AB49: =Prop2021DistTar!AP49 -> 0 | AC49: =Prop2021DistTar!AQ49 -> 0 | AD49: =Prop2021DistTar!AR49 -> 0 | AF49: 0 | AG49: 0 | AH49: 0 | AI49: 0 | AJ49: 0 | AK49: 0 | AL49: 0 | AM49: 0 | AN49: 0 | AO49: 0 | AP49: 0 | AQ49: 0 | AR49: 0 | AS49: 0
R50: =Prop2021DistTar!AF50 -> 0 | S50: =Prop2021DistTar!AG50 -> 0 | T50: =Prop2021DistTar!AH50 -> 0 | U50: =Prop2021DistTar!AI50 -> 0 | V50: =Prop2021DistTar!AJ50 -> 0 | W50: =Prop2021DistTar!AK50 -> 0 | X50: =Prop2021DistTar!AL50 -> 0 | Y50: =Prop2021DistTar!AM50 -> 0 | Z50: =Prop2021DistTar!AN50 -> 0 | AA50: =Prop2021DistTar!AO50 -> 0 | AB50: =Prop2021DistTar!AP50 -> 0 | AC50: =Prop2021DistTar!AQ50 -> 0 | AD50: =Prop2021DistTar!AR50 -> 0 | AF50: 0 | AG50: 0 | AH50: 0 | AI50: 0 | AJ50: 0 | AK50: 0 | AL50: 0 | AM50: 0 | AN50: 0 | AO50: 0 | AP50: 0 | AQ50: 0 | AR50: 0 | AS50: 0
R51: =Prop2021DistTar!AF51 -> 0 | S51: =Prop2021DistTar!AG51 -> 0 | T51: =Prop2021DistTar!AH51 -> 0 | U51: =Prop2021DistTar!AI51 -> 0 | V51: =Prop2021DistTar!AJ51 -> 0 | W51: =Prop2021DistTar!AK51 -> 0 | X51: =Prop2021DistTar!AL51 -> 0 | Y51: =Prop2021DistTar!AM51 -> 0 | Z51: =Prop2021DistTar!AN51 -> 0 | AA51: =Prop2021DistTar!AO51 -> 0 | AB51: =Prop2021DistTar!AP51 -> 0 | AC51: =Prop2021DistTar!AQ51 -> 0 | AD51: =Prop2021DistTar!AR51 -> 0 | AF51: 0 | AG51: 0 | AH51: 0 | AI51: 0 | AJ51: 0 | AK51: 0 | AL51: 0 | AM51: 0 | AN51: 0 | AO51: 0 | AP51: 0 | AQ51: 0 | AR51: 0 | AS51: 0
R52: =Prop2021DistTar!AF52 -> 0 | S52: =Prop2021DistTar!AG52 -> 0 | T52: =Prop2021DistTar!AH52 -> 0 | U52: =Prop2021DistTar!AI52 -> 0 | V52: =Prop2021DistTar!AJ52 -> 0 | W52: =Prop2021DistTar!AK52 -> 0 | X52: =Prop2021DistTar!AL52 -> 0 | Y52: =Prop2021DistTar!AM52 -> 0 | Z52: =Prop2021DistTar!AN52 -> 0 | AA52: =Prop2021DistTar!AO52 -> 0 | AB52: =Prop2021DistTar!AP52 -> 0 | AC52: =Prop2021DistTar!AQ52 -> 0 | AD52: =Prop2021DistTar!AR52 -> 0 | AF52: 0 | AG52: 0 | AH52: 0 | AI52: 0 | AJ52: 0 | AK52: 0 | AL52: 0 | AM52: 0 | AN52: 0 | AO52: 0 | AP52: 0 | AQ52: 0 | AR52: 0 | AS52: 0
R53: =Prop2021DistTar!AF53 -> 0 | S53: =Prop2021DistTar!AG53 -> 0 | T53: =Prop2021DistTar!AH53 -> 0 | U53: =Prop2021DistTar!AI53 -> 0 | V53: =Prop2021DistTar!AJ53 -> 0 | W53: =Prop2021DistTar!AK53 -> 0 | X53: =Prop2021DistTar!AL53 -> 0 | Y53: =Prop2021DistTar!AM53 -> 0 | Z53: =Prop2021DistTar!AN53 -> 0 | AA53: =Prop2021DistTar!AO53 -> 0 | AB53: =Prop2021DistTar!AP53 -> 0 | AC53: =Prop2021DistTar!AQ53 -> 0 | AD53: =Prop2021DistTar!AR53 -> 0 | AF53: 0 | AG53: 0 | AH53: 0 | AI53: 0 | AJ53: 0 | AK53: 0 | AL53: 0 | AM53: 0 | AN53: 0 | AO53: 0 | AP53: 0 | AQ53: 0 | AR53: 0 | AS53: 0
R54: =Prop2021DistTar!AF54 -> 0 | S54: =Prop2021DistTar!AG54 -> 0 | T54: =Prop2021DistTar!AH54 -> 0 | U54: =Prop2021DistTar!AI54 -> 0 | V54: =Prop2021DistTar!AJ54 -> 0 | W54: =Prop2021DistTar!AK54 -> 0 | X54: =Prop2021DistTar!AL54 -> 0 | Y54: =Prop2021DistTar!AM54 -> 0 | Z54: =Prop2021DistTar!AN54 -> 0 | AA54: =Prop2021DistTar!AO54 -> 0 | AB54: =Prop2021DistTar!AP54 -> 0 | AC54: =Prop2021DistTar!AQ54 -> 0 | AD54: =Prop2021DistTar!AR54 -> 0 | AF54: 0 | AG54: 0 | AH54: 0 | AI54: 0 | AJ54: 0 | AK54: 0 | AL54: 0 | AM54: 0 | AN54: 0 | AO54: 0 | AP54: 0 | AQ54: 0 | AR54: 0 | AS54: 0
AF55: 0 | AG55: 0 | AH55: 0 | AI55: 0 | AJ55: 0 | AK55: 0 | AL55: 0 | AM55: 0 | AN55: 0 | AO55: 0 | AP55: 0 | AQ55: 0 | AR55: 0 | AS55: 0
AF56: 0 | AG56: 0 | AH56: 0 | AI56: 0 | AJ56: 0 | AK56: 0 | AL56: 0 | AM56: 0 | AN56: 0 | AO56: 0 | AP56: 0 | AQ56: 0 | AR56: 0 | AS56: 0
AF57: 0 | AG57: 0 | AH57: 0 | AI57: 0 | AJ57: 0 | AK57: 0 | AL57: 0 | AM57: 0 | AN57: 0 | AO57: 0 | AP57: 0 | AQ57: 0 | AR57: 0 | AS57: 0
AF58: 0 | AG58: 0 | AH58: 0 | AI58: 0 | AJ58: 0 | AK58: 0 | AL58: 0 | AM58: 0 | AN58: 0 | AO58: 0 | AP58: 0 | AQ58: 0 | AR58: 0 | AS58: 0
AF59: 0 | AG59: 0 | AH59: 0 | AI59: 0 | AJ59: 0 | AK59: 0 | AL59: 0 | AM59: 0 | AN59: 0 | AO59: 0 | AP59: 0 | AQ59: 0 | AR59: 0 | AS59: 0
AF60: 0 | AG60: 0 | AH60: 0 | AI60: 0 | AJ60: 0 | AK60: 0 | AL60: 0 | AM60: 0 | AN60: 0 | AO60: 0 | AP60: 0 | AQ60: 0 | AR60: 0 | AS60: 0
AF61: 0 | AG61: 0 | AH61: 0 | AI61: 0 | AJ61: 0 | AK61: 0 | AL61: 0 | AM61: 0 | AN61: 0 | AO61: 0 | AP61: 0 | AQ61: 0 | AR61: 0 | AS61: 0
AF62: 0 | AG62: 0 | AH62: 0 | AI62: 0 | AJ62: 0 | AK62: 0 | AL62: 0 | AM62: 0 | AN62: 0 | AO62: 0 | AP62: 0 | AQ62: 0 | AR62: 0 | AS62: 0
AF63: 0 | AG63: 0 | AH63: 0 | AI63: 0 | AJ63: 0 | AK63: 0 | AL63: 0 | AM63: 0 | AN63: 0 | AO63: 0 | AP63: 0 | AQ63: 0 | AR63: 0 | AS63: 0
AF64: 0 | AG64: 0 | AH64: 0 | AI64: 0 | AJ64: 0 | AK64: 0 | AL64: 0 | AM64: 0 | AN64: 0 | AO64: 0 | AP64: 0 | AQ64: 0 | AR64: 0 | AS64: 0
AF65: 0 | AG65: 0 | AH65: 0 | AI65: 0 | AJ65: 0 | AK65: 0 | AL65: 0 | AM65: 0 | AN65: 0 | AO65: 0 | AP65: 0 | AQ65: 0 | AR65: 0 | AS65: 0
R66: =SUM(R6:R65) -> 532377.0419 | S66: 1436796711 | T66: 1992025316 | U66: 1952979655 | V66: 789462.1877 | W66: 1001810.078 | X66: 879527.5965 | Y66: =SUM(Y6:Y65) -> 913328.3923 | Z66: 1243344.069 | AA66: 1247734.689 | AB66: 1896305.999 | AC66: 2781999.178 | AD66: 2716693.92 | AF66: =SUM(AF6:AF65) -> 0 | AG66: 4741393.746 | AH66: 4195741.5 | AI66: 4024915.522 | AJ66: 0 | AK66: 0 | AL66: 0 | AM66: =SUM(AM6:AM65) -> 3013.983695 | AN66: 4103.035428 | AO66: 4117.524474 | AP66: 6257.809797 | AQ66: 9180.597289 | AR66: 8887.508948 | AS66: 12997611.23

Sheet 2021JSRevCont
B2: ="Tariff Approval - "&'Model update'!$C$3 -> Tariff Approval - Powercor | C2: ='Model update'!$C$5&"JSRevCont" -> 2021JSRevCont
B4: Jurisdictional Scheme Amounts (JSA)
B6: Year (t) | C6: ='Model update'!C5 -> 2021
B8: Table 1- Compliance with JSA Revenue Formula
B9: Revenue from Jurisdictional Scheme Amounts charges for year t | C9: =Prop2021JSTar!AS66 -> 12997611.23
B10: Total JSA related payments for year t | C10: =C17 -> 13000000
C11: =IF(C9="","",IF(C10>=C9,"JSA REVENUE FORMULA COMPLIANT","JSA REVENUE FORMULA BREACHED")) -> JSA REVENUE FORMULA COMPLIANT
B14: Table 3 - PFIT & TFIT charges for year t
B15: PFIT | C15: 13000000
B16: TFIT | C16: 0
B17: PFIT & TFIT charges | C17: =SUM(C15:C16) -> 13000000
